Workbook

Sheet Overview
C2: SaaS finance demonstration
C4: Selected case | E4: ='Assumptions'!$G$4 -> Base | H4: EUR · entirely fictional
C6: Meridian Cloud Software — fictional
C7: 31 August 2026. January–August actuals, September–December forecast.
C9: August performance | E9: Actual | F9: Original budget | G9: Variance
C10: Revenue | E10: ='P&L'!L11 -> 327,783 | F10: ='Budget'!L11 -> 353,700 | G10: =E10-F10 -> (25,917)
C11: Gross profit | E11: ='P&L'!L16 -> 249,572 | F11: ='Budget'!L16 -> 269,700 | G11: =E11-F11 -> (20,128)
C12: EBITDA | E12: ='P&L'!L25 -> 18,372 | F12: ='Budget'!L25 -> 46,600 | G12: =E12-F12 -> (28,228)
C13: Net profit | E13: ='P&L'!L32 -> 9,676 | F13: ='Budget'!L32 -> 32,470 | G13: =E13-F13 -> (22,794)
C14: Gross margin | E14: ='P&L'!L17 -> 76.1% | F14: ='Budget'!L17 -> 76.3% | G14: =E14-F14 -> (0.1%)
C17: Bank cash at August close | E17: ='Balance sheet'!L8 -> 1,363,220
C18: Lowest daily forecast cash | E18: ='13 week cash'!E21 -> 1,220,533
C19: Reserve headroom / (shortfall) | E19: ='13 week cash'!E21-'Actual inputs'!$E$58 -> 1,020,533
C20: Full-year revenue | E20: =SUM('P&L'!E11:P11) -> 3,705,812
C21: Full-year EBITDA | E21: =SUM('P&L'!E25:P25) -> 148,134
C22: Year-end cash | E22: ='Balance sheet'!P8 -> 1,492,393
C25: CFO actions
C27: Topic | D27: Action | E27: Owner | F27: Due | G27: Status
C28: Retention | D28: Review cancellation reasons by cohort and assign retention actions. | E28: Customer success | F28: 2026-09-04 | G28: Open
C29: Acquisition | D29: Review blended CAC against subscription gross-margin payback. | E29: Commercial lead | F29: 2026-09-08 | G29: Open
C30: Annual billing | D30: Confirm renewal dates, billings and receipt ownership. | E30: Finance lead | F30: 2026-09-03 | G30: Open
C31: Collections | D31: Secure receipt dates for overdue invoices and track exceptions. | E31: Credit control | F31: 2026-09-04 | G31: Open
C32: Liquidity | D32: Review hiring commitments against the daily cash reserve. | E32: CFO | F32: 2026-09-07 | G32: Open
C36: Monthly liquidity
C38: Month | D38: Closing cash | E38: Reserve
C39: Jan-26 | D39: ='Balance sheet'!E8 -> 1,581,940 | E39: ='Actual inputs'!$E$58 -> 200,000
C40: Feb-26 | D40: ='Balance sheet'!F8 -> 1,525,625 | E40: ='Actual inputs'!$E$58 -> 200,000
C41: Mar-26 | D41: ='Balance sheet'!G8 -> 1,472,583 | E41: ='Actual inputs'!$E$58 -> 200,000
C42: Apr-26 | D42: ='Balance sheet'!H8 -> 1,451,554 | E42: ='Actual inputs'!$E$58 -> 200,000
C43: May-26 | D43: ='Balance sheet'!I8 -> 1,405,048 | E43: ='Actual inputs'!$E$58 -> 200,000
C44: Jun-26 | D44: ='Balance sheet'!J8 -> 1,362,102 | E44: ='Actual inputs'!$E$58 -> 200,000
C45: Jul-26 | D45: ='Balance sheet'!K8 -> 1,351,814 | E45: ='Actual inputs'!$E$58 -> 200,000
C46: Aug-26 | D46: ='Balance sheet'!L8 -> 1,363,220 | E46: ='Actual inputs'!$E$58 -> 200,000
C47: Sept-26 | D47: ='Balance sheet'!M8 -> 1,330,683 | E47: ='Actual inputs'!$E$58 -> 200,000
C48: Oct-26 | D48: ='Balance sheet'!N8 -> 1,386,413 | E48: ='Actual inputs'!$E$58 -> 200,000
C49: Nov-26 | D49: ='Balance sheet'!O8 -> 1,422,093 | E49: ='Actual inputs'!$E$58 -> 200,000
C50: Dec-26 | D50: ='Balance sheet'!P8 -> 1,492,393 | E50: ='Actual inputs'!$E$58 -> 200,000

Sheet Assumptions
C2: Assumptions
C4: Selected case | E4: 1 | G4: =CHOOSE($E$4,"Base","Downside") -> Base | H4: EUR · entirely fictional
C5: 1 = Base; 2 = Downside. Blue cells are editable.
E6: Actual | F6: Actual | G6: Actual | H6: Actual | I6: Actual | J6: Actual | K6: Actual | L6: Actual | M6: Forecast | N6: Forecast | O6: Forecast | P6: Forecast
E7: 2026-01-01 | F7: 2026-02-01 | G7: 2026-03-01 | H7: 2026-04-01 | I7: 2026-05-01 | J7: 2026-06-01 | K7: 2026-07-01 | L7: 2026-08-01 | M7: 2026-09-01 | N7: 2026-10-01 | O7: 2026-11-01 | P7: 2026-12-01
C8: Support FTE — active | E8: ='Actual inputs'!E8 -> 7.00 | F8: ='Actual inputs'!F8 -> 7.25 | G8: ='Actual inputs'!G8 -> 7.50 | H8: ='Actual inputs'!H8 -> 7.75 | I8: ='Actual inputs'!I8 -> 8.00 | J8: ='Actual inputs'!J8 -> 8.25 | K8: ='Actual inputs'!K8 -> 8.50 | L8: ='Actual inputs'!L8 -> 8.75 | M8: =IF($E$4=1,IF(ISNUMBER(M9),M9,NA()),IF($E$4=2,IF(ISNUMBER(M10),M10,NA()),NA())) -> 9.00 | N8: =IF($E$4=1,IF(ISNUMBER(N9),N9,NA()),IF($E$4=2,IF(ISNUMBER(N10),N10,NA()),NA())) -> 9.25 | O8: =IF($E$4=1,IF(ISNUMBER(O9),O9,NA()),IF($E$4=2,IF(ISNUMBER(O10),O10,NA()),NA())) -> 9.50 | P8: =IF($E$4=1,IF(ISNUMBER(P9),P9,NA()),IF($E$4=2,IF(ISNUMBER(P10),P10,NA()),NA())) -> 9.75
C9: Base | M9: 9.00 | N9: 9.25 | O9: 9.50 | P9: 9.75
C10: Downside | M10: 9.00 | N10: 9.00 | O10: 9.00 | P10: 9.00
C11: Loaded support pay per month — active | E11: ='Actual inputs'!E9 -> 5,300 | F11: ='Actual inputs'!F9 -> 5,300 | G11: ='Actual inputs'!G9 -> 5,300 | H11: ='Actual inputs'!H9 -> 5,300 | I11: ='Actual inputs'!I9 -> 5,300 | J11: ='Actual inputs'!J9 -> 5,300 | K11: ='Actual inputs'!K9 -> 5,300 | L11: ='Actual inputs'!L9 -> 5,300 | M11: =IF($E$4=1,IF(ISNUMBER(M12),M12,NA()),IF($E$4=2,IF(ISNUMBER(M13),M13,NA()),NA())) -> 5,300 | N11: =IF($E$4=1,IF(ISNUMBER(N12),N12,NA()),IF($E$4=2,IF(ISNUMBER(N13),N13,NA()),NA())) -> 5,300 | O11: =IF($E$4=1,IF(ISNUMBER(O12),O12,NA()),IF($E$4=2,IF(ISNUMBER(O13),O13,NA()),NA())) -> 5,300 | P11: =IF($E$4=1,IF(ISNUMBER(P12),P12,NA()),IF($E$4=2,IF(ISNUMBER(P13),P13,NA()),NA())) -> 5,300
C12: Base | M12: 5,300 | N12: 5,300 | O12: 5,300 | P12: 5,300
C13: Downside | M13: 5,300 | N13: 5,300 | O13: 5,300 | P13: 5,300
C14: Product development FTE — active | E14: ='Actual inputs'!E10 -> 13.00 | F14: ='Actual inputs'!F10 -> 13.50 | G14: ='Actual inputs'!G10 -> 14.00 | H14: ='Actual inputs'!H10 -> 14.50 | I14: ='Actual inputs'!I10 -> 15.00 | J14: ='Actual inputs'!J10 -> 15.50 | K14: ='Actual inputs'!K10 -> 16.00 | L14: ='Actual inputs'!L10 -> 16.50 | M14: =IF($E$4=1,IF(ISNUMBER(M15),M15,NA()),IF($E$4=2,IF(ISNUMBER(M16),M16,NA()),NA())) -> 17.00 | N14: =IF($E$4=1,IF(ISNUMBER(N15),N15,NA()),IF($E$4=2,IF(ISNUMBER(N16),N16,NA()),NA())) -> 17.50 | O14: =IF($E$4=1,IF(ISNUMBER(O15),O15,NA()),IF($E$4=2,IF(ISNUMBER(O16),O16,NA()),NA())) -> 18.00 | P14: =IF($E$4=1,IF(ISNUMBER(P15),P15,NA()),IF($E$4=2,IF(ISNUMBER(P16),P16,NA()),NA())) -> 18.50
C15: Base | M15: 17.00 | N15: 17.50 | O15: 18.00 | P15: 18.50
C16: Downside | M16: 17.00 | N16: 17.00 | O16: 17.00 | P16: 17.00
C17: Loaded development pay per month — active | E17: ='Actual inputs'!E11 -> 6,900 | F17: ='Actual inputs'!F11 -> 6,900 | G17: ='Actual inputs'!G11 -> 6,900 | H17: ='Actual inputs'!H11 -> 6,900 | I17: ='Actual inputs'!I11 -> 6,900 | J17: ='Actual inputs'!J11 -> 6,900 | K17: ='Actual inputs'!K11 -> 6,900 | L17: ='Actual inputs'!L11 -> 6,900 | M17: =IF($E$4=1,IF(ISNUMBER(M18),M18,NA()),IF($E$4=2,IF(ISNUMBER(M19),M19,NA()),NA())) -> 6,900 | N17: =IF($E$4=1,IF(ISNUMBER(N18),N18,NA()),IF($E$4=2,IF(ISNUMBER(N19),N19,NA()),NA())) -> 6,900 | O17: =IF($E$4=1,IF(ISNUMBER(O18),O18,NA()),IF($E$4=2,IF(ISNUMBER(O19),O19,NA()),NA())) -> 6,900 | P17: =IF($E$4=1,IF(ISNUMBER(P18),P18,NA()),IF($E$4=2,IF(ISNUMBER(P19),P19,NA()),NA())) -> 6,900
C18: Base | M18: 6,900 | N18: 6,900 | O18: 6,900 | P18: 6,900
C19: Downside | M19: 6,900 | N19: 6,900 | O19: 6,900 | P19: 6,900
C20: Sales FTE — active | E20: ='Actual inputs'!E12 -> 5.00 | F20: ='Actual inputs'!F12 -> 5.25 | G20: ='Actual inputs'!G12 -> 5.50 | H20: ='Actual inputs'!H12 -> 5.75 | I20: ='Actual inputs'!I12 -> 6.00 | J20: ='Actual inputs'!J12 -> 6.25 | K20: ='Actual inputs'!K12 -> 6.50 | L20: ='Actual inputs'!L12 -> 6.75 | M20: =IF($E$4=1,IF(ISNUMBER(M21),M21,NA()),IF($E$4=2,IF(ISNUMBER(M22),M22,NA()),NA())) -> 7.00 | N20: =IF($E$4=1,IF(ISNUMBER(N21),N21,NA()),IF($E$4=2,IF(ISNUMBER(N22),N22,NA()),NA())) -> 7.25 | O20: =IF($E$4=1,IF(ISNUMBER(O21),O21,NA()),IF($E$4=2,IF(ISNUMBER(O22),O22,NA()),NA())) -> 7.50 | P20: =IF($E$4=1,IF(ISNUMBER(P21),P21,NA()),IF($E$4=2,IF(ISNUMBER(P22),P22,NA()),NA())) -> 7.75
C21: Base | M21: 7.00 | N21: 7.25 | O21: 7.50 | P21: 7.75
C22: Downside | M22: 7.00 | N22: 7.00 | O22: 7.00 | P22: 7.00
C23: Loaded sales pay per month — active | E23: ='Actual inputs'!E13 -> 6,200 | F23: ='Actual inputs'!F13 -> 6,200 | G23: ='Actual inputs'!G13 -> 6,200 | H23: ='Actual inputs'!H13 -> 6,200 | I23: ='Actual inputs'!I13 -> 6,200 | J23: ='Actual inputs'!J13 -> 6,200 | K23: ='Actual inputs'!K13 -> 6,200 | L23: ='Actual inputs'!L13 -> 6,200 | M23: =IF($E$4=1,IF(ISNUMBER(M24),M24,NA()),IF($E$4=2,IF(ISNUMBER(M25),M25,NA()),NA())) -> 6,200 | N23: =IF($E$4=1,IF(ISNUMBER(N24),N24,NA()),IF($E$4=2,IF(ISNUMBER(N25),N25,NA()),NA())) -> 6,200 | O23: =IF($E$4=1,IF(ISNUMBER(O24),O24,NA()),IF($E$4=2,IF(ISNUMBER(O25),O25,NA()),NA())) -> 6,200 | P23: =IF($E$4=1,IF(ISNUMBER(P24),P24,NA()),IF($E$4=2,IF(ISNUMBER(P25),P25,NA()),NA())) -> 6,200
C24: Base | M24: 6,200 | N24: 6,200 | O24: 6,200 | P24: 6,200
C25: Downside | M25: 6,200 | N25: 6,200 | O25: 6,200 | P25: 6,200
C26: Administration FTE — active | E26: ='Actual inputs'!E14 -> 4.00 | F26: ='Actual inputs'!F14 -> 4.00 | G26: ='Actual inputs'!G14 -> 4.00 | H26: ='Actual inputs'!H14 -> 4.00 | I26: ='Actual inputs'!I14 -> 4.00 | J26: ='Actual inputs'!J14 -> 4.00 | K26: ='Actual inputs'!K14 -> 4.00 | L26: ='Actual inputs'!L14 -> 4.00 | M26: =IF($E$4=1,IF(ISNUMBER(M27),M27,NA()),IF($E$4=2,IF(ISNUMBER(M28),M28,NA()),NA())) -> 4.00 | N26: =IF($E$4=1,IF(ISNUMBER(N27),N27,NA()),IF($E$4=2,IF(ISNUMBER(N28),N28,NA()),NA())) -> 4.00 | O26: =IF($E$4=1,IF(ISNUMBER(O27),O27,NA()),IF($E$4=2,IF(ISNUMBER(O28),O28,NA()),NA())) -> 4.00 | P26: =IF($E$4=1,IF(ISNUMBER(P27),P27,NA()),IF($E$4=2,IF(ISNUMBER(P28),P28,NA()),NA())) -> 4.00
C27: Base | M27: 4.00 | N27: 4.00 | O27: 4.00 | P27: 4.00
C28: Downside | M28: 4.00 | N28: 4.00 | O28: 4.00 | P28: 4.00
C29: Loaded administration pay per month — active | E29: ='Actual inputs'!E15 -> 5,900 | F29: ='Actual inputs'!F15 -> 5,900 | G29: ='Actual inputs'!G15 -> 5,900 | H29: ='Actual inputs'!H15 -> 5,900 | I29: ='Actual inputs'!I15 -> 5,900 | J29: ='Actual inputs'!J15 -> 5,900 | K29: ='Actual inputs'!K15 -> 5,900 | L29: ='Actual inputs'!L15 -> 5,900 | M29: =IF($E$4=1,IF(ISNUMBER(M30),M30,NA()),IF($E$4=2,IF(ISNUMBER(M31),M31,NA()),NA())) -> 5,900 | N29: =IF($E$4=1,IF(ISNUMBER(N30),N30,NA()),IF($E$4=2,IF(ISNUMBER(N31),N31,NA()),NA())) -> 5,900 | O29: =IF($E$4=1,IF(ISNUMBER(O30),O30,NA()),IF($E$4=2,IF(ISNUMBER(O31),O31,NA()),NA())) -> 5,900 | P29: =IF($E$4=1,IF(ISNUMBER(P30),P30,NA()),IF($E$4=2,IF(ISNUMBER(P31),P31,NA()),NA())) -> 5,900
C30: Base | M30: 5,900 | N30: 5,900 | O30: 5,900 | P30: 5,900
C31: Downside | M31: 5,900 | N31: 5,900 | O31: 5,900 | P31: 5,900
C32: Acquisition and brand spend — active | E32: ='Actual inputs'!E16 -> 24,000 | F32: ='Actual inputs'!F16 -> 25,200 | G32: ='Actual inputs'!G16 -> 26,400 | H32: ='Actual inputs'!H16 -> 27,600 | I32: ='Actual inputs'!I16 -> 28,800 | J32: ='Actual inputs'!J16 -> 30,000 | K32: ='Actual inputs'!K16 -> 31,200 | L32: ='Actual inputs'!L16 -> 32,400 | M32: =IF($E$4=1,IF(ISNUMBER(M33),M33,NA()),IF($E$4=2,IF(ISNUMBER(M34),M34,NA()),NA())) -> 33,600 | N32: =IF($E$4=1,IF(ISNUMBER(N33),N33,NA()),IF($E$4=2,IF(ISNUMBER(N34),N34,NA()),NA())) -> 34,800 | O32: =IF($E$4=1,IF(ISNUMBER(O33),O33,NA()),IF($E$4=2,IF(ISNUMBER(O34),O34,NA()),NA())) -> 36,000 | P32: =IF($E$4=1,IF(ISNUMBER(P33),P33,NA()),IF($E$4=2,IF(ISNUMBER(P34),P34,NA()),NA())) -> 37,200
C33: Base | M33: 33,600 | N33: 34,800 | O33: 36,000 | P33: 37,200
C34: Downside | M34: 34,000 | N34: 34,000 | O34: 34,000 | P34: 34,000
C35: Office and administration — active | E35: ='Actual inputs'!E17 -> 13,000 | F35: ='Actual inputs'!F17 -> 13,000 | G35: ='Actual inputs'!G17 -> 13,000 | H35: ='Actual inputs'!H17 -> 13,000 | I35: ='Actual inputs'!I17 -> 13,000 | J35: ='Actual inputs'!J17 -> 13,000 | K35: ='Actual inputs'!K17 -> 13,000 | L35: ='Actual inputs'!L17 -> 13,000 | M35: =IF($E$4=1,IF(ISNUMBER(M36),M36,NA()),IF($E$4=2,IF(ISNUMBER(M37),M37,NA()),NA())) -> 13,000 | N35: =IF($E$4=1,IF(ISNUMBER(N36),N36,NA()),IF($E$4=2,IF(ISNUMBER(N37),N37,NA()),NA())) -> 13,000 | O35: =IF($E$4=1,IF(ISNUMBER(O36),O36,NA()),IF($E$4=2,IF(ISNUMBER(O37),O37,NA()),NA())) -> 13,000 | P35: =IF($E$4=1,IF(ISNUMBER(P36),P36,NA()),IF($E$4=2,IF(ISNUMBER(P37),P37,NA()),NA())) -> 13,000
C36: Base | M36: 13,000 | N36: 13,000 | O36: 13,000 | P36: 13,000
C37: Downside | M37: 13,000 | N37: 13,000 | O37: 13,000 | P37: 13,000
C38: Professional fees — active | E38: ='Actual inputs'!E18 -> 6,500 | F38: ='Actual inputs'!F18 -> 6,500 | G38: ='Actual inputs'!G18 -> 6,500 | H38: ='Actual inputs'!H18 -> 6,500 | I38: ='Actual inputs'!I18 -> 6,500 | J38: ='Actual inputs'!J18 -> 6,500 | K38: ='Actual inputs'!K18 -> 6,500 | L38: ='Actual inputs'!L18 -> 6,500 | M38: =IF($E$4=1,IF(ISNUMBER(M39),M39,NA()),IF($E$4=2,IF(ISNUMBER(M40),M40,NA()),NA())) -> 6,500 | N38: =IF($E$4=1,IF(ISNUMBER(N39),N39,NA()),IF($E$4=2,IF(ISNUMBER(N40),N40,NA()),NA())) -> 6,500 | O38: =IF($E$4=1,IF(ISNUMBER(O39),O39,NA()),IF($E$4=2,IF(ISNUMBER(O40),O40,NA()),NA())) -> 6,500 | P38: =IF($E$4=1,IF(ISNUMBER(P39),P39,NA()),IF($E$4=2,IF(ISNUMBER(P40),P40,NA()),NA())) -> 6,500
C39: Base | M39: 6,500 | N39: 6,500 | O39: 6,500 | P39: 6,500
C40: Downside | M40: 6,500 | N40: 6,500 | O40: 6,500 | P40: 6,500
C41: Capital expenditure — active | E41: ='Actual inputs'!E19 -> 8,000 | F41: ='Actual inputs'!F19 -> 8,500 | G41: ='Actual inputs'!G19 -> 9,000 | H41: ='Actual inputs'!H19 -> 9,500 | I41: ='Actual inputs'!I19 -> 10,000 | J41: ='Actual inputs'!J19 -> 10,500 | K41: ='Actual inputs'!K19 -> 11,000 | L41: ='Actual inputs'!L19 -> 11,500 | M41: =IF($E$4=1,IF(ISNUMBER(M42),M42,NA()),IF($E$4=2,IF(ISNUMBER(M43),M43,NA()),NA())) -> 12,000 | N41: =IF($E$4=1,IF(ISNUMBER(N42),N42,NA()),IF($E$4=2,IF(ISNUMBER(N43),N43,NA()),NA())) -> 12,500 | O41: =IF($E$4=1,IF(ISNUMBER(O42),O42,NA()),IF($E$4=2,IF(ISNUMBER(O43),O43,NA()),NA())) -> 13,000 | P41: =IF($E$4=1,IF(ISNUMBER(P42),P42,NA()),IF($E$4=2,IF(ISNUMBER(P43),P43,NA()),NA())) -> 13,500
C42: Base | M42: 12,000 | N42: 12,500 | O42: 13,000 | P42: 13,500
C43: Downside | M43: 11,000 | N43: 8,000 | O43: 8,000 | P43: 8,000
C44: Illustrative current tax paid — active | E44: ='Actual inputs'!E20 -> 0 | F44: ='Actual inputs'!F20 -> 0 | G44: ='Actual inputs'!G20 -> 12,000 | H44: ='Actual inputs'!H20 -> 0 | I44: ='Actual inputs'!I20 -> 0 | J44: ='Actual inputs'!J20 -> 10,000 | K44: ='Actual inputs'!K20 -> 0 | L44: ='Actual inputs'!L20 -> 0 | M44: =IF($E$4=1,IF(ISNUMBER(M45),M45,NA()),IF($E$4=2,IF(ISNUMBER(M46),M46,NA()),NA())) -> 12,000 | N44: =IF($E$4=1,IF(ISNUMBER(N45),N45,NA()),IF($E$4=2,IF(ISNUMBER(N46),N46,NA()),NA())) -> 0 | O44: =IF($E$4=1,IF(ISNUMBER(O45),O45,NA()),IF($E$4=2,IF(ISNUMBER(O46),O46,NA()),NA())) -> 0 | P44: =IF($E$4=1,IF(ISNUMBER(P45),P45,NA()),IF($E$4=2,IF(ISNUMBER(P46),P46,NA()),NA())) -> 12,000
C45: Base | M45: 12,000 | N45: 0 | O45: 0 | P45: 12,000
C46: Downside | M46: 12,000 | N46: 0 | O46: 0 | P46: 12,000
C47: Target receivable days — active | E47: ='Actual inputs'!E21 -> 25.0 | F47: ='Actual inputs'!F21 -> 25.0 | G47: ='Actual inputs'!G21 -> 25.0 | H47: ='Actual inputs'!H21 -> 25.0 | I47: ='Actual inputs'!I21 -> 25.0 | J47: ='Actual inputs'!J21 -> 25.0 | K47: ='Actual inputs'!K21 -> 25.0 | L47: ='Actual inputs'!L21 -> 25.0 | M47: =IF($E$4=1,IF(ISNUMBER(M48),M48,NA()),IF($E$4=2,IF(ISNUMBER(M49),M49,NA()),NA())) -> 25.0 | N47: =IF($E$4=1,IF(ISNUMBER(N48),N48,NA()),IF($E$4=2,IF(ISNUMBER(N49),N49,NA()),NA())) -> 25.0 | O47: =IF($E$4=1,IF(ISNUMBER(O48),O48,NA()),IF($E$4=2,IF(ISNUMBER(O49),O49,NA()),NA())) -> 25.0 | P47: =IF($E$4=1,IF(ISNUMBER(P48),P48,NA()),IF($E$4=2,IF(ISNUMBER(P49),P49,NA()),NA())) -> 25.0
C48: Base | M48: 25.0 | N48: 25.0 | O48: 25.0 | P48: 25.0
C49: Downside | M49: 38.0 | N49: 42.0 | O49: 44.0 | P49: 46.0
C50: New vendor payable days — active | E50: ='Actual inputs'!E22 -> 28.0 | F50: ='Actual inputs'!F22 -> 28.0 | G50: ='Actual inputs'!G22 -> 28.0 | H50: ='Actual inputs'!H22 -> 28.0 | I50: ='Actual inputs'!I22 -> 28.0 | J50: ='Actual inputs'!J22 -> 28.0 | K50: ='Actual inputs'!K22 -> 28.0 | L50: ='Actual inputs'!L22 -> 28.0 | M50: =IF($E$4=1,IF(ISNUMBER(M51),M51,NA()),IF($E$4=2,IF(ISNUMBER(M52),M52,NA()),NA())) -> 28.0 | N50: =IF($E$4=1,IF(ISNUMBER(N51),N51,NA()),IF($E$4=2,IF(ISNUMBER(N52),N52,NA()),NA())) -> 28.0 | O50: =IF($E$4=1,IF(ISNUMBER(O51),O51,NA()),IF($E$4=2,IF(ISNUMBER(O52),O52,NA()),NA())) -> 28.0 | P50: =IF($E$4=1,IF(ISNUMBER(P51),P51,NA()),IF($E$4=2,IF(ISNUMBER(P52),P52,NA()),NA())) -> 28.0
C51: Base | M51: 28.0 | N51: 28.0 | O51: 28.0 | P51: 28.0
C52: Downside | M52: 28.0 | N52: 28.0 | O52: 28.0 | P52: 28.0
C53: Opening receivable delay (days) — active | E53: ='Actual inputs'!E23 -> 0.0 | F53: ='Actual inputs'!F23 -> 0.0 | G53: ='Actual inputs'!G23 -> 0.0 | H53: ='Actual inputs'!H23 -> 0.0 | I53: ='Actual inputs'!I23 -> 0.0 | J53: ='Actual inputs'!J23 -> 0.0 | K53: ='Actual inputs'!K23 -> 0.0 | L53: ='Actual inputs'!L23 -> 0.0 | M53: =IF($E$4=1,IF(ISNUMBER(M54),M54,NA()),IF($E$4=2,IF(ISNUMBER(M55),M55,NA()),NA())) -> 0.0 | N53: =IF($E$4=1,IF(ISNUMBER(N54),N54,NA()),IF($E$4=2,IF(ISNUMBER(N55),N55,NA()),NA())) -> 0.0 | O53: =IF($E$4=1,IF(ISNUMBER(O54),O54,NA()),IF($E$4=2,IF(ISNUMBER(O55),O55,NA()),NA())) -> 0.0 | P53: =IF($E$4=1,IF(ISNUMBER(P54),P54,NA()),IF($E$4=2,IF(ISNUMBER(P55),P55,NA()),NA())) -> 0.0
C54: Base | M54: 0.0 | N54: 0.0 | O54: 0.0 | P54: 0.0
C55: Downside | M55: 14.0 | N55: 14.0 | O55: 14.0 | P55: 14.0
C56: New accounts — active | E56: ='Actual inputs'!E24 -> 22.0 | F56: ='Actual inputs'!F24 -> 23.0 | G56: ='Actual inputs'!G24 -> 24.0 | H56: ='Actual inputs'!H24 -> 26.0 | I56: ='Actual inputs'!I24 -> 27.0 | J56: ='Actual inputs'!J24 -> 28.0 | K56: ='Actual inputs'!K24 -> 29.0 | L56: ='Actual inputs'!L24 -> 30.0 | M56: =IF($E$4=1,IF(ISNUMBER(M57),M57,NA()),IF($E$4=2,IF(ISNUMBER(M58),M58,NA()),NA())) -> 32.0 | N56: =IF($E$4=1,IF(ISNUMBER(N57),N57,NA()),IF($E$4=2,IF(ISNUMBER(N58),N58,NA()),NA())) -> 33.0 | O56: =IF($E$4=1,IF(ISNUMBER(O57),O57,NA()),IF($E$4=2,IF(ISNUMBER(O58),O58,NA()),NA())) -> 34.0 | P56: =IF($E$4=1,IF(ISNUMBER(P57),P57,NA()),IF($E$4=2,IF(ISNUMBER(P58),P58,NA()),NA())) -> 35.0
C57: Base | M57: 32.0 | N57: 33.0 | O57: 34.0 | P57: 35.0
C58: Downside | M58: 23.0 | N58: 23.0 | O58: 24.0 | P58: 24.0
C59: New account monthly price — active | E59: ='Actual inputs'!E25 -> 580 | F59: ='Actual inputs'!F25 -> 585 | G59: ='Actual inputs'!G25 -> 590 | H59: ='Actual inputs'!H25 -> 595 | I59: ='Actual inputs'!I25 -> 600 | J59: ='Actual inputs'!J25 -> 605 | K59: ='Actual inputs'!K25 -> 610 | L59: ='Actual inputs'!L25 -> 615 | M59: =IF($E$4=1,IF(ISNUMBER(M60),M60,NA()),IF($E$4=2,IF(ISNUMBER(M61),M61,NA()),NA())) -> 620 | N59: =IF($E$4=1,IF(ISNUMBER(N60),N60,NA()),IF($E$4=2,IF(ISNUMBER(N61),N61,NA()),NA())) -> 625 | O59: =IF($E$4=1,IF(ISNUMBER(O60),O60,NA()),IF($E$4=2,IF(ISNUMBER(O61),O61,NA()),NA())) -> 630 | P59: =IF($E$4=1,IF(ISNUMBER(P60),P60,NA()),IF($E$4=2,IF(ISNUMBER(P61),P61,NA()),NA())) -> 635
C60: Base | M60: 620 | N60: 625 | O60: 630 | P60: 635
C61: Downside | M61: 590 | N61: 590 | O61: 595 | P61: 595
C62: Monthly expansion on opening MRR — active | E62: ='Actual inputs'!E26 -> 1.2% | F62: ='Actual inputs'!F26 -> 1.2% | G62: ='Actual inputs'!G26 -> 1.2% | H62: ='Actual inputs'!H26 -> 1.2% | I62: ='Actual inputs'!I26 -> 1.2% | J62: ='Actual inputs'!J26 -> 1.2% | K62: ='Actual inputs'!K26 -> 1.2% | L62: ='Actual inputs'!L26 -> 1.2% | M62: =IF($E$4=1,IF(ISNUMBER(M63),M63,NA()),IF($E$4=2,IF(ISNUMBER(M64),M64,NA()),NA())) -> 1.2% | N62: =IF($E$4=1,IF(ISNUMBER(N63),N63,NA()),IF($E$4=2,IF(ISNUMBER(N64),N64,NA()),NA())) -> 1.2% | O62: =IF($E$4=1,IF(ISNUMBER(O63),O63,NA()),IF($E$4=2,IF(ISNUMBER(O64),O64,NA()),NA())) -> 1.2% | P62: =IF($E$4=1,IF(ISNUMBER(P63),P63,NA()),IF($E$4=2,IF(ISNUMBER(P64),P64,NA()),NA())) -> 1.2%
C63: Base | M63: 1.2% | N63: 1.2% | O63: 1.2% | P63: 1.2%
C64: Downside | M64: 0.7% | N64: 0.6% | O64: 0.5% | P64: 0.5%
C65: Monthly churn on opening MRR — active | E65: ='Actual inputs'!E27 -> 1.6% | F65: ='Actual inputs'!F27 -> 1.8% | G65: ='Actual inputs'!G27 -> 1.7% | H65: ='Actual inputs'!H27 -> 1.8% | I65: ='Actual inputs'!I27 -> 1.9% | J65: ='Actual inputs'!J27 -> 2.2% | K65: ='Actual inputs'!K27 -> 2.5% | L65: ='Actual inputs'!L27 -> 2.8% | M65: =IF($E$4=1,IF(ISNUMBER(M66),M66,NA()),IF($E$4=2,IF(ISNUMBER(M67),M67,NA()),NA())) -> 2.1% | N65: =IF($E$4=1,IF(ISNUMBER(N66),N66,NA()),IF($E$4=2,IF(ISNUMBER(N67),N67,NA()),NA())) -> 2.0% | O65: =IF($E$4=1,IF(ISNUMBER(O66),O66,NA()),IF($E$4=2,IF(ISNUMBER(O67),O67,NA()),NA())) -> 1.8% | P65: =IF($E$4=1,IF(ISNUMBER(P66),P66,NA()),IF($E$4=2,IF(ISNUMBER(P67),P67,NA()),NA())) -> 1.7%
C66: Base | M66: 2.1% | N66: 2.0% | O66: 1.8% | P66: 1.7%
C67: Downside | M67: 3.5% | N67: 3.8% | O67: 4.0% | P67: 4.2%
C68: Monthly contraction on opening MRR — active | E68: ='Actual inputs'!E28 -> 0.3% | F68: ='Actual inputs'!F28 -> 0.3% | G68: ='Actual inputs'!G28 -> 0.3% | H68: ='Actual inputs'!H28 -> 0.3% | I68: ='Actual inputs'!I28 -> 0.3% | J68: ='Actual inputs'!J28 -> 0.3% | K68: ='Actual inputs'!K28 -> 0.3% | L68: ='Actual inputs'!L28 -> 0.3% | M68: =IF($E$4=1,IF(ISNUMBER(M69),M69,NA()),IF($E$4=2,IF(ISNUMBER(M70),M70,NA()),NA())) -> 0.3% | N68: =IF($E$4=1,IF(ISNUMBER(N69),N69,NA()),IF($E$4=2,IF(ISNUMBER(N70),N70,NA()),NA())) -> 0.3% | O68: =IF($E$4=1,IF(ISNUMBER(O69),O69,NA()),IF($E$4=2,IF(ISNUMBER(O70),O70,NA()),NA())) -> 0.3% | P68: =IF($E$4=1,IF(ISNUMBER(P69),P69,NA()),IF($E$4=2,IF(ISNUMBER(P70),P70,NA()),NA())) -> 0.3%
C69: Base | M69: 0.3% | N69: 0.3% | O69: 0.3% | P69: 0.3%
C70: Downside | M70: 0.8% | N70: 0.8% | O70: 1.0% | P70: 1.0%
C71: Monthly account churn — active | E71: ='Actual inputs'!E29 -> 1.8% | F71: ='Actual inputs'!F29 -> 1.8% | G71: ='Actual inputs'!G29 -> 1.8% | H71: ='Actual inputs'!H29 -> 1.8% | I71: ='Actual inputs'!I29 -> 1.8% | J71: ='Actual inputs'!J29 -> 1.8% | K71: ='Actual inputs'!K29 -> 1.8% | L71: ='Actual inputs'!L29 -> 1.8% | M71: =IF($E$4=1,IF(ISNUMBER(M72),M72,NA()),IF($E$4=2,IF(ISNUMBER(M73),M73,NA()),NA())) -> 1.8% | N71: =IF($E$4=1,IF(ISNUMBER(N72),N72,NA()),IF($E$4=2,IF(ISNUMBER(N73),N73,NA()),NA())) -> 1.8% | O71: =IF($E$4=1,IF(ISNUMBER(O72),O72,NA()),IF($E$4=2,IF(ISNUMBER(O73),O73,NA()),NA())) -> 1.8% | P71: =IF($E$4=1,IF(ISNUMBER(P72),P72,NA()),IF($E$4=2,IF(ISNUMBER(P73),P73,NA()),NA())) -> 1.8%
C72: Base | M72: 1.8% | N72: 1.8% | O72: 1.8% | P72: 1.8%
C73: Downside | M73: 2.8% | N73: 3.0% | O73: 3.2% | P73: 3.2%
C74: Annual-plan revenue share — active | E74: ='Actual inputs'!E30 -> 62.0% | F74: ='Actual inputs'!F30 -> 62.0% | G74: ='Actual inputs'!G30 -> 62.0% | H74: ='Actual inputs'!H30 -> 62.0% | I74: ='Actual inputs'!I30 -> 62.0% | J74: ='Actual inputs'!J30 -> 62.0% | K74: ='Actual inputs'!K30 -> 62.0% | L74: ='Actual inputs'!L30 -> 62.0% | M74: =IF($E$4=1,IF(ISNUMBER(M75),M75,NA()),IF($E$4=2,IF(ISNUMBER(M76),M76,NA()),NA())) -> 62.0% | N74: =IF($E$4=1,IF(ISNUMBER(N75),N75,NA()),IF($E$4=2,IF(ISNUMBER(N76),N76,NA()),NA())) -> 62.0% | O74: =IF($E$4=1,IF(ISNUMBER(O75),O75,NA()),IF($E$4=2,IF(ISNUMBER(O76),O76,NA()),NA())) -> 62.0% | P74: =IF($E$4=1,IF(ISNUMBER(P75),P75,NA()),IF($E$4=2,IF(ISNUMBER(P76),P76,NA()),NA())) -> 62.0%
C75: Base | M75: 62.0% | N75: 62.0% | O75: 62.0% | P75: 62.0%
C76: Downside | M76: 62.0% | N76: 62.0% | O76: 62.0% | P76: 62.0%
C77: Annual-plan billing season factor — active | E77: ='Actual inputs'!E31 -> 1.20 | F77: ='Actual inputs'!F31 -> 0.85 | G77: ='Actual inputs'!G31 -> 0.95 | H77: ='Actual inputs'!H31 -> 1.05 | I77: ='Actual inputs'!I31 -> 0.85 | J77: ='Actual inputs'!J31 -> 0.90 | K77: ='Actual inputs'!K31 -> 1.00 | L77: ='Actual inputs'!L31 -> 1.10 | M77: =IF($E$4=1,IF(ISNUMBER(M78),M78,NA()),IF($E$4=2,IF(ISNUMBER(M79),M79,NA()),NA())) -> 1.25 | N77: =IF($E$4=1,IF(ISNUMBER(N78),N78,NA()),IF($E$4=2,IF(ISNUMBER(N79),N79,NA()),NA())) -> 1.15 | O77: =IF($E$4=1,IF(ISNUMBER(O78),O78,NA()),IF($E$4=2,IF(ISNUMBER(O79),O79,NA()),NA())) -> 1.20 | P77: =IF($E$4=1,IF(ISNUMBER(P78),P78,NA()),IF($E$4=2,IF(ISNUMBER(P79),P79,NA()),NA())) -> 1.40
C78: Base | M78: 1.25 | N78: 1.15 | O78: 1.20 | P78: 1.40
C79: Downside | M79: 0.95 | N79: 0.90 | O79: 0.90 | P79: 1.10
C80: Completed onboardings — active | E80: ='Actual inputs'!E32 -> 14.0 | F80: ='Actual inputs'!F32 -> 15.0 | G80: ='Actual inputs'!G32 -> 15.0 | H80: ='Actual inputs'!H32 -> 16.0 | I80: ='Actual inputs'!I32 -> 16.0 | J80: ='Actual inputs'!J32 -> 17.0 | K80: ='Actual inputs'!K32 -> 18.0 | L80: ='Actual inputs'!L32 -> 18.0 | M80: =IF($E$4=1,IF(ISNUMBER(M81),M81,NA()),IF($E$4=2,IF(ISNUMBER(M82),M82,NA()),NA())) -> 19.0 | N80: =IF($E$4=1,IF(ISNUMBER(N81),N81,NA()),IF($E$4=2,IF(ISNUMBER(N82),N82,NA()),NA())) -> 19.0 | O80: =IF($E$4=1,IF(ISNUMBER(O81),O81,NA()),IF($E$4=2,IF(ISNUMBER(O82),O82,NA()),NA())) -> 20.0 | P80: =IF($E$4=1,IF(ISNUMBER(P81),P81,NA()),IF($E$4=2,IF(ISNUMBER(P82),P82,NA()),NA())) -> 21.0
C81: Base | M81: 19.0 | N81: 19.0 | O81: 20.0 | P81: 21.0
C82: Downside | M82: 15.0 | N82: 14.0 | O82: 14.0 | P82: 14.0
C83: Onboarding fee — active | E83: ='Actual inputs'!E33 -> 2,400 | F83: ='Actual inputs'!F33 -> 2,400 | G83: ='Actual inputs'!G33 -> 2,400 | H83: ='Actual inputs'!H33 -> 2,400 | I83: ='Actual inputs'!I33 -> 2,400 | J83: ='Actual inputs'!J33 -> 2,400 | K83: ='Actual inputs'!K33 -> 2,400 | L83: ='Actual inputs'!L33 -> 2,400 | M83: =IF($E$4=1,IF(ISNUMBER(M84),M84,NA()),IF($E$4=2,IF(ISNUMBER(M85),M85,NA()),NA())) -> 2,400 | N83: =IF($E$4=1,IF(ISNUMBER(N84),N84,NA()),IF($E$4=2,IF(ISNUMBER(N85),N85,NA()),NA())) -> 2,400 | O83: =IF($E$4=1,IF(ISNUMBER(O84),O84,NA()),IF($E$4=2,IF(ISNUMBER(O85),O85,NA()),NA())) -> 2,400 | P83: =IF($E$4=1,IF(ISNUMBER(P84),P84,NA()),IF($E$4=2,IF(ISNUMBER(P85),P85,NA()),NA())) -> 2,400
C84: Base | M84: 2,400 | N84: 2,400 | O84: 2,400 | P84: 2,400
C85: Downside | M85: 2,400 | N85: 2,400 | O85: 2,400 | P85: 2,400
C86: Hosting cost / recurring revenue — active | E86: ='Actual inputs'!E34 -> 9.5% | F86: ='Actual inputs'!F34 -> 9.5% | G86: ='Actual inputs'!G34 -> 9.5% | H86: ='Actual inputs'!H34 -> 9.5% | I86: ='Actual inputs'!I34 -> 9.5% | J86: ='Actual inputs'!J34 -> 9.5% | K86: ='Actual inputs'!K34 -> 9.5% | L86: ='Actual inputs'!L34 -> 9.5% | M86: =IF($E$4=1,IF(ISNUMBER(M87),M87,NA()),IF($E$4=2,IF(ISNUMBER(M88),M88,NA()),NA())) -> 9.5% | N86: =IF($E$4=1,IF(ISNUMBER(N87),N87,NA()),IF($E$4=2,IF(ISNUMBER(N88),N88,NA()),NA())) -> 9.5% | O86: =IF($E$4=1,IF(ISNUMBER(O87),O87,NA()),IF($E$4=2,IF(ISNUMBER(O88),O88,NA()),NA())) -> 9.5% | P86: =IF($E$4=1,IF(ISNUMBER(P87),P87,NA()),IF($E$4=2,IF(ISNUMBER(P88),P88,NA()),NA())) -> 9.5%
C87: Base | M87: 9.5% | N87: 9.5% | O87: 9.5% | P87: 9.5%
C88: Downside | M88: 10.5% | N88: 11.0% | O88: 11.0% | P88: 11.5%

Sheet P&L
C2: P&L
C4: Selected case | E4: ='Assumptions'!$G$4 -> Base | H4: EUR · entirely fictional
E6: Actual | F6: Actual | G6: Actual | H6: Actual | I6: Actual | J6: Actual | K6: Actual | L6: Actual | M6: Forecast | N6: Forecast | O6: Forecast | P6: Forecast
E7: 2026-01-01 | F7: 2026-02-01 | G7: 2026-03-01 | H7: 2026-04-01 | I7: 2026-05-01 | J7: 2026-06-01 | K7: 2026-07-01 | L7: 2026-08-01 | M7: 2026-09-01 | N7: 2026-10-01 | O7: 2026-11-01 | P7: 2026-12-01
C8: Subscription revenue | E8: ='Revenue'!E19 -> 193,722 | F8: ='Revenue'!F19 -> 205,274 | G8: ='Revenue'!G19 -> 217,340 | H8: ='Revenue'!H19 -> 230,304 | I8: ='Revenue'!I19 -> 243,948 | J8: ='Revenue'!J19 -> 257,702 | K8: ='Revenue'!K19 -> 271,270 | L8: ='Revenue'!L19 -> 284,583 | M8: ='Revenue'!M19 -> 299,340 | N8: ='Revenue'!N19 -> 316,134 | O8: ='Revenue'!O19 -> 334,004 | P8: ='Revenue'!P19 -> 352,992
C9: Usage / onboarding revenue | E9: ='Revenue'!E23 -> 33,600 | F9: ='Revenue'!F23 -> 36,000 | G9: ='Revenue'!G23 -> 36,000 | H9: ='Revenue'!H23 -> 38,400 | I9: ='Revenue'!I23 -> 38,400 | J9: ='Revenue'!J23 -> 40,800 | K9: ='Revenue'!K23 -> 43,200 | L9: ='Revenue'!L23 -> 43,200 | M9: ='Revenue'!M23 -> 45,600 | N9: ='Revenue'!N23 -> 45,600 | O9: ='Revenue'!O23 -> 48,000 | P9: ='Revenue'!P23 -> 50,400
C10: Enterprise platform revenue | E10: =0 -> 0 | F10: =0 -> 0 | G10: =0 -> 0 | H10: =0 -> 0 | I10: =0 -> 0 | J10: =0 -> 0 | K10: =0 -> 0 | L10: =0 -> 0 | M10: =0 -> 0 | N10: =0 -> 0 | O10: =0 -> 0 | P10: =0 -> 0
C11: Total revenue | E11: ='Revenue'!E24 -> 227,322 | F11: ='Revenue'!F24 -> 241,274 | G11: ='Revenue'!G24 -> 253,340 | H11: ='Revenue'!H24 -> 268,704 | I11: ='Revenue'!I24 -> 282,348 | J11: ='Revenue'!J24 -> 298,502 | K11: ='Revenue'!K24 -> 314,470 | L11: ='Revenue'!L24 -> 327,783 | M11: ='Revenue'!M24 -> 344,940 | N11: ='Revenue'!N24 -> 361,734 | O11: ='Revenue'!O24 -> 382,004 | P11: ='Revenue'!P24 -> 403,392
C12: Support payroll | E12: =-'Payroll'!E10 -> (37,100) | F12: =-'Payroll'!F10 -> (38,425) | G12: =-'Payroll'!G10 -> (39,750) | H12: =-'Payroll'!H10 -> (41,075) | I12: =-'Payroll'!I10 -> (42,400) | J12: =-'Payroll'!J10 -> (43,725) | K12: =-'Payroll'!K10 -> (45,050) | L12: =-'Payroll'!L10 -> (46,375) | M12: =-'Payroll'!M10 -> (47,700) | N12: =-'Payroll'!N10 -> (49,025) | O12: =-'Payroll'!O10 -> (50,350) | P12: =-'Payroll'!P10 -> (51,675)
C13: Hosting / model costs | E13: =-'Revenue'!E19*'Assumptions'!E86 -> (18,404) | F13: =-'Revenue'!F19*'Assumptions'!F86 -> (19,501) | G13: =-'Revenue'!G19*'Assumptions'!G86 -> (20,647) | H13: =-'Revenue'!H19*'Assumptions'!H86 -> (21,879) | I13: =-'Revenue'!I19*'Assumptions'!I86 -> (23,175) | J13: =-'Revenue'!J19*'Assumptions'!J86 -> (24,482) | K13: =-'Revenue'!K19*'Assumptions'!K86 -> (25,771) | L13: =-'Revenue'!L19*'Assumptions'!L86 -> (27,035) | M13: =-'Revenue'!M19*'Assumptions'!M86 -> (28,437) | N13: =-'Revenue'!N19*'Assumptions'!N86 -> (30,033) | O13: =-'Revenue'!O19*'Assumptions'!O86 -> (31,730) | P13: =-'Revenue'!P19*'Assumptions'!P86 -> (33,534)
C14: Cloud commitments and platform costs | E14: =-4800 -> (4,800) | F14: =-4800 -> (4,800) | G14: =-4800 -> (4,800) | H14: =-4800 -> (4,800) | I14: =-4800 -> (4,800) | J14: =-4800 -> (4,800) | K14: =-4800 -> (4,800) | L14: =-4800 -> (4,800) | M14: =-4800 -> (4,800) | N14: =-4800 -> (4,800) | O14: =-4800 -> (4,800) | P14: =-4800 -> (4,800)
C15: Total cost of revenue | E15: ='P&L'!E12+'P&L'!E13+'P&L'!E14 -> (60,304) | F15: ='P&L'!F12+'P&L'!F13+'P&L'!F14 -> (62,726) | G15: ='P&L'!G12+'P&L'!G13+'P&L'!G14 -> (65,197) | H15: ='P&L'!H12+'P&L'!H13+'P&L'!H14 -> (67,754) | I15: ='P&L'!I12+'P&L'!I13+'P&L'!I14 -> (70,375) | J15: ='P&L'!J12+'P&L'!J13+'P&L'!J14 -> (73,007) | K15: ='P&L'!K12+'P&L'!K13+'P&L'!K14 -> (75,621) | L15: ='P&L'!L12+'P&L'!L13+'P&L'!L14 -> (78,210) | M15: ='P&L'!M12+'P&L'!M13+'P&L'!M14 -> (80,937) | N15: ='P&L'!N12+'P&L'!N13+'P&L'!N14 -> (83,858) | O15: ='P&L'!O12+'P&L'!O13+'P&L'!O14 -> (86,880) | P15: ='P&L'!P12+'P&L'!P13+'P&L'!P14 -> (90,009)
C16: Gross profit | E16: ='P&L'!E11+'P&L'!E15 -> 167,018 | F16: ='P&L'!F11+'P&L'!F15 -> 178,548 | G16: ='P&L'!G11+'P&L'!G15 -> 188,142 | H16: ='P&L'!H11+'P&L'!H15 -> 200,950 | I16: ='P&L'!I11+'P&L'!I15 -> 211,973 | J16: ='P&L'!J11+'P&L'!J15 -> 225,495 | K16: ='P&L'!K11+'P&L'!K15 -> 238,849 | L16: ='P&L'!L11+'P&L'!L15 -> 249,572 | M16: ='P&L'!M11+'P&L'!M15 -> 264,003 | N16: ='P&L'!N11+'P&L'!N15 -> 277,876 | O16: ='P&L'!O11+'P&L'!O15 -> 295,123 | P16: ='P&L'!P11+'P&L'!P15 -> 313,383
C17: Gross margin | E17: ='P&L'!E16/'P&L'!E11 -> 73.5% | F17: ='P&L'!F16/'P&L'!F11 -> 74.0% | G17: ='P&L'!G16/'P&L'!G11 -> 74.3% | H17: ='P&L'!H16/'P&L'!H11 -> 74.8% | I17: ='P&L'!I16/'P&L'!I11 -> 75.1% | J17: ='P&L'!J16/'P&L'!J11 -> 75.5% | K17: ='P&L'!K16/'P&L'!K11 -> 76.0% | L17: ='P&L'!L16/'P&L'!L11 -> 76.1% | M17: ='P&L'!M16/'P&L'!M11 -> 76.5% | N17: ='P&L'!N16/'P&L'!N11 -> 76.8% | O17: ='P&L'!O16/'P&L'!O11 -> 77.3% | P17: ='P&L'!P16/'P&L'!P11 -> 77.7%
C18: Product development payroll | E18: =-'Payroll'!E13 -> (89,700) | F18: =-'Payroll'!F13 -> (93,150) | G18: =-'Payroll'!G13 -> (96,600) | H18: =-'Payroll'!H13 -> (100,050) | I18: =-'Payroll'!I13 -> (103,500) | J18: =-'Payroll'!J13 -> (106,950) | K18: =-'Payroll'!K13 -> (110,400) | L18: =-'Payroll'!L13 -> (113,850) | M18: =-'Payroll'!M13 -> (117,300) | N18: =-'Payroll'!N13 -> (120,750) | O18: =-'Payroll'!O13 -> (124,200) | P18: =-'Payroll'!P13 -> (127,650)
C19: Sales payroll | E19: =-'Payroll'!E16 -> (31,000) | F19: =-'Payroll'!F16 -> (32,550) | G19: =-'Payroll'!G16 -> (34,100) | H19: =-'Payroll'!H16 -> (35,650) | I19: =-'Payroll'!I16 -> (37,200) | J19: =-'Payroll'!J16 -> (38,750) | K19: =-'Payroll'!K16 -> (40,300) | L19: =-'Payroll'!L16 -> (41,850) | M19: =-'Payroll'!M16 -> (43,400) | N19: =-'Payroll'!N16 -> (44,950) | O19: =-'Payroll'!O16 -> (46,500) | P19: =-'Payroll'!P16 -> (48,050)
C20: Acquisition and brand spend | E20: =-'Assumptions'!E32 -> (24,000) | F20: =-'Assumptions'!F32 -> (25,200) | G20: =-'Assumptions'!G32 -> (26,400) | H20: =-'Assumptions'!H32 -> (27,600) | I20: =-'Assumptions'!I32 -> (28,800) | J20: =-'Assumptions'!J32 -> (30,000) | K20: =-'Assumptions'!K32 -> (31,200) | L20: =-'Assumptions'!L32 -> (32,400) | M20: =-'Assumptions'!M32 -> (33,600) | N20: =-'Assumptions'!N32 -> (34,800) | O20: =-'Assumptions'!O32 -> (36,000) | P20: =-'Assumptions'!P32 -> (37,200)
C21: Administration payroll | E21: =-'Payroll'!E19 -> (23,600) | F21: =-'Payroll'!F19 -> (23,600) | G21: =-'Payroll'!G19 -> (23,600) | H21: =-'Payroll'!H19 -> (23,600) | I21: =-'Payroll'!I19 -> (23,600) | J21: =-'Payroll'!J19 -> (23,600) | K21: =-'Payroll'!K19 -> (23,600) | L21: =-'Payroll'!L19 -> (23,600) | M21: =-'Payroll'!M19 -> (23,600) | N21: =-'Payroll'!N19 -> (23,600) | O21: =-'Payroll'!O19 -> (23,600) | P21: =-'Payroll'!P19 -> (23,600)
C22: Office and administration | E22: =-'Assumptions'!E35 -> (13,000) | F22: =-'Assumptions'!F35 -> (13,000) | G22: =-'Assumptions'!G35 -> (13,000) | H22: =-'Assumptions'!H35 -> (13,000) | I22: =-'Assumptions'!I35 -> (13,000) | J22: =-'Assumptions'!J35 -> (13,000) | K22: =-'Assumptions'!K35 -> (13,000) | L22: =-'Assumptions'!L35 -> (13,000) | M22: =-'Assumptions'!M35 -> (13,000) | N22: =-'Assumptions'!N35 -> (13,000) | O22: =-'Assumptions'!O35 -> (13,000) | P22: =-'Assumptions'!P35 -> (13,000)
C23: Professional fees | E23: =-'Assumptions'!E38 -> (6,500) | F23: =-'Assumptions'!F38 -> (6,500) | G23: =-'Assumptions'!G38 -> (6,500) | H23: =-'Assumptions'!H38 -> (6,500) | I23: =-'Assumptions'!I38 -> (6,500) | J23: =-'Assumptions'!J38 -> (6,500) | K23: =-'Assumptions'!K38 -> (6,500) | L23: =-'Assumptions'!L38 -> (6,500) | M23: =-'Assumptions'!M38 -> (6,500) | N23: =-'Assumptions'!N38 -> (6,500) | O23: =-'Assumptions'!O38 -> (6,500) | P23: =-'Assumptions'!P38 -> (6,500)
C24: Operating expenses | E24: ='P&L'!E18+'P&L'!E19+'P&L'!E20+'P&L'!E21+'P&L'!E22+'P&L'!E23 -> (187,800) | F24: ='P&L'!F18+'P&L'!F19+'P&L'!F20+'P&L'!F21+'P&L'!F22+'P&L'!F23 -> (194,000) | G24: ='P&L'!G18+'P&L'!G19+'P&L'!G20+'P&L'!G21+'P&L'!G22+'P&L'!G23 -> (200,200) | H24: ='P&L'!H18+'P&L'!H19+'P&L'!H20+'P&L'!H21+'P&L'!H22+'P&L'!H23 -> (206,400) | I24: ='P&L'!I18+'P&L'!I19+'P&L'!I20+'P&L'!I21+'P&L'!I22+'P&L'!I23 -> (212,600) | J24: ='P&L'!J18+'P&L'!J19+'P&L'!J20+'P&L'!J21+'P&L'!J22+'P&L'!J23 -> (218,800) | K24: ='P&L'!K18+'P&L'!K19+'P&L'!K20+'P&L'!K21+'P&L'!K22+'P&L'!K23 -> (225,000) | L24: ='P&L'!L18+'P&L'!L19+'P&L'!L20+'P&L'!L21+'P&L'!L22+'P&L'!L23 -> (231,200) | M24: ='P&L'!M18+'P&L'!M19+'P&L'!M20+'P&L'!M21+'P&L'!M22+'P&L'!M23 -> (237,400) | N24: ='P&L'!N18+'P&L'!N19+'P&L'!N20+'P&L'!N21+'P&L'!N22+'P&L'!N23 -> (243,600) | O24: ='P&L'!O18+'P&L'!O19+'P&L'!O20+'P&L'!O21+'P&L'!O22+'P&L'!O23 -> (249,800) | P24: ='P&L'!P18+'P&L'!P19+'P&L'!P20+'P&L'!P21+'P&L'!P22+'P&L'!P23 -> (256,000)
C25: EBITDA | E25: ='P&L'!E16+'P&L'!E24 -> (20,782) | F25: ='P&L'!F16+'P&L'!F24 -> (15,452) | G25: ='P&L'!G16+'P&L'!G24 -> (12,058) | H25: ='P&L'!H16+'P&L'!H24 -> (5,450) | I25: ='P&L'!I16+'P&L'!I24 -> (627) | J25: ='P&L'!J16+'P&L'!J24 -> 6,695 | K25: ='P&L'!K16+'P&L'!K24 -> 13,849 | L25: ='P&L'!L16+'P&L'!L24 -> 18,372 | M25: ='P&L'!M16+'P&L'!M24 -> 26,603 | N25: ='P&L'!N16+'P&L'!N24 -> 34,276 | O25: ='P&L'!O16+'P&L'!O24 -> 45,323 | P25: ='P&L'!P16+'P&L'!P24 -> 57,383
C26: EBITDA margin | E26: ='P&L'!E25/'P&L'!E11 -> (9.1%) | F26: ='P&L'!F25/'P&L'!F11 -> (6.4%) | G26: ='P&L'!G25/'P&L'!G11 -> (4.8%) | H26: ='P&L'!H25/'P&L'!H11 -> (2.0%) | I26: ='P&L'!I25/'P&L'!I11 -> (0.2%) | J26: ='P&L'!J25/'P&L'!J11 -> 2.2% | K26: ='P&L'!K25/'P&L'!K11 -> 4.4% | L26: ='P&L'!L25/'P&L'!L11 -> 5.6% | M26: ='P&L'!M25/'P&L'!M11 -> 7.7% | N26: ='P&L'!N25/'P&L'!N11 -> 9.5% | O26: ='P&L'!O25/'P&L'!O11 -> 11.9% | P26: ='P&L'!P25/'P&L'!P11 -> 14.2%
C27: Depreciation | E27: =-'Assets debt'!E12 -> (3,222) | F27: =-'Assets debt'!F12 -> (3,458) | G27: =-'Assets debt'!G12 -> (3,708) | H27: =-'Assets debt'!H12 -> (3,972) | I27: =-'Assets debt'!I12 -> (4,250) | J27: =-'Assets debt'!J12 -> (4,542) | K27: =-'Assets debt'!K12 -> (4,847) | L27: =-'Assets debt'!L12 -> (5,167) | M27: =-'Assets debt'!M12 -> (5,500) | N27: =-'Assets debt'!N12 -> (5,847) | O27: =-'Assets debt'!O12 -> (6,208) | P27: =-'Assets debt'!P12 -> (6,583)
C28: Operating profit | E28: ='P&L'!E25+'P&L'!E27 -> (24,004) | F28: ='P&L'!F25+'P&L'!F27 -> (18,910) | G28: ='P&L'!G25+'P&L'!G27 -> (15,766) | H28: ='P&L'!H25+'P&L'!H27 -> (9,422) | I28: ='P&L'!I25+'P&L'!I27 -> (4,877) | J28: ='P&L'!J25+'P&L'!J27 -> 2,154 | K28: ='P&L'!K25+'P&L'!K27 -> 9,002 | L28: ='P&L'!L25+'P&L'!L27 -> 13,206 | M28: ='P&L'!M25+'P&L'!M27 -> 21,103 | N28: ='P&L'!N25+'P&L'!N27 -> 28,429 | O28: ='P&L'!O25+'P&L'!O27 -> 39,115 | P28: ='P&L'!P25+'P&L'!P27 -> 50,799
C29: Interest | E29: =-'Assets debt'!E18 -> (1,300) | F29: =-'Assets debt'!F18 -> (1,273) | G29: =-'Assets debt'!G18 -> (1,246) | H29: =-'Assets debt'!H18 -> (1,219) | I29: =-'Assets debt'!I18 -> (1,192) | J29: =-'Assets debt'!J18 -> (1,165) | K29: =-'Assets debt'!K18 -> (1,138) | L29: =-'Assets debt'!L18 -> (1,110) | M29: =-'Assets debt'!M18 -> (1,083) | N29: =-'Assets debt'!N18 -> (1,056) | O29: =-'Assets debt'!O18 -> (1,029) | P29: =-'Assets debt'!P18 -> (1,002)
C30: Profit before tax | E30: ='P&L'!E28+'P&L'!E29 -> (25,304) | F30: ='P&L'!F28+'P&L'!F29 -> (20,183) | G30: ='P&L'!G28+'P&L'!G29 -> (17,012) | H30: ='P&L'!H28+'P&L'!H29 -> (10,641) | I30: ='P&L'!I28+'P&L'!I29 -> (6,069) | J30: ='P&L'!J28+'P&L'!J29 -> 989 | K30: ='P&L'!K28+'P&L'!K29 -> 7,865 | L30: ='P&L'!L28+'P&L'!L29 -> 12,095 | M30: ='P&L'!M28+'P&L'!M29 -> 20,019 | N30: ='P&L'!N28+'P&L'!N29 -> 27,373 | O30: ='P&L'!O28+'P&L'!O29 -> 38,086 | P30: ='P&L'!P28+'P&L'!P29 -> 49,797
C31: Illustrative current tax | E31: =-MAX(0,'P&L'!E30)*'Actual inputs'!$E$57 -> 0 | F31: =-MAX(0,'P&L'!F30)*'Actual inputs'!$E$57 -> 0 | G31: =-MAX(0,'P&L'!G30)*'Actual inputs'!$E$57 -> 0 | H31: =-MAX(0,'P&L'!H30)*'Actual inputs'!$E$57 -> 0 | I31: =-MAX(0,'P&L'!I30)*'Actual inputs'!$E$57 -> 0 | J31: =-MAX(0,'P&L'!J30)*'Actual inputs'!$E$57 -> (198) | K31: =-MAX(0,'P&L'!K30)*'Actual inputs'!$E$57 -> (1,573) | L31: =-MAX(0,'P&L'!L30)*'Actual inputs'!$E$57 -> (2,419) | M31: =-MAX(0,'P&L'!M30)*'Actual inputs'!$E$57 -> (4,004) | N31: =-MAX(0,'P&L'!N30)*'Actual inputs'!$E$57 -> (5,475) | O31: =-MAX(0,'P&L'!O30)*'Actual inputs'!$E$57 -> (7,617) | P31: =-MAX(0,'P&L'!P30)*'Actual inputs'!$E$57 -> (9,959)
C32: Net profit | E32: ='P&L'!E30+'P&L'!E31 -> (25,304) | F32: ='P&L'!F30+'P&L'!F31 -> (20,183) | G32: ='P&L'!G30+'P&L'!G31 -> (17,012) | H32: ='P&L'!H30+'P&L'!H31 -> (10,641) | I32: ='P&L'!I30+'P&L'!I31 -> (6,069) | J32: ='P&L'!J30+'P&L'!J31 -> 791 | K32: ='P&L'!K30+'P&L'!K31 -> 6,292 | L32: ='P&L'!L30+'P&L'!L31 -> 9,676 | M32: ='P&L'!M30+'P&L'!M31 -> 16,015 | N32: ='P&L'!N30+'P&L'!N31 -> 21,898 | O32: ='P&L'!O30+'P&L'!O31 -> 30,469 | P32: ='P&L'!P30+'P&L'!P31 -> 39,838

Sheet Balance sheet
C2: Balance sheet
C4: Selected case | E4: ='Assumptions'!$G$4 -> Base | H4: EUR · entirely fictional
E6: Actual | F6: Actual | G6: Actual | H6: Actual | I6: Actual | J6: Actual | K6: Actual | L6: Actual | M6: Forecast | N6: Forecast | O6: Forecast | P6: Forecast
E7: 2026-01-01 | F7: 2026-02-01 | G7: 2026-03-01 | H7: 2026-04-01 | I7: 2026-05-01 | J7: 2026-06-01 | K7: 2026-07-01 | L7: 2026-08-01 | M7: 2026-09-01 | N7: 2026-10-01 | O7: 2026-11-01 | P7: 2026-12-01
C8: Cash / (unfunded requirement) | E8: ='Cash flow'!E23 -> 1,581,940 | F8: ='Cash flow'!F23 -> 1,525,625 | G8: ='Cash flow'!G23 -> 1,472,583 | H8: ='Cash flow'!H23 -> 1,451,554 | I8: ='Cash flow'!I23 -> 1,405,048 | J8: ='Cash flow'!J23 -> 1,362,102 | K8: ='Cash flow'!K23 -> 1,351,814 | L8: ='Cash flow'!L23 -> 1,363,220 | M8: ='Cash flow'!M23 -> 1,330,683 | N8: ='Cash flow'!N23 -> 1,386,413 | O8: ='Cash flow'!O23 -> 1,422,093 | P8: ='Cash flow'!P23 -> 1,492,393
C9: Receivables | E9: ='Working capital'!E11 -> 145,625 | F9: ='Working capital'!F11 -> 156,250 | G9: ='Working capital'!G11 -> 166,875 | H9: ='Working capital'!H11 -> 177,500 | I9: ='Working capital'!I11 -> 188,125 | J9: ='Working capital'!J11 -> 198,750 | K9: ='Working capital'!K11 -> 209,375 | L9: ='Working capital'!L11 -> 220,000 | M9: ='Working capital'!M11 -> 326,115 | N9: ='Working capital'!N11 -> 315,431 | O9: ='Working capital'!O11 -> 352,850 | P9: ='Working capital'!P11 -> 395,914
C10: Prepayments | E10: ='Working capital'!E17 -> 30,000 | F10: ='Working capital'!F17 -> 30,000 | G10: ='Working capital'!G17 -> 30,000 | H10: ='Working capital'!H17 -> 30,000 | I10: ='Working capital'!I17 -> 30,000 | J10: ='Working capital'!J17 -> 30,000 | K10: ='Working capital'!K17 -> 30,000 | L10: ='Working capital'!L17 -> 30,000 | M10: ='Working capital'!M17 -> 30,000 | N10: ='Working capital'!N17 -> 30,000 | O10: ='Working capital'!O17 -> 30,000 | P10: ='Working capital'!P17 -> 30,000
C11: Tax prepayment | E11: =MAX(0,-'Assets debt'!E22) -> 0 | F11: =MAX(0,-'Assets debt'!F22) -> 0 | G11: =MAX(0,-'Assets debt'!G22) -> 0 | H11: =MAX(0,-'Assets debt'!H22) -> 0 | I11: =MAX(0,-'Assets debt'!I22) -> 0 | J11: =MAX(0,-'Assets debt'!J22) -> 3,802 | K11: =MAX(0,-'Assets debt'!K22) -> 2,229 | L11: =MAX(0,-'Assets debt'!L22) -> 0 | M11: =MAX(0,-'Assets debt'!M22) -> 7,806 | N11: =MAX(0,-'Assets debt'!N22) -> 2,332 | O11: =MAX(0,-'Assets debt'!O22) -> 0 | P11: =MAX(0,-'Assets debt'!P22) -> 0
C12: Current assets | E12: ='Balance sheet'!E8+'Balance sheet'!E9+'Balance sheet'!E10+'Balance sheet'!E11 -> 1,757,565 | F12: ='Balance sheet'!F8+'Balance sheet'!F9+'Balance sheet'!F10+'Balance sheet'!F11 -> 1,711,875 | G12: ='Balance sheet'!G8+'Balance sheet'!G9+'Balance sheet'!G10+'Balance sheet'!G11 -> 1,669,458 | H12: ='Balance sheet'!H8+'Balance sheet'!H9+'Balance sheet'!H10+'Balance sheet'!H11 -> 1,659,054 | I12: ='Balance sheet'!I8+'Balance sheet'!I9+'Balance sheet'!I10+'Balance sheet'!I11 -> 1,623,173 | J12: ='Balance sheet'!J8+'Balance sheet'!J9+'Balance sheet'!J10+'Balance sheet'!J11 -> 1,594,654 | K12: ='Balance sheet'!K8+'Balance sheet'!K9+'Balance sheet'!K10+'Balance sheet'!K11 -> 1,593,418 | L12: ='Balance sheet'!L8+'Balance sheet'!L9+'Balance sheet'!L10+'Balance sheet'!L11 -> 1,613,220 | M12: ='Balance sheet'!M8+'Balance sheet'!M9+'Balance sheet'!M10+'Balance sheet'!M11 -> 1,694,604 | N12: ='Balance sheet'!N8+'Balance sheet'!N9+'Balance sheet'!N10+'Balance sheet'!N11 -> 1,734,176 | O12: ='Balance sheet'!O8+'Balance sheet'!O9+'Balance sheet'!O10+'Balance sheet'!O11 -> 1,804,943 | P12: ='Balance sheet'!P8+'Balance sheet'!P9+'Balance sheet'!P10+'Balance sheet'!P11 -> 1,918,308
C13: Fixed assets at cost | E13: ='Assets debt'!E10 -> 188,000 | F13: ='Assets debt'!F10 -> 196,500 | G13: ='Assets debt'!G10 -> 205,500 | H13: ='Assets debt'!H10 -> 215,000 | I13: ='Assets debt'!I10 -> 225,000 | J13: ='Assets debt'!J10 -> 235,500 | K13: ='Assets debt'!K10 -> 246,500 | L13: ='Assets debt'!L10 -> 258,000 | M13: ='Assets debt'!M10 -> 270,000 | N13: ='Assets debt'!N10 -> 282,500 | O13: ='Assets debt'!O10 -> 295,500 | P13: ='Assets debt'!P10 -> 309,000
C14: Accumulated depreciation | E14: ='Assets debt'!E13 -> 51,222 | F14: ='Assets debt'!F13 -> 54,681 | G14: ='Assets debt'!G13 -> 58,389 | H14: ='Assets debt'!H13 -> 62,361 | I14: ='Assets debt'!I13 -> 66,611 | J14: ='Assets debt'!J13 -> 71,153 | K14: ='Assets debt'!K13 -> 76,000 | L14: ='Assets debt'!L13 -> 81,167 | M14: ='Assets debt'!M13 -> 86,667 | N14: ='Assets debt'!N13 -> 92,514 | O14: ='Assets debt'!O13 -> 98,722 | P14: ='Assets debt'!P13 -> 105,306
C15: Net fixed assets | E15: ='Assets debt'!E14 -> 136,778 | F15: ='Assets debt'!F14 -> 141,819 | G15: ='Assets debt'!G14 -> 147,111 | H15: ='Assets debt'!H14 -> 152,639 | I15: ='Assets debt'!I14 -> 158,389 | J15: ='Assets debt'!J14 -> 164,347 | K15: ='Assets debt'!K14 -> 170,500 | L15: ='Assets debt'!L14 -> 176,833 | M15: ='Assets debt'!M14 -> 183,333 | N15: ='Assets debt'!N14 -> 189,986 | O15: ='Assets debt'!O14 -> 196,778 | P15: ='Assets debt'!P14 -> 203,694
C16: Total assets | E16: ='Balance sheet'!E12+'Balance sheet'!E15 -> 1,894,343 | F16: ='Balance sheet'!F12+'Balance sheet'!F15 -> 1,853,694 | G16: ='Balance sheet'!G12+'Balance sheet'!G15 -> 1,816,570 | H16: ='Balance sheet'!H12+'Balance sheet'!H15 -> 1,811,693 | I16: ='Balance sheet'!I12+'Balance sheet'!I15 -> 1,781,562 | J16: ='Balance sheet'!J12+'Balance sheet'!J15 -> 1,759,001 | K16: ='Balance sheet'!K12+'Balance sheet'!K15 -> 1,763,918 | L16: ='Balance sheet'!L12+'Balance sheet'!L15 -> 1,790,053 | M16: ='Balance sheet'!M12+'Balance sheet'!M15 -> 1,877,938 | N16: ='Balance sheet'!N12+'Balance sheet'!N15 -> 1,924,162 | O16: ='Balance sheet'!O12+'Balance sheet'!O15 -> 2,001,721 | P16: ='Balance sheet'!P12+'Balance sheet'!P15 -> 2,122,002
C17: Payables | E17: ='Working capital'!E16 -> 38,625 | F17: ='Working capital'!F16 -> 42,250 | G17: ='Working capital'!G16 -> 45,875 | H17: ='Working capital'!H16 -> 49,500 | I17: ='Working capital'!I16 -> 53,125 | J17: ='Working capital'!J16 -> 56,750 | K17: ='Working capital'!K16 -> 60,375 | L17: ='Working capital'!L16 -> 64,000 | M17: ='Working capital'!M16 -> 94,661 | N17: ='Working capital'!N16 -> 94,587 | O17: ='Working capital'!O16 -> 99,975 | P17: ='Working capital'!P16 -> 99,917
C18: Payroll accruals | E18: ='Working capital'!E18 -> 32,000 | F18: ='Working capital'!F18 -> 32,000 | G18: ='Working capital'!G18 -> 32,000 | H18: ='Working capital'!H18 -> 32,000 | I18: ='Working capital'!I18 -> 32,000 | J18: ='Working capital'!J18 -> 32,000 | K18: ='Working capital'!K18 -> 32,000 | L18: ='Working capital'!L18 -> 32,000 | M18: ='Working capital'!M18 -> 32,000 | N18: ='Working capital'!N18 -> 32,000 | O18: ='Working capital'!O18 -> 32,000 | P18: ='Working capital'!P18 -> 32,000
C19: Deferred revenue | E19: ='Revenue'!E27 -> 414,022 | F19: ='Revenue'!F27 -> 394,931 | G19: ='Revenue'!G27 -> 388,194 | H19: ='Revenue'!H27 -> 395,333 | I19: ='Revenue'!I27 -> 372,646 | J19: ='Revenue'!J27 -> 356,668 | K19: ='Revenue'!K27 -> 356,668 | L19: ='Revenue'!L27 -> 374,312 | M19: ='Revenue'!M27 -> 420,710 | N19: ='Revenue'!N27 -> 450,111 | O19: ='Revenue'!O27 -> 491,527 | P19: ='Revenue'!P27 -> 579,069
C20: Tax payable | E20: =MAX(0,'Assets debt'!E22) -> 18,000 | F20: =MAX(0,'Assets debt'!F22) -> 18,000 | G20: =MAX(0,'Assets debt'!G22) -> 6,000 | H20: =MAX(0,'Assets debt'!H22) -> 6,000 | I20: =MAX(0,'Assets debt'!I22) -> 6,000 | J20: =MAX(0,'Assets debt'!J22) -> 0 | K20: =MAX(0,'Assets debt'!K22) -> 0 | L20: =MAX(0,'Assets debt'!L22) -> 190 | M20: =MAX(0,'Assets debt'!M22) -> 0 | N20: =MAX(0,'Assets debt'!N22) -> 0 | O20: =MAX(0,'Assets debt'!O22) -> 5,285 | P20: =MAX(0,'Assets debt'!P22) -> 3,245
C21: Current operating liabilities | E21: ='Balance sheet'!E17+'Balance sheet'!E18+'Balance sheet'!E19+'Balance sheet'!E20 -> 502,647 | F21: ='Balance sheet'!F17+'Balance sheet'!F18+'Balance sheet'!F19+'Balance sheet'!F20 -> 487,181 | G21: ='Balance sheet'!G17+'Balance sheet'!G18+'Balance sheet'!G19+'Balance sheet'!G20 -> 472,069 | H21: ='Balance sheet'!H17+'Balance sheet'!H18+'Balance sheet'!H19+'Balance sheet'!H20 -> 482,833 | I21: ='Balance sheet'!I17+'Balance sheet'!I18+'Balance sheet'!I19+'Balance sheet'!I20 -> 463,771 | J21: ='Balance sheet'!J17+'Balance sheet'!J18+'Balance sheet'!J19+'Balance sheet'!J20 -> 445,418 | K21: ='Balance sheet'!K17+'Balance sheet'!K18+'Balance sheet'!K19+'Balance sheet'!K20 -> 449,043 | L21: ='Balance sheet'!L17+'Balance sheet'!L18+'Balance sheet'!L19+'Balance sheet'!L20 -> 470,502 | M21: ='Balance sheet'!M17+'Balance sheet'!M18+'Balance sheet'!M19+'Balance sheet'!M20 -> 547,372 | N21: ='Balance sheet'!N17+'Balance sheet'!N18+'Balance sheet'!N19+'Balance sheet'!N20 -> 576,698 | O21: ='Balance sheet'!O17+'Balance sheet'!O18+'Balance sheet'!O19+'Balance sheet'!O20 -> 628,787 | P21: ='Balance sheet'!P17+'Balance sheet'!P18+'Balance sheet'!P19+'Balance sheet'!P20 -> 714,231
C22: Debt | E22: ='Assets debt'!E17 -> 235,000 | F22: ='Assets debt'!F17 -> 230,000 | G22: ='Assets debt'!G17 -> 225,000 | H22: ='Assets debt'!H17 -> 220,000 | I22: ='Assets debt'!I17 -> 215,000 | J22: ='Assets debt'!J17 -> 210,000 | K22: ='Assets debt'!K17 -> 205,000 | L22: ='Assets debt'!L17 -> 200,000 | M22: ='Assets debt'!M17 -> 195,000 | N22: ='Assets debt'!N17 -> 190,000 | O22: ='Assets debt'!O17 -> 185,000 | P22: ='Assets debt'!P17 -> 180,000
C23: Total liabilities | E23: ='Balance sheet'!E21+'Balance sheet'!E22 -> 737,647 | F23: ='Balance sheet'!F21+'Balance sheet'!F22 -> 717,181 | G23: ='Balance sheet'!G21+'Balance sheet'!G22 -> 697,069 | H23: ='Balance sheet'!H21+'Balance sheet'!H22 -> 702,833 | I23: ='Balance sheet'!I21+'Balance sheet'!I22 -> 678,771 | J23: ='Balance sheet'!J21+'Balance sheet'!J22 -> 655,418 | K23: ='Balance sheet'!K21+'Balance sheet'!K22 -> 654,043 | L23: ='Balance sheet'!L21+'Balance sheet'!L22 -> 670,502 | M23: ='Balance sheet'!M21+'Balance sheet'!M22 -> 742,372 | N23: ='Balance sheet'!N21+'Balance sheet'!N22 -> 766,698 | O23: ='Balance sheet'!O21+'Balance sheet'!O22 -> 813,787 | P23: ='Balance sheet'!P21+'Balance sheet'!P22 -> 894,231
C24: Share capital | E24: ='Actual inputs'!$E$50 -> 500,000 | F24: ='Actual inputs'!$E$50 -> 500,000 | G24: ='Actual inputs'!$E$50 -> 500,000 | H24: ='Actual inputs'!$E$50 -> 500,000 | I24: ='Actual inputs'!$E$50 -> 500,000 | J24: ='Actual inputs'!$E$50 -> 500,000 | K24: ='Actual inputs'!$E$50 -> 500,000 | L24: ='Actual inputs'!$E$50 -> 500,000 | M24: ='Actual inputs'!$E$50 -> 500,000 | N24: ='Actual inputs'!$E$50 -> 500,000 | O24: ='Actual inputs'!$E$50 -> 500,000 | P24: ='Actual inputs'!$E$50 -> 500,000
C25: Retained earnings | E25: ='Actual inputs'!$E$61+'P&L'!E32 -> 656,696 | F25: ='Balance sheet'!E25+'P&L'!F32 -> 636,513 | G25: ='Balance sheet'!F25+'P&L'!G32 -> 619,501 | H25: ='Balance sheet'!G25+'P&L'!H32 -> 608,860 | I25: ='Balance sheet'!H25+'P&L'!I32 -> 602,791 | J25: ='Balance sheet'!I25+'P&L'!J32 -> 603,583 | K25: ='Balance sheet'!J25+'P&L'!K32 -> 609,874 | L25: ='Balance sheet'!K25+'P&L'!L32 -> 619,551 | M25: ='Balance sheet'!L25+'P&L'!M32 -> 635,566 | N25: ='Balance sheet'!M25+'P&L'!N32 -> 657,464 | O25: ='Balance sheet'!N25+'P&L'!O32 -> 687,933 | P25: ='Balance sheet'!O25+'P&L'!P32 -> 727,771
C26: Equity | E26: ='Balance sheet'!E24+'Balance sheet'!E25 -> 1,156,696 | F26: ='Balance sheet'!F24+'Balance sheet'!F25 -> 1,136,513 | G26: ='Balance sheet'!G24+'Balance sheet'!G25 -> 1,119,501 | H26: ='Balance sheet'!H24+'Balance sheet'!H25 -> 1,108,860 | I26: ='Balance sheet'!I24+'Balance sheet'!I25 -> 1,102,791 | J26: ='Balance sheet'!J24+'Balance sheet'!J25 -> 1,103,583 | K26: ='Balance sheet'!K24+'Balance sheet'!K25 -> 1,109,874 | L26: ='Balance sheet'!L24+'Balance sheet'!L25 -> 1,119,551 | M26: ='Balance sheet'!M24+'Balance sheet'!M25 -> 1,135,566 | N26: ='Balance sheet'!N24+'Balance sheet'!N25 -> 1,157,464 | O26: ='Balance sheet'!O24+'Balance sheet'!O25 -> 1,187,933 | P26: ='Balance sheet'!P24+'Balance sheet'!P25 -> 1,227,771
C27: Liabilities and equity | E27: ='Balance sheet'!E23+'Balance sheet'!E26 -> 1,894,343 | F27: ='Balance sheet'!F23+'Balance sheet'!F26 -> 1,853,694 | G27: ='Balance sheet'!G23+'Balance sheet'!G26 -> 1,816,570 | H27: ='Balance sheet'!H23+'Balance sheet'!H26 -> 1,811,693 | I27: ='Balance sheet'!I23+'Balance sheet'!I26 -> 1,781,562 | J27: ='Balance sheet'!J23+'Balance sheet'!J26 -> 1,759,001 | K27: ='Balance sheet'!K23+'Balance sheet'!K26 -> 1,763,918 | L27: ='Balance sheet'!L23+'Balance sheet'!L26 -> 1,790,053 | M27: ='Balance sheet'!M23+'Balance sheet'!M26 -> 1,877,938 | N27: ='Balance sheet'!N23+'Balance sheet'!N26 -> 1,924,162 | O27: ='Balance sheet'!O23+'Balance sheet'!O26 -> 2,001,721 | P27: ='Balance sheet'!P23+'Balance sheet'!P26 -> 2,122,002

Sheet Cash flow
C2: Cash flow
C4: Selected case | E4: ='Assumptions'!$G$4 -> Base | H4: EUR · entirely fictional
E6: Actual | F6: Actual | G6: Actual | H6: Actual | I6: Actual | J6: Actual | K6: Actual | L6: Actual | M6: Forecast | N6: Forecast | O6: Forecast | P6: Forecast
E7: 2026-01-01 | F7: 2026-02-01 | G7: 2026-03-01 | H7: 2026-04-01 | I7: 2026-05-01 | J7: 2026-06-01 | K7: 2026-07-01 | L7: 2026-08-01 | M7: 2026-09-01 | N7: 2026-10-01 | O7: 2026-11-01 | P7: 2026-12-01
C8: Net profit | E8: ='P&L'!E32 -> (25,304) | F8: ='P&L'!F32 -> (20,183) | G8: ='P&L'!G32 -> (17,012) | H8: ='P&L'!H32 -> (10,641) | I8: ='P&L'!I32 -> (6,069) | J8: ='P&L'!J32 -> 791 | K8: ='P&L'!K32 -> 6,292 | L8: ='P&L'!L32 -> 9,676 | M8: ='P&L'!M32 -> 16,015 | N8: ='P&L'!N32 -> 21,898 | O8: ='P&L'!O32 -> 30,469 | P8: ='P&L'!P32 -> 39,838
C9: Depreciation add-back | E9: ='Assets debt'!E12 -> 3,222 | F9: ='Assets debt'!F12 -> 3,458 | G9: ='Assets debt'!G12 -> 3,708 | H9: ='Assets debt'!H12 -> 3,972 | I9: ='Assets debt'!I12 -> 4,250 | J9: ='Assets debt'!J12 -> 4,542 | K9: ='Assets debt'!K12 -> 4,847 | L9: ='Assets debt'!L12 -> 5,167 | M9: ='Assets debt'!M12 -> 5,500 | N9: ='Assets debt'!N12 -> 5,847 | O9: ='Assets debt'!O12 -> 6,208 | P9: ='Assets debt'!P12 -> 6,583
C10: Receivables cash effect | E10: ='Actual inputs'!$E$41-'Balance sheet'!E9 -> (10,625) | F10: ='Balance sheet'!E9-'Balance sheet'!F9 -> (10,625) | G10: ='Balance sheet'!F9-'Balance sheet'!G9 -> (10,625) | H10: ='Balance sheet'!G9-'Balance sheet'!H9 -> (10,625) | I10: ='Balance sheet'!H9-'Balance sheet'!I9 -> (10,625) | J10: ='Balance sheet'!I9-'Balance sheet'!J9 -> (10,625) | K10: ='Balance sheet'!J9-'Balance sheet'!K9 -> (10,625) | L10: ='Balance sheet'!K9-'Balance sheet'!L9 -> (10,625) | M10: ='Balance sheet'!L9-'Balance sheet'!M9 -> (106,115) | N10: ='Balance sheet'!M9-'Balance sheet'!N9 -> 10,684 | O10: ='Balance sheet'!N9-'Balance sheet'!O9 -> (37,419) | P10: ='Balance sheet'!O9-'Balance sheet'!P9 -> (43,064)
C11: Prepayment cash effect | E11: ='Actual inputs'!$E$44-'Balance sheet'!E10 -> 0 | F11: ='Balance sheet'!E10-'Balance sheet'!F10 -> 0 | G11: ='Balance sheet'!F10-'Balance sheet'!G10 -> 0 | H11: ='Balance sheet'!G10-'Balance sheet'!H10 -> 0 | I11: ='Balance sheet'!H10-'Balance sheet'!I10 -> 0 | J11: ='Balance sheet'!I10-'Balance sheet'!J10 -> 0 | K11: ='Balance sheet'!J10-'Balance sheet'!K10 -> 0 | L11: ='Balance sheet'!K10-'Balance sheet'!L10 -> 0 | M11: ='Balance sheet'!L10-'Balance sheet'!M10 -> 0 | N11: ='Balance sheet'!M10-'Balance sheet'!N10 -> 0 | O11: ='Balance sheet'!N10-'Balance sheet'!O10 -> 0 | P11: ='Balance sheet'!O10-'Balance sheet'!P10 -> 0
C12: Payable cash effect | E12: ='Balance sheet'!E17-'Actual inputs'!$E$42 -> 3,625 | F12: ='Balance sheet'!F17-'Balance sheet'!E17 -> 3,625 | G12: ='Balance sheet'!G17-'Balance sheet'!F17 -> 3,625 | H12: ='Balance sheet'!H17-'Balance sheet'!G17 -> 3,625 | I12: ='Balance sheet'!I17-'Balance sheet'!H17 -> 3,625 | J12: ='Balance sheet'!J17-'Balance sheet'!I17 -> 3,625 | K12: ='Balance sheet'!K17-'Balance sheet'!J17 -> 3,625 | L12: ='Balance sheet'!L17-'Balance sheet'!K17 -> 3,625 | M12: ='Balance sheet'!M17-'Balance sheet'!L17 -> 30,661 | N12: ='Balance sheet'!N17-'Balance sheet'!M17 -> (74) | O12: ='Balance sheet'!O17-'Balance sheet'!N17 -> 5,388 | P12: ='Balance sheet'!P17-'Balance sheet'!O17 -> (58)
C13: Accrual cash effect | E13: ='Balance sheet'!E18-'Actual inputs'!$E$45 -> 0 | F13: ='Balance sheet'!F18-'Balance sheet'!E18 -> 0 | G13: ='Balance sheet'!G18-'Balance sheet'!F18 -> 0 | H13: ='Balance sheet'!H18-'Balance sheet'!G18 -> 0 | I13: ='Balance sheet'!I18-'Balance sheet'!H18 -> 0 | J13: ='Balance sheet'!J18-'Balance sheet'!I18 -> 0 | K13: ='Balance sheet'!K18-'Balance sheet'!J18 -> 0 | L13: ='Balance sheet'!L18-'Balance sheet'!K18 -> 0 | M13: ='Balance sheet'!M18-'Balance sheet'!L18 -> 0 | N13: ='Balance sheet'!N18-'Balance sheet'!M18 -> 0 | O13: ='Balance sheet'!O18-'Balance sheet'!N18 -> 0 | P13: ='Balance sheet'!P18-'Balance sheet'!O18 -> 0
C14: Deferred-revenue cash effect | E14: ='Balance sheet'!E19-'Actual inputs'!$E$43 -> 24,022 | F14: ='Balance sheet'!F19-'Balance sheet'!E19 -> (19,090) | G14: ='Balance sheet'!G19-'Balance sheet'!F19 -> (6,738) | H14: ='Balance sheet'!H19-'Balance sheet'!G19 -> 7,139 | I14: ='Balance sheet'!I19-'Balance sheet'!H19 -> (22,687) | J14: ='Balance sheet'!J19-'Balance sheet'!I19 -> (15,978) | K14: ='Balance sheet'!K19-'Balance sheet'!J19 -> 0 | L14: ='Balance sheet'!L19-'Balance sheet'!K19 -> 17,644 | M14: ='Balance sheet'!M19-'Balance sheet'!L19 -> 46,398 | N14: ='Balance sheet'!N19-'Balance sheet'!M19 -> 29,400 | O14: ='Balance sheet'!O19-'Balance sheet'!N19 -> 41,416 | P14: ='Balance sheet'!P19-'Balance sheet'!O19 -> 87,542
C15: Current-tax balance cash effect | E15: ='Assets debt'!E22-'Assets debt'!E19 -> 0 | F15: ='Assets debt'!F22-'Assets debt'!F19 -> 0 | G15: ='Assets debt'!G22-'Assets debt'!G19 -> (12,000) | H15: ='Assets debt'!H22-'Assets debt'!H19 -> 0 | I15: ='Assets debt'!I22-'Assets debt'!I19 -> 0 | J15: ='Assets debt'!J22-'Assets debt'!J19 -> (9,802) | K15: ='Assets debt'!K22-'Assets debt'!K19 -> 1,573 | L15: ='Assets debt'!L22-'Assets debt'!L19 -> 2,419 | M15: ='Assets debt'!M22-'Assets debt'!M19 -> (7,996) | N15: ='Assets debt'!N22-'Assets debt'!N19 -> 5,475 | O15: ='Assets debt'!O22-'Assets debt'!O19 -> 7,617 | P15: ='Assets debt'!P22-'Assets debt'!P19 -> (2,041)
C16: Operating cash flow | E16: ='Cash flow'!E8+'Cash flow'!E9+'Cash flow'!E10+'Cash flow'!E11+'Cash flow'!E12+'Cash flow'!E13+'Cash flow'!E14+'Cash flow'!E15 -> (5,060) | F16: ='Cash flow'!F8+'Cash flow'!F9+'Cash flow'!F10+'Cash flow'!F11+'Cash flow'!F12+'Cash flow'!F13+'Cash flow'!F14+'Cash flow'!F15 -> (42,815) | G16: ='Cash flow'!G8+'Cash flow'!G9+'Cash flow'!G10+'Cash flow'!G11+'Cash flow'!G12+'Cash flow'!G13+'Cash flow'!G14+'Cash flow'!G15 -> (39,041) | H16: ='Cash flow'!H8+'Cash flow'!H9+'Cash flow'!H10+'Cash flow'!H11+'Cash flow'!H12+'Cash flow'!H13+'Cash flow'!H14+'Cash flow'!H15 -> (6,529) | I16: ='Cash flow'!I8+'Cash flow'!I9+'Cash flow'!I10+'Cash flow'!I11+'Cash flow'!I12+'Cash flow'!I13+'Cash flow'!I14+'Cash flow'!I15 -> (31,506) | J16: ='Cash flow'!J8+'Cash flow'!J9+'Cash flow'!J10+'Cash flow'!J11+'Cash flow'!J12+'Cash flow'!J13+'Cash flow'!J14+'Cash flow'!J15 -> (27,447) | K16: ='Cash flow'!K8+'Cash flow'!K9+'Cash flow'!K10+'Cash flow'!K11+'Cash flow'!K12+'Cash flow'!K13+'Cash flow'!K14+'Cash flow'!K15 -> 5,712 | L16: ='Cash flow'!L8+'Cash flow'!L9+'Cash flow'!L10+'Cash flow'!L11+'Cash flow'!L12+'Cash flow'!L13+'Cash flow'!L14+'Cash flow'!L15 -> 27,906 | M16: ='Cash flow'!M8+'Cash flow'!M9+'Cash flow'!M10+'Cash flow'!M11+'Cash flow'!M12+'Cash flow'!M13+'Cash flow'!M14+'Cash flow'!M15 -> (15,536) | N16: ='Cash flow'!N8+'Cash flow'!N9+'Cash flow'!N10+'Cash flow'!N11+'Cash flow'!N12+'Cash flow'!N13+'Cash flow'!N14+'Cash flow'!N15 -> 73,230 | O16: ='Cash flow'!O8+'Cash flow'!O9+'Cash flow'!O10+'Cash flow'!O11+'Cash flow'!O12+'Cash flow'!O13+'Cash flow'!O14+'Cash flow'!O15 -> 53,680 | P16: ='Cash flow'!P8+'Cash flow'!P9+'Cash flow'!P10+'Cash flow'!P11+'Cash flow'!P12+'Cash flow'!P13+'Cash flow'!P14+'Cash flow'!P15 -> 88,801
C17: Capital expenditure | E17: =-'Assets debt'!E9 -> (8,000) | F17: =-'Assets debt'!F9 -> (8,500) | G17: =-'Assets debt'!G9 -> (9,000) | H17: =-'Assets debt'!H9 -> (9,500) | I17: =-'Assets debt'!I9 -> (10,000) | J17: =-'Assets debt'!J9 -> (10,500) | K17: =-'Assets debt'!K9 -> (11,000) | L17: =-'Assets debt'!L9 -> (11,500) | M17: =-'Assets debt'!M9 -> (12,000) | N17: =-'Assets debt'!N9 -> (12,500) | O17: =-'Assets debt'!O9 -> (13,000) | P17: =-'Assets debt'!P9 -> (13,500)
C18: Investing cash flow | E18: ='Cash flow'!E17 -> (8,000) | F18: ='Cash flow'!F17 -> (8,500) | G18: ='Cash flow'!G17 -> (9,000) | H18: ='Cash flow'!H17 -> (9,500) | I18: ='Cash flow'!I17 -> (10,000) | J18: ='Cash flow'!J17 -> (10,500) | K18: ='Cash flow'!K17 -> (11,000) | L18: ='Cash flow'!L17 -> (11,500) | M18: ='Cash flow'!M17 -> (12,000) | N18: ='Cash flow'!N17 -> (12,500) | O18: ='Cash flow'!O17 -> (13,000) | P18: ='Cash flow'!P17 -> (13,500)
C19: Principal repayment | E19: =-'Assets debt'!E16 -> (5,000) | F19: =-'Assets debt'!F16 -> (5,000) | G19: =-'Assets debt'!G16 -> (5,000) | H19: =-'Assets debt'!H16 -> (5,000) | I19: =-'Assets debt'!I16 -> (5,000) | J19: =-'Assets debt'!J16 -> (5,000) | K19: =-'Assets debt'!K16 -> (5,000) | L19: =-'Assets debt'!L16 -> (5,000) | M19: =-'Assets debt'!M16 -> (5,000) | N19: =-'Assets debt'!N16 -> (5,000) | O19: =-'Assets debt'!O16 -> (5,000) | P19: =-'Assets debt'!P16 -> (5,000)
C20: Financing cash flow | E20: ='Cash flow'!E19 -> (5,000) | F20: ='Cash flow'!F19 -> (5,000) | G20: ='Cash flow'!G19 -> (5,000) | H20: ='Cash flow'!H19 -> (5,000) | I20: ='Cash flow'!I19 -> (5,000) | J20: ='Cash flow'!J19 -> (5,000) | K20: ='Cash flow'!K19 -> (5,000) | L20: ='Cash flow'!L19 -> (5,000) | M20: ='Cash flow'!M19 -> (5,000) | N20: ='Cash flow'!N19 -> (5,000) | O20: ='Cash flow'!O19 -> (5,000) | P20: ='Cash flow'!P19 -> (5,000)
C21: Net cash change | E21: ='Cash flow'!E16+'Cash flow'!E18+'Cash flow'!E20 -> (18,060) | F21: ='Cash flow'!F16+'Cash flow'!F18+'Cash flow'!F20 -> (56,315) | G21: ='Cash flow'!G16+'Cash flow'!G18+'Cash flow'!G20 -> (53,041) | H21: ='Cash flow'!H16+'Cash flow'!H18+'Cash flow'!H20 -> (21,029) | I21: ='Cash flow'!I16+'Cash flow'!I18+'Cash flow'!I20 -> (46,506) | J21: ='Cash flow'!J16+'Cash flow'!J18+'Cash flow'!J20 -> (42,947) | K21: ='Cash flow'!K16+'Cash flow'!K18+'Cash flow'!K20 -> (10,288) | L21: ='Cash flow'!L16+'Cash flow'!L18+'Cash flow'!L20 -> 11,406 | M21: ='Cash flow'!M16+'Cash flow'!M18+'Cash flow'!M20 -> (32,536) | N21: ='Cash flow'!N16+'Cash flow'!N18+'Cash flow'!N20 -> 55,730 | O21: ='Cash flow'!O16+'Cash flow'!O18+'Cash flow'!O20 -> 35,680 | P21: ='Cash flow'!P16+'Cash flow'!P18+'Cash flow'!P20 -> 70,301
C22: Opening cash | E22: ='Actual inputs'!$E$40 -> 1,600,000 | F22: ='Cash flow'!E23 -> 1,581,940 | G22: ='Cash flow'!F23 -> 1,525,625 | H22: ='Cash flow'!G23 -> 1,472,583 | I22: ='Cash flow'!H23 -> 1,451,554 | J22: ='Cash flow'!I23 -> 1,405,048 | K22: ='Cash flow'!J23 -> 1,362,102 | L22: ='Cash flow'!K23 -> 1,351,814 | M22: ='Cash flow'!L23 -> 1,363,220 | N22: ='Cash flow'!M23 -> 1,330,683 | O22: ='Cash flow'!N23 -> 1,386,413 | P22: ='Cash flow'!O23 -> 1,422,093
C23: Closing cash | E23: ='Cash flow'!E22+'Cash flow'!E21 -> 1,581,940 | F23: ='Cash flow'!F22+'Cash flow'!F21 -> 1,525,625 | G23: ='Cash flow'!G22+'Cash flow'!G21 -> 1,472,583 | H23: ='Cash flow'!H22+'Cash flow'!H21 -> 1,451,554 | I23: ='Cash flow'!I22+'Cash flow'!I21 -> 1,405,048 | J23: ='Cash flow'!J22+'Cash flow'!J21 -> 1,362,102 | K23: ='Cash flow'!K22+'Cash flow'!K21 -> 1,351,814 | L23: ='Cash flow'!L22+'Cash flow'!L21 -> 1,363,220 | M23: ='Cash flow'!M22+'Cash flow'!M21 -> 1,330,683 | N23: ='Cash flow'!N22+'Cash flow'!N21 -> 1,386,413 | O23: ='Cash flow'!O22+'Cash flow'!O21 -> 1,422,093 | P23: ='Cash flow'!P22+'Cash flow'!P21 -> 1,492,393

Sheet 13 week cash
C2: 13 week cash
C4: Selected case | E4: ='Assumptions'!$G$4 -> Base | H4: EUR · entirely fictional
C6: Week starts (first period partial) | E6: 2026-09-01 | F6: 2026-09-07 | G6: 2026-09-14 | H6: 2026-09-21 | I6: 2026-09-28 | J6: 2026-10-05 | K6: 2026-10-12 | L6: 2026-10-19 | M6: 2026-10-26 | N6: 2026-11-02 | O6: 2026-11-09 | P6: 2026-11-16 | Q6: 2026-11-23
C7: Week ends | E7: 2026-09-06 | F7: 2026-09-13 | G7: 2026-09-20 | H7: 2026-09-27 | I7: 2026-10-04 | J7: 2026-10-11 | K7: 2026-10-18 | L7: 2026-10-25 | M7: 2026-11-01 | N7: 2026-11-08 | O7: 2026-11-15 | P7: 2026-11-22 | Q7: 2026-11-29
C8: Opening cash | E8: ='Balance sheet'!L8 -> 1,363,220 | F8: =E17 -> 1,404,860 | G8: =F17 -> 1,430,300 | H8: =G17 -> 1,507,500 | I8: =H17 -> 1,304,060 | J8: =I17 -> 1,330,683 | K8: =J17 -> 1,318,183 | L8: =K17 -> 1,458,858 | M8: =L17 -> 1,220,533 | N8: =M17 -> 1,386,413 | O8: =N17 -> 1,373,413 | P8: =O17 -> 1,508,124 | Q8: =P17 -> 1,508,124
C9: Customer receipts | E9: =SUMIFS($F$28:$F79,$D$28:$D$79,"receipts",$E$28:$E$79,">="&E$6,$E$28:$E$79,"<="&E$7) -> 50,600 | F9: =SUMIFS($F$28:$F79,$D$28:$D$79,"receipts",$E$28:$E$79,">="&F$6,$E$28:$E$79,"<="&F$7) -> 52,800 | G9: =SUMIFS($F$28:$F79,$D$28:$D$79,"receipts",$E$28:$E$79,">="&G$6,$E$28:$E$79,"<="&G$7) -> 88,750 | H9: =SUMIFS($F$28:$F79,$D$28:$D$79,"receipts",$E$28:$E$79,">="&H$6,$E$28:$E$79,"<="&H$7) -> 57,200 | I9: =SUMIFS($F$28:$F79,$D$28:$D$79,"receipts",$E$28:$E$79,">="&I$6,$E$28:$E$79,"<="&I$7) -> 35,873 | J9: =SUMIFS($F$28:$F79,$D$28:$D$79,"receipts",$E$28:$E$79,">="&J$6,$E$28:$E$79,"<="&J$7) -> 0 | K9: =SUMIFS($F$28:$F79,$D$28:$D$79,"receipts",$E$28:$E$79,">="&K$6,$E$28:$E$79,"<="&K$7) -> 180,818 | L9: =SUMIFS($F$28:$F79,$D$28:$D$79,"receipts",$E$28:$E$79,">="&L$6,$E$28:$E$79,"<="&L$7) -> 0 | M9: =SUMIFS($F$28:$F79,$D$28:$D$79,"receipts",$E$28:$E$79,">="&M$6,$E$28:$E$79,"<="&M$7) -> 221,000 | N9: =SUMIFS($F$28:$F79,$D$28:$D$79,"receipts",$E$28:$E$79,">="&N$6,$E$28:$E$79,"<="&N$7) -> 0 | O9: =SUMIFS($F$28:$F79,$D$28:$D$79,"receipts",$E$28:$E$79,">="&O$6,$E$28:$E$79,"<="&O$7) -> 173,700 | P9: =SUMIFS($F$28:$F79,$D$28:$D$79,"receipts",$E$28:$E$79,">="&P$6,$E$28:$E$79,"<="&P$7) -> 0 | Q9: =SUMIFS($F$28:$F79,$D$28:$D$79,"receipts",$E$28:$E$79,">="&Q$6,$E$28:$E$79,"<="&Q$7) -> 212,301
C10: Vendor payments | E10: =SUMIFS($F$28:$F79,$D$28:$D$79,"suppliers",$E$28:$E$79,">="&E$6,$E$28:$E$79,"<="&E$7) -> (8,960) | F10: =SUMIFS($F$28:$F79,$D$28:$D$79,"suppliers",$E$28:$E$79,">="&F$6,$E$28:$E$79,"<="&F$7) -> (15,360) | G10: =SUMIFS($F$28:$F79,$D$28:$D$79,"suppliers",$E$28:$E$79,">="&G$6,$E$28:$E$79,"<="&G$7) -> (11,550) | H10: =SUMIFS($F$28:$F79,$D$28:$D$79,"suppliers",$E$28:$E$79,">="&H$6,$E$28:$E$79,"<="&H$7) -> (16,640) | I10: =SUMIFS($F$28:$F79,$D$28:$D$79,"suppliers",$E$28:$E$79,">="&I$6,$E$28:$E$79,"<="&I$7) -> (3,166) | J10: =SUMIFS($F$28:$F79,$D$28:$D$79,"suppliers",$E$28:$E$79,">="&J$6,$E$28:$E$79,"<="&J$7) -> 0 | K10: =SUMIFS($F$28:$F79,$D$28:$D$79,"suppliers",$E$28:$E$79,">="&K$6,$E$28:$E$79,"<="&K$7) -> (40,143) | L10: =SUMIFS($F$28:$F79,$D$28:$D$79,"suppliers",$E$28:$E$79,">="&L$6,$E$28:$E$79,"<="&L$7) -> 0 | M10: =SUMIFS($F$28:$F79,$D$28:$D$79,"suppliers",$E$28:$E$79,">="&M$6,$E$28:$E$79,"<="&M$7) -> (49,064) | N10: =SUMIFS($F$28:$F79,$D$28:$D$79,"suppliers",$E$28:$E$79,">="&N$6,$E$28:$E$79,"<="&N$7) -> 0 | O10: =SUMIFS($F$28:$F79,$D$28:$D$79,"suppliers",$E$28:$E$79,">="&O$6,$E$28:$E$79,"<="&O$7) -> (38,989) | P10: =SUMIFS($F$28:$F79,$D$28:$D$79,"suppliers",$E$28:$E$79,">="&P$6,$E$28:$E$79,"<="&P$7) -> 0 | Q10: =SUMIFS($F$28:$F79,$D$28:$D$79,"suppliers",$E$28:$E$79,">="&Q$6,$E$28:$E$79,"<="&Q$7) -> (47,653)
C11: Loaded payroll | E11: =SUMIFS($F$28:$F79,$D$28:$D$79,"payroll",$E$28:$E$79,">="&E$6,$E$28:$E$79,"<="&E$7) -> 0 | F11: =SUMIFS($F$28:$F79,$D$28:$D$79,"payroll",$E$28:$E$79,">="&F$6,$E$28:$E$79,"<="&F$7) -> 0 | G11: =SUMIFS($F$28:$F79,$D$28:$D$79,"payroll",$E$28:$E$79,">="&G$6,$E$28:$E$79,"<="&G$7) -> 0 | H11: =SUMIFS($F$28:$F79,$D$28:$D$79,"payroll",$E$28:$E$79,">="&H$6,$E$28:$E$79,"<="&H$7) -> (232,000) | I11: =SUMIFS($F$28:$F79,$D$28:$D$79,"payroll",$E$28:$E$79,">="&I$6,$E$28:$E$79,"<="&I$7) -> 0 | J11: =SUMIFS($F$28:$F79,$D$28:$D$79,"payroll",$E$28:$E$79,">="&J$6,$E$28:$E$79,"<="&J$7) -> 0 | K11: =SUMIFS($F$28:$F79,$D$28:$D$79,"payroll",$E$28:$E$79,">="&K$6,$E$28:$E$79,"<="&K$7) -> 0 | L11: =SUMIFS($F$28:$F79,$D$28:$D$79,"payroll",$E$28:$E$79,">="&L$6,$E$28:$E$79,"<="&L$7) -> (238,325) | M11: =SUMIFS($F$28:$F79,$D$28:$D$79,"payroll",$E$28:$E$79,">="&M$6,$E$28:$E$79,"<="&M$7) -> 0 | N11: =SUMIFS($F$28:$F79,$D$28:$D$79,"payroll",$E$28:$E$79,">="&N$6,$E$28:$E$79,"<="&N$7) -> 0 | O11: =SUMIFS($F$28:$F79,$D$28:$D$79,"payroll",$E$28:$E$79,">="&O$6,$E$28:$E$79,"<="&O$7) -> 0 | P11: =SUMIFS($F$28:$F79,$D$28:$D$79,"payroll",$E$28:$E$79,">="&P$6,$E$28:$E$79,"<="&P$7) -> 0 | Q11: =SUMIFS($F$28:$F79,$D$28:$D$79,"payroll",$E$28:$E$79,">="&Q$6,$E$28:$E$79,"<="&Q$7) -> (244,650)
C12: Current tax | E12: =SUMIFS($F$28:$F79,$D$28:$D$79,"tax",$E$28:$E$79,">="&E$6,$E$28:$E$79,"<="&E$7) -> 0 | F12: =SUMIFS($F$28:$F79,$D$28:$D$79,"tax",$E$28:$E$79,">="&F$6,$E$28:$E$79,"<="&F$7) -> 0 | G12: =SUMIFS($F$28:$F79,$D$28:$D$79,"tax",$E$28:$E$79,">="&G$6,$E$28:$E$79,"<="&G$7) -> 0 | H12: =SUMIFS($F$28:$F79,$D$28:$D$79,"tax",$E$28:$E$79,">="&H$6,$E$28:$E$79,"<="&H$7) -> (12,000) | I12: =SUMIFS($F$28:$F79,$D$28:$D$79,"tax",$E$28:$E$79,">="&I$6,$E$28:$E$79,"<="&I$7) -> 0 | J12: =SUMIFS($F$28:$F79,$D$28:$D$79,"tax",$E$28:$E$79,">="&J$6,$E$28:$E$79,"<="&J$7) -> 0 | K12: =SUMIFS($F$28:$F79,$D$28:$D$79,"tax",$E$28:$E$79,">="&K$6,$E$28:$E$79,"<="&K$7) -> 0 | L12: =SUMIFS($F$28:$F79,$D$28:$D$79,"tax",$E$28:$E$79,">="&L$6,$E$28:$E$79,"<="&L$7) -> 0 | M12: =SUMIFS($F$28:$F79,$D$28:$D$79,"tax",$E$28:$E$79,">="&M$6,$E$28:$E$79,"<="&M$7) -> 0 | N12: =SUMIFS($F$28:$F79,$D$28:$D$79,"tax",$E$28:$E$79,">="&N$6,$E$28:$E$79,"<="&N$7) -> 0 | O12: =SUMIFS($F$28:$F79,$D$28:$D$79,"tax",$E$28:$E$79,">="&O$6,$E$28:$E$79,"<="&O$7) -> 0 | P12: =SUMIFS($F$28:$F79,$D$28:$D$79,"tax",$E$28:$E$79,">="&P$6,$E$28:$E$79,"<="&P$7) -> 0 | Q12: =SUMIFS($F$28:$F79,$D$28:$D$79,"tax",$E$28:$E$79,">="&Q$6,$E$28:$E$79,"<="&Q$7) -> 0
C13: Interest | E13: =SUMIFS($F$28:$F79,$D$28:$D$79,"interest",$E$28:$E$79,">="&E$6,$E$28:$E$79,"<="&E$7) -> 0 | F13: =SUMIFS($F$28:$F79,$D$28:$D$79,"interest",$E$28:$E$79,">="&F$6,$E$28:$E$79,"<="&F$7) -> 0 | G13: =SUMIFS($F$28:$F79,$D$28:$D$79,"interest",$E$28:$E$79,">="&G$6,$E$28:$E$79,"<="&G$7) -> 0 | H13: =SUMIFS($F$28:$F79,$D$28:$D$79,"interest",$E$28:$E$79,">="&H$6,$E$28:$E$79,"<="&H$7) -> 0 | I13: =SUMIFS($F$28:$F79,$D$28:$D$79,"interest",$E$28:$E$79,">="&I$6,$E$28:$E$79,"<="&I$7) -> (1,083) | J13: =SUMIFS($F$28:$F79,$D$28:$D$79,"interest",$E$28:$E$79,">="&J$6,$E$28:$E$79,"<="&J$7) -> 0 | K13: =SUMIFS($F$28:$F79,$D$28:$D$79,"interest",$E$28:$E$79,">="&K$6,$E$28:$E$79,"<="&K$7) -> 0 | L13: =SUMIFS($F$28:$F79,$D$28:$D$79,"interest",$E$28:$E$79,">="&L$6,$E$28:$E$79,"<="&L$7) -> 0 | M13: =SUMIFS($F$28:$F79,$D$28:$D$79,"interest",$E$28:$E$79,">="&M$6,$E$28:$E$79,"<="&M$7) -> (1,056) | N13: =SUMIFS($F$28:$F79,$D$28:$D$79,"interest",$E$28:$E$79,">="&N$6,$E$28:$E$79,"<="&N$7) -> 0 | O13: =SUMIFS($F$28:$F79,$D$28:$D$79,"interest",$E$28:$E$79,">="&O$6,$E$28:$E$79,"<="&O$7) -> 0 | P13: =SUMIFS($F$28:$F79,$D$28:$D$79,"interest",$E$28:$E$79,">="&P$6,$E$28:$E$79,"<="&P$7) -> 0 | Q13: =SUMIFS($F$28:$F79,$D$28:$D$79,"interest",$E$28:$E$79,">="&Q$6,$E$28:$E$79,"<="&Q$7) -> (1,029)
C14: Capital expenditure | E14: =SUMIFS($F$28:$F79,$D$28:$D$79,"capex",$E$28:$E$79,">="&E$6,$E$28:$E$79,"<="&E$7) -> 0 | F14: =SUMIFS($F$28:$F79,$D$28:$D$79,"capex",$E$28:$E$79,">="&F$6,$E$28:$E$79,"<="&F$7) -> (12,000) | G14: =SUMIFS($F$28:$F79,$D$28:$D$79,"capex",$E$28:$E$79,">="&G$6,$E$28:$E$79,"<="&G$7) -> 0 | H14: =SUMIFS($F$28:$F79,$D$28:$D$79,"capex",$E$28:$E$79,">="&H$6,$E$28:$E$79,"<="&H$7) -> 0 | I14: =SUMIFS($F$28:$F79,$D$28:$D$79,"capex",$E$28:$E$79,">="&I$6,$E$28:$E$79,"<="&I$7) -> 0 | J14: =SUMIFS($F$28:$F79,$D$28:$D$79,"capex",$E$28:$E$79,">="&J$6,$E$28:$E$79,"<="&J$7) -> (12,500) | K14: =SUMIFS($F$28:$F79,$D$28:$D$79,"capex",$E$28:$E$79,">="&K$6,$E$28:$E$79,"<="&K$7) -> 0 | L14: =SUMIFS($F$28:$F79,$D$28:$D$79,"capex",$E$28:$E$79,">="&L$6,$E$28:$E$79,"<="&L$7) -> 0 | M14: =SUMIFS($F$28:$F79,$D$28:$D$79,"capex",$E$28:$E$79,">="&M$6,$E$28:$E$79,"<="&M$7) -> 0 | N14: =SUMIFS($F$28:$F79,$D$28:$D$79,"capex",$E$28:$E$79,">="&N$6,$E$28:$E$79,"<="&N$7) -> (13,000) | O14: =SUMIFS($F$28:$F79,$D$28:$D$79,"capex",$E$28:$E$79,">="&O$6,$E$28:$E$79,"<="&O$7) -> 0 | P14: =SUMIFS($F$28:$F79,$D$28:$D$79,"capex",$E$28:$E$79,">="&P$6,$E$28:$E$79,"<="&P$7) -> 0 | Q14: =SUMIFS($F$28:$F79,$D$28:$D$79,"capex",$E$28:$E$79,">="&Q$6,$E$28:$E$79,"<="&Q$7) -> 0
C15: Debt principal | E15: =SUMIFS($F$28:$F79,$D$28:$D$79,"principal",$E$28:$E$79,">="&E$6,$E$28:$E$79,"<="&E$7) -> 0 | F15: =SUMIFS($F$28:$F79,$D$28:$D$79,"principal",$E$28:$E$79,">="&F$6,$E$28:$E$79,"<="&F$7) -> 0 | G15: =SUMIFS($F$28:$F79,$D$28:$D$79,"principal",$E$28:$E$79,">="&G$6,$E$28:$E$79,"<="&G$7) -> 0 | H15: =SUMIFS($F$28:$F79,$D$28:$D$79,"principal",$E$28:$E$79,">="&H$6,$E$28:$E$79,"<="&H$7) -> 0 | I15: =SUMIFS($F$28:$F79,$D$28:$D$79,"principal",$E$28:$E$79,">="&I$6,$E$28:$E$79,"<="&I$7) -> (5,000) | J15: =SUMIFS($F$28:$F79,$D$28:$D$79,"principal",$E$28:$E$79,">="&J$6,$E$28:$E$79,"<="&J$7) -> 0 | K15: =SUMIFS($F$28:$F79,$D$28:$D$79,"principal",$E$28:$E$79,">="&K$6,$E$28:$E$79,"<="&K$7) -> 0 | L15: =SUMIFS($F$28:$F79,$D$28:$D$79,"principal",$E$28:$E$79,">="&L$6,$E$28:$E$79,"<="&L$7) -> 0 | M15: =SUMIFS($F$28:$F79,$D$28:$D$79,"principal",$E$28:$E$79,">="&M$6,$E$28:$E$79,"<="&M$7) -> (5,000) | N15: =SUMIFS($F$28:$F79,$D$28:$D$79,"principal",$E$28:$E$79,">="&N$6,$E$28:$E$79,"<="&N$7) -> 0 | O15: =SUMIFS($F$28:$F79,$D$28:$D$79,"principal",$E$28:$E$79,">="&O$6,$E$28:$E$79,"<="&O$7) -> 0 | P15: =SUMIFS($F$28:$F79,$D$28:$D$79,"principal",$E$28:$E$79,">="&P$6,$E$28:$E$79,"<="&P$7) -> 0 | Q15: =SUMIFS($F$28:$F79,$D$28:$D$79,"principal",$E$28:$E$79,">="&Q$6,$E$28:$E$79,"<="&Q$7) -> (5,000)
C16: Net cash change | E16: =SUM(E9:E15) -> 41,640 | F16: =SUM(F9:F15) -> 25,440 | G16: =SUM(G9:G15) -> 77,200 | H16: =SUM(H9:H15) -> (203,440) | I16: =SUM(I9:I15) -> 26,624 | J16: =SUM(J9:J15) -> (12,500) | K16: =SUM(K9:K15) -> 140,675 | L16: =SUM(L9:L15) -> (238,325) | M16: =SUM(M9:M15) -> 165,880 | N16: =SUM(N9:N15) -> (13,000) | O16: =SUM(O9:O15) -> 134,711 | P16: =SUM(P9:P15) -> 0 | Q16: =SUM(Q9:Q15) -> (86,032)
C17: Closing cash | E17: =E8+E16 -> 1,404,860 | F17: =F8+F16 -> 1,430,300 | G17: =G8+G16 -> 1,507,500 | H17: =H8+H16 -> 1,304,060 | I17: =I8+I16 -> 1,330,683 | J17: =J8+J16 -> 1,318,183 | K17: =K8+K16 -> 1,458,858 | L17: =L8+L16 -> 1,220,533 | M17: =M8+M16 -> 1,386,413 | N17: =N8+N16 -> 1,373,413 | O17: =O8+O16 -> 1,508,124 | P17: =P8+P16 -> 1,508,124 | Q17: =Q8+Q16 -> 1,422,093
C18: Minimum reserve | E18: ='Actual inputs'!$E$58 -> 200,000 | F18: ='Actual inputs'!$E$58 -> 200,000 | G18: ='Actual inputs'!$E$58 -> 200,000 | H18: ='Actual inputs'!$E$58 -> 200,000 | I18: ='Actual inputs'!$E$58 -> 200,000 | J18: ='Actual inputs'!$E$58 -> 200,000 | K18: ='Actual inputs'!$E$58 -> 200,000 | L18: ='Actual inputs'!$E$58 -> 200,000 | M18: ='Actual inputs'!$E$58 -> 200,000 | N18: ='Actual inputs'!$E$58 -> 200,000 | O18: ='Actual inputs'!$E$58 -> 200,000 | P18: ='Actual inputs'!$E$58 -> 200,000 | Q18: ='Actual inputs'!$E$58 -> 200,000
C19: Headroom / (shortfall) | E19: =E17-E18 -> 1,204,860 | F19: =F17-F18 -> 1,230,300 | G19: =G17-G18 -> 1,307,500 | H19: =H17-H18 -> 1,104,060 | I19: =I17-I18 -> 1,130,683 | J19: =J17-J18 -> 1,118,183 | K19: =K17-K18 -> 1,258,858 | L19: =L17-L18 -> 1,020,533 | M19: =M17-M18 -> 1,186,413 | N19: =N17-N18 -> 1,173,413 | O19: =O17-O18 -> 1,308,124 | P19: =P17-P18 -> 1,308,124 | Q19: =Q17-Q18 -> 1,222,093
C21: Lowest end-of-day cash | E21: =MIN(H96:H185) -> 1,220,533 | G21: Date | H21: =INDEX(C96:C185,MATCH(E21,H96:H185,0)) -> 2026-10-25
C23: Opening cash includes all 31 August activity. Forecast ends 29 November.
C25: Dated cash events
C27: Reference | D27: Cash type | E27: Date | F27: Amount | G27: Basis
C28: AR-001 | D28: receipts | E28: ='Working capital'!I26 -> 2026-09-04 | F28: ='Working capital'!F26 -> 19,800 | G28: Opening receivable
C29: AR-002 | D29: receipts | E29: ='Working capital'!I27 -> 2026-09-11 | F29: ='Working capital'!F27 -> 26,400 | G29: Opening receivable
C30: AR-003 | D30: receipts | E30: ='Working capital'!I28 -> 2026-09-18 | F30: ='Working capital'!F28 -> 28,600 | G30: Opening receivable
C31: AR-004 | D31: receipts | E31: ='Working capital'!I29 -> 2026-09-04 | F31: ='Working capital'!F29 -> 30,800 | G31: Opening receivable
C32: AR-005 | D32: receipts | E32: ='Working capital'!I30 -> 2026-09-11 | F32: ='Working capital'!F30 -> 26,400 | G32: Opening receivable
C33: AR-006 | D33: receipts | E33: ='Working capital'!I31 -> 2026-09-18 | F33: ='Working capital'!F31 -> 30,800 | G33: Opening receivable
C34: AR-007 | D34: receipts | E34: ='Working capital'!I32 -> 2026-09-25 | F34: ='Working capital'!F32 -> 28,600 | G34: Opening receivable
C35: AR-008 | D35: receipts | E35: ='Working capital'!I33 -> 2026-09-25 | F35: ='Working capital'!F33 -> 28,600 | G35: Opening receivable
C36: AP-001 | D36: suppliers | E36: ='Working capital'!L40 -> 00:00:00 | F36: =-'Working capital'!M40 -> 0 | G36: Approved opening AP
C37: AP-002 | D37: suppliers | E37: ='Working capital'!L41 -> 2026-09-11 | F37: =-'Working capital'!M41 -> (7,680) | G37: Approved opening AP
C38: AP-003 | D38: suppliers | E38: ='Working capital'!L42 -> 00:00:00 | F38: =-'Working capital'!M42 -> 0 | G38: Approved opening AP
C39: AP-004 | D39: suppliers | E39: ='Working capital'!L43 -> 2026-09-04 | F39: =-'Working capital'!M43 -> (8,960) | G39: Approved opening AP
C40: AP-005 | D40: suppliers | E40: ='Working capital'!L44 -> 2026-09-11 | F40: =-'Working capital'!M44 -> (7,680) | G40: Approved opening AP
C41: AP-006 | D41: suppliers | E41: ='Working capital'!L45 -> 2026-09-18 | F41: =-'Working capital'!M45 -> (8,960) | G41: Approved opening AP
C42: AP-007 | D42: suppliers | E42: ='Working capital'!L46 -> 2026-09-25 | F42: =-'Working capital'!M46 -> (8,320) | G42: Approved opening AP
C43: AP-008 | D43: suppliers | E43: ='Working capital'!L47 -> 2026-09-25 | F43: =-'Working capital'!M47 -> (8,320) | G43: Approved opening AP
C44: 2026-09-receipts-15 | D44: receipts | E44: 2026-09-15 | F44: =('Working capital'!M10-SUMIFS($F$28:$F$43,$D$28:$D$43,"receipts",$E$28:$E$43,">="&46266,$E$28:$E$43,"<="&46295))*0.45 -> 29,350 | G44: Monthly plan timing
C45: 2026-09-receipts-28 | D45: receipts | E45: 2026-09-28 | F45: =('Working capital'!M10-SUMIFS($F$28:$F$43,$D$28:$D$43,"receipts",$E$28:$E$43,">="&46266,$E$28:$E$43,"<="&46295))*0.55 -> 35,873 | G45: Monthly plan timing
C46: 2026-09-suppliers-15 | D46: suppliers | E46: 2026-09-15 | F46: =(-'Working capital'!M15-SUMIFS($F$28:$F$43,$D$28:$D$43,"suppliers",$E$28:$E$43,">="&46266,$E$28:$E$43,"<="&46295))*0.45 -> (2,590) | G46: Monthly plan timing
C47: 2026-09-suppliers-28 | D47: suppliers | E47: 2026-09-28 | F47: =(-'Working capital'!M15-SUMIFS($F$28:$F$43,$D$28:$D$43,"suppliers",$E$28:$E$43,">="&46266,$E$28:$E$43,"<="&46295))*0.55 -> (3,166) | G47: Monthly plan timing
C48: 2026-09-payroll-25 | D48: payroll | E48: 2026-09-25 | F48: =(-'Payroll'!M21-SUMIFS($F$28:$F$43,$D$28:$D$43,"payroll",$E$28:$E$43,">="&46266,$E$28:$E$43,"<="&46295))*1 -> (232,000) | G48: Monthly plan timing
C49: 2026-09-tax-21 | D49: tax | E49: 2026-09-21 | F49: =(-'Assets debt'!M21-SUMIFS($F$28:$F$43,$D$28:$D$43,"tax",$E$28:$E$43,">="&46266,$E$28:$E$43,"<="&46295))*1 -> (12,000) | G49: Monthly plan timing
C50: 2026-09-interest-28 | D50: interest | E50: 2026-09-28 | F50: =(-'Assets debt'!M18-SUMIFS($F$28:$F$43,$D$28:$D$43,"interest",$E$28:$E$43,">="&46266,$E$28:$E$43,"<="&46295))*1 -> (1,083) | G50: Monthly plan timing
C51: 2026-09-capex-8 | D51: capex | E51: 2026-09-08 | F51: =(-'Assets debt'!M9-SUMIFS($F$28:$F$43,$D$28:$D$43,"capex",$E$28:$E$43,">="&46266,$E$28:$E$43,"<="&46295))*1 -> (12,000) | G51: Monthly plan timing
C52: 2026-09-principal-28 | D52: principal | E52: 2026-09-28 | F52: =(-'Assets debt'!M16-SUMIFS($F$28:$F$43,$D$28:$D$43,"principal",$E$28:$E$43,">="&46266,$E$28:$E$43,"<="&46295))*1 -> (5,000) | G52: Monthly plan timing
C53: 2026-10-receipts-15 | D53: receipts | E53: 2026-10-15 | F53: =('Working capital'!N10-SUMIFS($F$28:$F$43,$D$28:$D$43,"receipts",$E$28:$E$43,">="&46296,$E$28:$E$43,"<="&46326))*0.45 -> 180,818 | G53: Monthly plan timing
C54: 2026-10-receipts-28 | D54: receipts | E54: 2026-10-28 | F54: =('Working capital'!N10-SUMIFS($F$28:$F$43,$D$28:$D$43,"receipts",$E$28:$E$43,">="&46296,$E$28:$E$43,"<="&46326))*0.55 -> 221,000 | G54: Monthly plan timing
C55: 2026-10-suppliers-15 | D55: suppliers | E55: 2026-10-15 | F55: =(-'Working capital'!N15-SUMIFS($F$28:$F$43,$D$28:$D$43,"suppliers",$E$28:$E$43,">="&46296,$E$28:$E$43,"<="&46326))*0.45 -> (40,143) | G55: Monthly plan timing
C56: 2026-10-suppliers-28 | D56: suppliers | E56: 2026-10-28 | F56: =(-'Working capital'!N15-SUMIFS($F$28:$F$43,$D$28:$D$43,"suppliers",$E$28:$E$43,">="&46296,$E$28:$E$43,"<="&46326))*0.55 -> (49,064) | G56: Monthly plan timing
C57: 2026-10-payroll-25 | D57: payroll | E57: 2026-10-25 | F57: =(-'Payroll'!N21-SUMIFS($F$28:$F$43,$D$28:$D$43,"payroll",$E$28:$E$43,">="&46296,$E$28:$E$43,"<="&46326))*1 -> (238,325) | G57: Monthly plan timing
C58: 2026-10-tax-21 | D58: tax | E58: 2026-10-21 | F58: =(-'Assets debt'!N21-SUMIFS($F$28:$F$43,$D$28:$D$43,"tax",$E$28:$E$43,">="&46296,$E$28:$E$43,"<="&46326))*1 -> 0 | G58: Monthly plan timing
C59: 2026-10-interest-28 | D59: interest | E59: 2026-10-28 | F59: =(-'Assets debt'!N18-SUMIFS($F$28:$F$43,$D$28:$D$43,"interest",$E$28:$E$43,">="&46296,$E$28:$E$43,"<="&46326))*1 -> (1,056) | G59: Monthly plan timing
C60: 2026-10-capex-8 | D60: capex | E60: 2026-10-08 | F60: =(-'Assets debt'!N9-SUMIFS($F$28:$F$43,$D$28:$D$43,"capex",$E$28:$E$43,">="&46296,$E$28:$E$43,"<="&46326))*1 -> (12,500) | G60: Monthly plan timing
C61: 2026-10-principal-28 | D61: principal | E61: 2026-10-28 | F61: =(-'Assets debt'!N16-SUMIFS($F$28:$F$43,$D$28:$D$43,"principal",$E$28:$E$43,">="&46296,$E$28:$E$43,"<="&46326))*1 -> (5,000) | G61: Monthly plan timing
C62: 2026-11-receipts-15 | D62: receipts | E62: 2026-11-15 | F62: =('Working capital'!O10-SUMIFS($F$28:$F$43,$D$28:$D$43,"receipts",$E$28:$E$43,">="&46327,$E$28:$E$43,"<="&46356))*0.45 -> 173,700 | G62: Monthly plan timing
C63: 2026-11-receipts-28 | D63: receipts | E63: 2026-11-28 | F63: =('Working capital'!O10-SUMIFS($F$28:$F$43,$D$28:$D$43,"receipts",$E$28:$E$43,">="&46327,$E$28:$E$43,"<="&46356))*0.55 -> 212,301 | G63: Monthly plan timing
C64: 2026-11-suppliers-15 | D64: suppliers | E64: 2026-11-15 | F64: =(-'Working capital'!O15-SUMIFS($F$28:$F$43,$D$28:$D$43,"suppliers",$E$28:$E$43,">="&46327,$E$28:$E$43,"<="&46356))*0.45 -> (38,989) | G64: Monthly plan timing
C65: 2026-11-suppliers-28 | D65: suppliers | E65: 2026-11-28 | F65: =(-'Working capital'!O15-SUMIFS($F$28:$F$43,$D$28:$D$43,"suppliers",$E$28:$E$43,">="&46327,$E$28:$E$43,"<="&46356))*0.55 -> (47,653) | G65: Monthly plan timing
C66: 2026-11-payroll-25 | D66: payroll | E66: 2026-11-25 | F66: =(-'Payroll'!O21-SUMIFS($F$28:$F$43,$D$28:$D$43,"payroll",$E$28:$E$43,">="&46327,$E$28:$E$43,"<="&46356))*1 -> (244,650) | G66: Monthly plan timing
C67: 2026-11-tax-21 | D67: tax | E67: 2026-11-21 | F67: =(-'Assets debt'!O21-SUMIFS($F$28:$F$43,$D$28:$D$43,"tax",$E$28:$E$43,">="&46327,$E$28:$E$43,"<="&46356))*1 -> 0 | G67: Monthly plan timing
C68: 2026-11-interest-28 | D68: interest | E68: 2026-11-28 | F68: =(-'Assets debt'!O18-SUMIFS($F$28:$F$43,$D$28:$D$43,"interest",$E$28:$E$43,">="&46327,$E$28:$E$43,"<="&46356))*1 -> (1,029) | G68: Monthly plan timing
C69: 2026-11-capex-8 | D69: capex | E69: 2026-11-08 | F69: =(-'Assets debt'!O9-SUMIFS($F$28:$F$43,$D$28:$D$43,"capex",$E$28:$E$43,">="&46327,$E$28:$E$43,"<="&46356))*1 -> (13,000) | G69: Monthly plan timing
C70: 2026-11-principal-28 | D70: principal | E70: 2026-11-28 | F70: =(-'Assets debt'!O16-SUMIFS($F$28:$F$43,$D$28:$D$43,"principal",$E$28:$E$43,">="&46327,$E$28:$E$43,"<="&46356))*1 -> (5,000) | G70: Monthly plan timing
C71: 2026-12-receipts-15 | D71: receipts | E71: 2026-12-15 | F71: =('Working capital'!P10-SUMIFS($F$28:$F$43,$D$28:$D$43,"receipts",$E$28:$E$43,">="&46357,$E$28:$E$43,"<="&46387))*0.45 -> 201,541 | G71: Monthly plan timing
C72: 2026-12-receipts-28 | D72: receipts | E72: 2026-12-28 | F72: =('Working capital'!P10-SUMIFS($F$28:$F$43,$D$28:$D$43,"receipts",$E$28:$E$43,">="&46357,$E$28:$E$43,"<="&46387))*0.55 -> 246,328 | G72: Monthly plan timing
C73: 2026-12-suppliers-15 | D73: suppliers | E73: 2026-12-15 | F73: =(-'Working capital'!P15-SUMIFS($F$28:$F$43,$D$28:$D$43,"suppliers",$E$28:$E$43,">="&46357,$E$28:$E$43,"<="&46387))*0.45 -> (42,791) | G73: Monthly plan timing
C74: 2026-12-suppliers-28 | D74: suppliers | E74: 2026-12-28 | F74: =(-'Working capital'!P15-SUMIFS($F$28:$F$43,$D$28:$D$43,"suppliers",$E$28:$E$43,">="&46357,$E$28:$E$43,"<="&46387))*0.55 -> (52,301) | G74: Monthly plan timing
C75: 2026-12-payroll-25 | D75: payroll | E75: 2026-12-25 | F75: =(-'Payroll'!P21-SUMIFS($F$28:$F$43,$D$28:$D$43,"payroll",$E$28:$E$43,">="&46357,$E$28:$E$43,"<="&46387))*1 -> (250,975) | G75: Monthly plan timing
C76: 2026-12-tax-21 | D76: tax | E76: 2026-12-21 | F76: =(-'Assets debt'!P21-SUMIFS($F$28:$F$43,$D$28:$D$43,"tax",$E$28:$E$43,">="&46357,$E$28:$E$43,"<="&46387))*1 -> (12,000) | G76: Monthly plan timing
C77: 2026-12-interest-28 | D77: interest | E77: 2026-12-28 | F77: =(-'Assets debt'!P18-SUMIFS($F$28:$F$43,$D$28:$D$43,"interest",$E$28:$E$43,">="&46357,$E$28:$E$43,"<="&46387))*1 -> (1,002) | G77: Monthly plan timing
C78: 2026-12-capex-8 | D78: capex | E78: 2026-12-08 | F78: =(-'Assets debt'!P9-SUMIFS($F$28:$F$43,$D$28:$D$43,"capex",$E$28:$E$43,">="&46357,$E$28:$E$43,"<="&46387))*1 -> (13,500) | G78: Monthly plan timing
C79: 2026-12-principal-28 | D79: principal | E79: 2026-12-28 | F79: =(-'Assets debt'!P16-SUMIFS($F$28:$F$43,$D$28:$D$43,"principal",$E$28:$E$43,">="&46357,$E$28:$E$43,"<="&46387))*1 -> (5,000) | G79: Monthly plan timing
C93: Daily scheduled cash
C95: Date | D95: Opening | E95: Receipts | F95: Payments | G95: Net cash | H95: Closing | I95: Reserve | J95: Headroom
C96: 2026-09-01 | D96: ='Balance sheet'!L8 -> 1363219.681 | E96: =SUMIFS($F$28:$F79,$E$28:$E$79,C96,$F$28:$F79,">0") -> 0 | F96: =SUMIFS($F$28:$F79,$E$28:$E$79,C96,$F$28:$F79,"<0") -> 0 | G96: =E96+F96 -> 0 | H96: =D96+G96 -> 1,363,220 | I96: ='Actual inputs'!$E$58 -> 200,000 | J96: =H96-I96 -> 1,163,220
C97: 2026-09-02 | D97: =H96 -> 1363219.681 | E97: =SUMIFS($F$28:$F79,$E$28:$E$79,C97,$F$28:$F79,">0") -> 0 | F97: =SUMIFS($F$28:$F79,$E$28:$E$79,C97,$F$28:$F79,"<0") -> 0 | G97: =E97+F97 -> 0 | H97: =D97+G97 -> 1,363,220 | I97: ='Actual inputs'!$E$58 -> 200,000 | J97: =H97-I97 -> 1,163,220
C98: 2026-09-03 | D98: =H97 -> 1363219.681 | E98: =SUMIFS($F$28:$F79,$E$28:$E$79,C98,$F$28:$F79,">0") -> 0 | F98: =SUMIFS($F$28:$F79,$E$28:$E$79,C98,$F$28:$F79,"<0") -> 0 | G98: =E98+F98 -> 0 | H98: =D98+G98 -> 1,363,220 | I98: ='Actual inputs'!$E$58 -> 200,000 | J98: =H98-I98 -> 1,163,220
C99: 2026-09-04 | D99: =H98 -> 1363219.681 | E99: =SUMIFS($F$28:$F79,$E$28:$E$79,C99,$F$28:$F79,">0") -> 50,600 | F99: =SUMIFS($F$28:$F79,$E$28:$E$79,C99,$F$28:$F79,"<0") -> (8,960) | G99: =E99+F99 -> 41,640 | H99: =D99+G99 -> 1,404,860 | I99: ='Actual inputs'!$E$58 -> 200,000 | J99: =H99-I99 -> 1,204,860
C100: 2026-09-05 | D100: =H99 -> 1404859.681 | E100: =SUMIFS($F$28:$F79,$E$28:$E$79,C100,$F$28:$F79,">0") -> 0 | F100: =SUMIFS($F$28:$F79,$E$28:$E$79,C100,$F$28:$F79,"<0") -> 0 | G100: =E100+F100 -> 0 | H100: =D100+G100 -> 1,404,860 | I100: ='Actual inputs'!$E$58 -> 200,000 | J100: =H100-I100 -> 1,204,860
C101: 2026-09-06 | D101: =H100 -> 1404859.681 | E101: =SUMIFS($F$28:$F79,$E$28:$E$79,C101,$F$28:$F79,">0") -> 0 | F101: =SUMIFS($F$28:$F79,$E$28:$E$79,C101,$F$28:$F79,"<0") -> 0 | G101: =E101+F101 -> 0 | H101: =D101+G101 -> 1,404,860 | I101: ='Actual inputs'!$E$58 -> 200,000 | J101: =H101-I101 -> 1,204,860
C102: 2026-09-07 | D102: =H101 -> 1404859.681 | E102: =SUMIFS($F$28:$F79,$E$28:$E$79,C102,$F$28:$F79,">0") -> 0 | F102: =SUMIFS($F$28:$F79,$E$28:$E$79,C102,$F$28:$F79,"<0") -> 0 | G102: =E102+F102 -> 0 | H102: =D102+G102 -> 1,404,860 | I102: ='Actual inputs'!$E$58 -> 200,000 | J102: =H102-I102 -> 1,204,860
C103: 2026-09-08 | D103: =H102 -> 1404859.681 | E103: =SUMIFS($F$28:$F79,$E$28:$E$79,C103,$F$28:$F79,">0") -> 0 | F103: =SUMIFS($F$28:$F79,$E$28:$E$79,C103,$F$28:$F79,"<0") -> (12,000) | G103: =E103+F103 -> (12,000) | H103: =D103+G103 -> 1,392,860 | I103: ='Actual inputs'!$E$58 -> 200,000 | J103: =H103-I103 -> 1,192,860
C104: 2026-09-09 | D104: =H103 -> 1392859.681 | E104: =SUMIFS($F$28:$F79,$E$28:$E$79,C104,$F$28:$F79,">0") -> 0 | F104: =SUMIFS($F$28:$F79,$E$28:$E$79,C104,$F$28:$F79,"<0") -> 0 | G104: =E104+F104 -> 0 | H104: =D104+G104 -> 1,392,860 | I104: ='Actual inputs'!$E$58 -> 200,000 | J104: =H104-I104 -> 1,192,860
C105: 2026-09-10 | D105: =H104 -> 1392859.681 | E105: =SUMIFS($F$28:$F79,$E$28:$E$79,C105,$F$28:$F79,">0") -> 0 | F105: =SUMIFS($F$28:$F79,$E$28:$E$79,C105,$F$28:$F79,"<0") -> 0 | G105: =E105+F105 -> 0 | H105: =D105+G105 -> 1,392,860 | I105: ='Actual inputs'!$E$58 -> 200,000 | J105: =H105-I105 -> 1,192,860
C106: 2026-09-11 | D106: =H105 -> 1392859.681 | E106: =SUMIFS($F$28:$F79,$E$28:$E$79,C106,$F$28:$F79,">0") -> 52,800 | F106: =SUMIFS($F$28:$F79,$E$28:$E$79,C106,$F$28:$F79,"<0") -> (15,360) | G106: =E106+F106 -> 37,440 | H106: =D106+G106 -> 1,430,300 | I106: ='Actual inputs'!$E$58 -> 200,000 | J106: =H106-I106 -> 1,230,300
C107: 2026-09-12 | D107: =H106 -> 1430299.681 | E107: =SUMIFS($F$28:$F79,$E$28:$E$79,C107,$F$28:$F79,">0") -> 0 | F107: =SUMIFS($F$28:$F79,$E$28:$E$79,C107,$F$28:$F79,"<0") -> 0 | G107: =E107+F107 -> 0 | H107: =D107+G107 -> 1,430,300 | I107: ='Actual inputs'!$E$58 -> 200,000 | J107: =H107-I107 -> 1,230,300
C108: 2026-09-13 | D108: =H107 -> 1430299.681 | E108: =SUMIFS($F$28:$F79,$E$28:$E$79,C108,$F$28:$F79,">0") -> 0 | F108: =SUMIFS($F$28:$F79,$E$28:$E$79,C108,$F$28:$F79,"<0") -> 0 | G108: =E108+F108 -> 0 | H108: =D108+G108 -> 1,430,300 | I108: ='Actual inputs'!$E$58 -> 200,000 | J108: =H108-I108 -> 1,230,300
C109: 2026-09-14 | D109: =H108 -> 1430299.681 | E109: =SUMIFS($F$28:$F79,$E$28:$E$79,C109,$F$28:$F79,">0") -> 0 | F109: =SUMIFS($F$28:$F79,$E$28:$E$79,C109,$F$28:$F79,"<0") -> 0 | G109: =E109+F109 -> 0 | H109: =D109+G109 -> 1,430,300 | I109: ='Actual inputs'!$E$58 -> 200,000 | J109: =H109-I109 -> 1,230,300
C110: 2026-09-15 | D110: =H109 -> 1430299.681 | E110: =SUMIFS($F$28:$F79,$E$28:$E$79,C110,$F$28:$F79,">0") -> 29,350 | F110: =SUMIFS($F$28:$F79,$E$28:$E$79,C110,$F$28:$F79,"<0") -> (2,590) | G110: =E110+F110 -> 26,760 | H110: =D110+G110 -> 1,457,060 | I110: ='Actual inputs'!$E$58 -> 200,000 | J110: =H110-I110 -> 1,257,060
C111: 2026-09-16 | D111: =H110 -> 1457059.874 | E111: =SUMIFS($F$28:$F79,$E$28:$E$79,C111,$F$28:$F79,">0") -> 0 | F111: =SUMIFS($F$28:$F79,$E$28:$E$79,C111,$F$28:$F79,"<0") -> 0 | G111: =E111+F111 -> 0 | H111: =D111+G111 -> 1,457,060 | I111: ='Actual inputs'!$E$58 -> 200,000 | J111: =H111-I111 -> 1,257,060
C112: 2026-09-17 | D112: =H111 -> 1457059.874 | E112: =SUMIFS($F$28:$F79,$E$28:$E$79,C112,$F$28:$F79,">0") -> 0 | F112: =SUMIFS($F$28:$F79,$E$28:$E$79,C112,$F$28:$F79,"<0") -> 0 | G112: =E112+F112 -> 0 | H112: =D112+G112 -> 1,457,060 | I112: ='Actual inputs'!$E$58 -> 200,000 | J112: =H112-I112 -> 1,257,060
C113: 2026-09-18 | D113: =H112 -> 1457059.874 | E113: =SUMIFS($F$28:$F79,$E$28:$E$79,C113,$F$28:$F79,">0") -> 59,400 | F113: =SUMIFS($F$28:$F79,$E$28:$E$79,C113,$F$28:$F79,"<0") -> (8,960) | G113: =E113+F113 -> 50,440 | H113: =D113+G113 -> 1,507,500 | I113: ='Actual inputs'!$E$58 -> 200,000 | J113: =H113-I113 -> 1,307,500
C114: 2026-09-19 | D114: =H113 -> 1507499.874 | E114: =SUMIFS($F$28:$F79,$E$28:$E$79,C114,$F$28:$F79,">0") -> 0 | F114: =SUMIFS($F$28:$F79,$E$28:$E$79,C114,$F$28:$F79,"<0") -> 0 | G114: =E114+F114 -> 0 | H114: =D114+G114 -> 1,507,500 | I114: ='Actual inputs'!$E$58 -> 200,000 | J114: =H114-I114 -> 1,307,500
C115: 2026-09-20 | D115: =H114 -> 1507499.874 | E115: =SUMIFS($F$28:$F79,$E$28:$E$79,C115,$F$28:$F79,">0") -> 0 | F115: =SUMIFS($F$28:$F79,$E$28:$E$79,C115,$F$28:$F79,"<0") -> 0 | G115: =E115+F115 -> 0 | H115: =D115+G115 -> 1,507,500 | I115: ='Actual inputs'!$E$58 -> 200,000 | J115: =H115-I115 -> 1,307,500
C116: 2026-09-21 | D116: =H115 -> 1507499.874 | E116: =SUMIFS($F$28:$F79,$E$28:$E$79,C116,$F$28:$F79,">0") -> 0 | F116: =SUMIFS($F$28:$F79,$E$28:$E$79,C116,$F$28:$F79,"<0") -> (12,000) | G116: =E116+F116 -> (12,000) | H116: =D116+G116 -> 1,495,500 | I116: ='Actual inputs'!$E$58 -> 200,000 | J116: =H116-I116 -> 1,295,500
C117: 2026-09-22 | D117: =H116 -> 1495499.874 | E117: =SUMIFS($F$28:$F79,$E$28:$E$79,C117,$F$28:$F79,">0") -> 0 | F117: =SUMIFS($F$28:$F79,$E$28:$E$79,C117,$F$28:$F79,"<0") -> 0 | G117: =E117+F117 -> 0 | H117: =D117+G117 -> 1,495,500 | I117: ='Actual inputs'!$E$58 -> 200,000 | J117: =H117-I117 -> 1,295,500
C118: 2026-09-23 | D118: =H117 -> 1495499.874 | E118: =SUMIFS($F$28:$F79,$E$28:$E$79,C118,$F$28:$F79,">0") -> 0 | F118: =SUMIFS($F$28:$F79,$E$28:$E$79,C118,$F$28:$F79,"<0") -> 0 | G118: =E118+F118 -> 0 | H118: =D118+G118 -> 1,495,500 | I118: ='Actual inputs'!$E$58 -> 200,000 | J118: =H118-I118 -> 1,295,500
C119: 2026-09-24 | D119: =H118 -> 1495499.874 | E119: =SUMIFS($F$28:$F79,$E$28:$E$79,C119,$F$28:$F79,">0") -> 0 | F119: =SUMIFS($F$28:$F79,$E$28:$E$79,C119,$F$28:$F79,"<0") -> 0 | G119: =E119+F119 -> 0 | H119: =D119+G119 -> 1,495,500 | I119: ='Actual inputs'!$E$58 -> 200,000 | J119: =H119-I119 -> 1,295,500
C120: 2026-09-25 | D120: =H119 -> 1495499.874 | E120: =SUMIFS($F$28:$F79,$E$28:$E$79,C120,$F$28:$F79,">0") -> 57,200 | F120: =SUMIFS($F$28:$F79,$E$28:$E$79,C120,$F$28:$F79,"<0") -> (248,640) | G120: =E120+F120 -> (191,440) | H120: =D120+G120 -> 1,304,060 | I120: ='Actual inputs'!$E$58 -> 200,000 | J120: =H120-I120 -> 1,104,060
C121: 2026-09-26 | D121: =H120 -> 1304059.874 | E121: =SUMIFS($F$28:$F79,$E$28:$E$79,C121,$F$28:$F79,">0") -> 0 | F121: =SUMIFS($F$28:$F79,$E$28:$E$79,C121,$F$28:$F79,"<0") -> 0 | G121: =E121+F121 -> 0 | H121: =D121+G121 -> 1,304,060 | I121: ='Actual inputs'!$E$58 -> 200,000 | J121: =H121-I121 -> 1,104,060
C122: 2026-09-27 | D122: =H121 -> 1304059.874 | E122: =SUMIFS($F$28:$F79,$E$28:$E$79,C122,$F$28:$F79,">0") -> 0 | F122: =SUMIFS($F$28:$F79,$E$28:$E$79,C122,$F$28:$F79,"<0") -> 0 | G122: =E122+F122 -> 0 | H122: =D122+G122 -> 1,304,060 | I122: ='Actual inputs'!$E$58 -> 200,000 | J122: =H122-I122 -> 1,104,060
C123: 2026-09-28 | D123: =H122 -> 1304059.874 | E123: =SUMIFS($F$28:$F79,$E$28:$E$79,C123,$F$28:$F79,">0") -> 35,873 | F123: =SUMIFS($F$28:$F79,$E$28:$E$79,C123,$F$28:$F79,"<0") -> (9,249) | G123: =E123+F123 -> 26,624 | H123: =D123+G123 -> 1,330,683 | I123: ='Actual inputs'!$E$58 -> 200,000 | J123: =H123-I123 -> 1,130,683
C124: 2026-09-29 | D124: =H123 -> 1330683.442 | E124: =SUMIFS($F$28:$F79,$E$28:$E$79,C124,$F$28:$F79,">0") -> 0 | F124: =SUMIFS($F$28:$F79,$E$28:$E$79,C124,$F$28:$F79,"<0") -> 0 | G124: =E124+F124 -> 0 | H124: =D124+G124 -> 1,330,683 | I124: ='Actual inputs'!$E$58 -> 200,000 | J124: =H124-I124 -> 1,130,683
C125: 2026-09-30 | D125: =H124 -> 1330683.442 | E125: =SUMIFS($F$28:$F79,$E$28:$E$79,C125,$F$28:$F79,">0") -> 0 | F125: =SUMIFS($F$28:$F79,$E$28:$E$79,C125,$F$28:$F79,"<0") -> 0 | G125: =E125+F125 -> 0 | H125: =D125+G125 -> 1,330,683 | I125: ='Actual inputs'!$E$58 -> 200,000 | J125: =H125-I125 -> 1,130,683
C126: 2026-10-01 | D126: =H125 -> 1330683.442 | E126: =SUMIFS($F$28:$F79,$E$28:$E$79,C126,$F$28:$F79,">0") -> 0 | F126: =SUMIFS($F$28:$F79,$E$28:$E$79,C126,$F$28:$F79,"<0") -> 0 | G126: =E126+F126 -> 0 | H126: =D126+G126 -> 1,330,683 | I126: ='Actual inputs'!$E$58 -> 200,000 | J126: =H126-I126 -> 1,130,683
C127: 2026-10-02 | D127: =H126 -> 1330683.442 | E127: =SUMIFS($F$28:$F79,$E$28:$E$79,C127,$F$28:$F79,">0") -> 0 | F127: =SUMIFS($F$28:$F79,$E$28:$E$79,C127,$F$28:$F79,"<0") -> 0 | G127: =E127+F127 -> 0 | H127: =D127+G127 -> 1,330,683 | I127: ='Actual inputs'!$E$58 -> 200,000 | J127: =H127-I127 -> 1,130,683
C128: 2026-10-03 | D128: =H127 -> 1330683.442 | E128: =SUMIFS($F$28:$F79,$E$28:$E$79,C128,$F$28:$F79,">0") -> 0 | F128: =SUMIFS($F$28:$F79,$E$28:$E$79,C128,$F$28:$F79,"<0") -> 0 | G128: =E128+F128 -> 0 | H128: =D128+G128 -> 1,330,683 | I128: ='Actual inputs'!$E$58 -> 200,000 | J128: =H128-I128 -> 1,130,683
C129: 2026-10-04 | D129: =H128 -> 1330683.442 | E129: =SUMIFS($F$28:$F79,$E$28:$E$79,C129,$F$28:$F79,">0") -> 0 | F129: =SUMIFS($F$28:$F79,$E$28:$E$79,C129,$F$28:$F79,"<0") -> 0 | G129: =E129+F129 -> 0 | H129: =D129+G129 -> 1,330,683 | I129: ='Actual inputs'!$E$58 -> 200,000 | J129: =H129-I129 -> 1,130,683
C130: 2026-10-05 | D130: =H129 -> 1330683.442 | E130: =SUMIFS($F$28:$F79,$E$28:$E$79,C130,$F$28:$F79,">0") -> 0 | F130: =SUMIFS($F$28:$F79,$E$28:$E$79,C130,$F$28:$F79,"<0") -> 0 | G130: =E130+F130 -> 0 | H130: =D130+G130 -> 1,330,683 | I130: ='Actual inputs'!$E$58 -> 200,000 | J130: =H130-I130 -> 1,130,683
C131: 2026-10-06 | D131: =H130 -> 1330683.442 | E131: =SUMIFS($F$28:$F79,$E$28:$E$79,C131,$F$28:$F79,">0") -> 0 | F131: =SUMIFS($F$28:$F79,$E$28:$E$79,C131,$F$28:$F79,"<0") -> 0 | G131: =E131+F131 -> 0 | H131: =D131+G131 -> 1,330,683 | I131: ='Actual inputs'!$E$58 -> 200,000 | J131: =H131-I131 -> 1,130,683
C132: 2026-10-07 | D132: =H131 -> 1330683.442 | E132: =SUMIFS($F$28:$F79,$E$28:$E$79,C132,$F$28:$F79,">0") -> 0 | F132: =SUMIFS($F$28:$F79,$E$28:$E$79,C132,$F$28:$F79,"<0") -> 0 | G132: =E132+F132 -> 0 | H132: =D132+G132 -> 1,330,683 | I132: ='Actual inputs'!$E$58 -> 200,000 | J132: =H132-I132 -> 1,130,683
C133: 2026-10-08 | D133: =H132 -> 1330683.442 | E133: =SUMIFS($F$28:$F79,$E$28:$E$79,C133,$F$28:$F79,">0") -> 0 | F133: =SUMIFS($F$28:$F79,$E$28:$E$79,C133,$F$28:$F79,"<0") -> (12,500) | G133: =E133+F133 -> (12,500) | H133: =D133+G133 -> 1,318,183 | I133: ='Actual inputs'!$E$58 -> 200,000 | J133: =H133-I133 -> 1,118,183
C134: 2026-10-09 | D134: =H133 -> 1318183.442 | E134: =SUMIFS($F$28:$F79,$E$28:$E$79,C134,$F$28:$F79,">0") -> 0 | F134: =SUMIFS($F$28:$F79,$E$28:$E$79,C134,$F$28:$F79,"<0") -> 0 | G134: =E134+F134 -> 0 | H134: =D134+G134 -> 1,318,183 | I134: ='Actual inputs'!$E$58 -> 200,000 | J134: =H134-I134 -> 1,118,183
C135: 2026-10-10 | D135: =H134 -> 1318183.442 | E135: =SUMIFS($F$28:$F79,$E$28:$E$79,C135,$F$28:$F79,">0") -> 0 | F135: =SUMIFS($F$28:$F79,$E$28:$E$79,C135,$F$28:$F79,"<0") -> 0 | G135: =E135+F135 -> 0 | H135: =D135+G135 -> 1,318,183 | I135: ='Actual inputs'!$E$58 -> 200,000 | J135: =H135-I135 -> 1,118,183
C136: 2026-10-11 | D136: =H135 -> 1318183.442 | E136: =SUMIFS($F$28:$F79,$E$28:$E$79,C136,$F$28:$F79,">0") -> 0 | F136: =SUMIFS($F$28:$F79,$E$28:$E$79,C136,$F$28:$F79,"<0") -> 0 | G136: =E136+F136 -> 0 | H136: =D136+G136 -> 1,318,183 | I136: ='Actual inputs'!$E$58 -> 200,000 | J136: =H136-I136 -> 1,118,183
C137: 2026-10-12 | D137: =H136 -> 1318183.442 | E137: =SUMIFS($F$28:$F79,$E$28:$E$79,C137,$F$28:$F79,">0") -> 0 | F137: =SUMIFS($F$28:$F79,$E$28:$E$79,C137,$F$28:$F79,"<0") -> 0 | G137: =E137+F137 -> 0 | H137: =D137+G137 -> 1,318,183 | I137: ='Actual inputs'!$E$58 -> 200,000 | J137: =H137-I137 -> 1,118,183
C138: 2026-10-13 | D138: =H137 -> 1318183.442 | E138: =SUMIFS($F$28:$F79,$E$28:$E$79,C138,$F$28:$F79,">0") -> 0 | F138: =SUMIFS($F$28:$F79,$E$28:$E$79,C138,$F$28:$F79,"<0") -> 0 | G138: =E138+F138 -> 0 | H138: =D138+G138 -> 1,318,183 | I138: ='Actual inputs'!$E$58 -> 200,000 | J138: =H138-I138 -> 1,118,183
C139: 2026-10-14 | D139: =H138 -> 1318183.442 | E139: =SUMIFS($F$28:$F79,$E$28:$E$79,C139,$F$28:$F79,">0") -> 0 | F139: =SUMIFS($F$28:$F79,$E$28:$E$79,C139,$F$28:$F79,"<0") -> 0 | G139: =E139+F139 -> 0 | H139: =D139+G139 -> 1,318,183 | I139: ='Actual inputs'!$E$58 -> 200,000 | J139: =H139-I139 -> 1,118,183
C140: 2026-10-15 | D140: =H139 -> 1318183.442 | E140: =SUMIFS($F$28:$F79,$E$28:$E$79,C140,$F$28:$F79,">0") -> 180,818 | F140: =SUMIFS($F$28:$F79,$E$28:$E$79,C140,$F$28:$F79,"<0") -> (40,143) | G140: =E140+F140 -> 140,675 | H140: =D140+G140 -> 1,458,858 | I140: ='Actual inputs'!$E$58 -> 200,000 | J140: =H140-I140 -> 1,258,858
C141: 2026-10-16 | D141: =H140 -> 1458858.301 | E141: =SUMIFS($F$28:$F79,$E$28:$E$79,C141,$F$28:$F79,">0") -> 0 | F141: =SUMIFS($F$28:$F79,$E$28:$E$79,C141,$F$28:$F79,"<0") -> 0 | G141: =E141+F141 -> 0 | H141: =D141+G141 -> 1,458,858 | I141: ='Actual inputs'!$E$58 -> 200,000 | J141: =H141-I141 -> 1,258,858
C142: 2026-10-17 | D142: =H141 -> 1458858.301 | E142: =SUMIFS($F$28:$F79,$E$28:$E$79,C142,$F$28:$F79,">0") -> 0 | F142: =SUMIFS($F$28:$F79,$E$28:$E$79,C142,$F$28:$F79,"<0") -> 0 | G142: =E142+F142 -> 0 | H142: =D142+G142 -> 1,458,858 | I142: ='Actual inputs'!$E$58 -> 200,000 | J142: =H142-I142 -> 1,258,858
C143: 2026-10-18 | D143: =H142 -> 1458858.301 | E143: =SUMIFS($F$28:$F79,$E$28:$E$79,C143,$F$28:$F79,">0") -> 0 | F143: =SUMIFS($F$28:$F79,$E$28:$E$79,C143,$F$28:$F79,"<0") -> 0 | G143: =E143+F143 -> 0 | H143: =D143+G143 -> 1,458,858 | I143: ='Actual inputs'!$E$58 -> 200,000 | J143: =H143-I143 -> 1,258,858
C144: 2026-10-19 | D144: =H143 -> 1458858.301 | E144: =SUMIFS($F$28:$F79,$E$28:$E$79,C144,$F$28:$F79,">0") -> 0 | F144: =SUMIFS($F$28:$F79,$E$28:$E$79,C144,$F$28:$F79,"<0") -> 0 | G144: =E144+F144 -> 0 | H144: =D144+G144 -> 1,458,858 | I144: ='Actual inputs'!$E$58 -> 200,000 | J144: =H144-I144 -> 1,258,858
C145: 2026-10-20 | D145: =H144 -> 1458858.301 | E145: =SUMIFS($F$28:$F79,$E$28:$E$79,C145,$F$28:$F79,">0") -> 0 | F145: =SUMIFS($F$28:$F79,$E$28:$E$79,C145,$F$28:$F79,"<0") -> 0 | G145: =E145+F145 -> 0 | H145: =D145+G145 -> 1,458,858 | I145: ='Actual inputs'!$E$58 -> 200,000 | J145: =H145-I145 -> 1,258,858
C146: 2026-10-21 | D146: =H145 -> 1458858.301 | E146: =SUMIFS($F$28:$F79,$E$28:$E$79,C146,$F$28:$F79,">0") -> 0 | F146: =SUMIFS($F$28:$F79,$E$28:$E$79,C146,$F$28:$F79,"<0") -> 0 | G146: =E146+F146 -> 0 | H146: =D146+G146 -> 1,458,858 | I146: ='Actual inputs'!$E$58 -> 200,000 | J146: =H146-I146 -> 1,258,858
C147: 2026-10-22 | D147: =H146 -> 1458858.301 | E147: =SUMIFS($F$28:$F79,$E$28:$E$79,C147,$F$28:$F79,">0") -> 0 | F147: =SUMIFS($F$28:$F79,$E$28:$E$79,C147,$F$28:$F79,"<0") -> 0 | G147: =E147+F147 -> 0 | H147: =D147+G147 -> 1,458,858 | I147: ='Actual inputs'!$E$58 -> 200,000 | J147: =H147-I147 -> 1,258,858
C148: 2026-10-23 | D148: =H147 -> 1458858.301 | E148: =SUMIFS($F$28:$F79,$E$28:$E$79,C148,$F$28:$F79,">0") -> 0 | F148: =SUMIFS($F$28:$F79,$E$28:$E$79,C148,$F$28:$F79,"<0") -> 0 | G148: =E148+F148 -> 0 | H148: =D148+G148 -> 1,458,858 | I148: ='Actual inputs'!$E$58 -> 200,000 | J148: =H148-I148 -> 1,258,858
C149: 2026-10-24 | D149: =H148 -> 1458858.301 | E149: =SUMIFS($F$28:$F79,$E$28:$E$79,C149,$F$28:$F79,">0") -> 0 | F149: =SUMIFS($F$28:$F79,$E$28:$E$79,C149,$F$28:$F79,"<0") -> 0 | G149: =E149+F149 -> 0 | H149: =D149+G149 -> 1,458,858 | I149: ='Actual inputs'!$E$58 -> 200,000 | J149: =H149-I149 -> 1,258,858
C150: 2026-10-25 | D150: =H149 -> 1458858.301 | E150: =SUMIFS($F$28:$F79,$E$28:$E$79,C150,$F$28:$F79,">0") -> 0 | F150: =SUMIFS($F$28:$F79,$E$28:$E$79,C150,$F$28:$F79,"<0") -> (238,325) | G150: =E150+F150 -> (238,325) | H150: =D150+G150 -> 1,220,533 | I150: ='Actual inputs'!$E$58 -> 200,000 | J150: =H150-I150 -> 1,020,533
C151: 2026-10-26 | D151: =H150 -> 1220533.301 | E151: =SUMIFS($F$28:$F79,$E$28:$E$79,C151,$F$28:$F79,">0") -> 0 | F151: =SUMIFS($F$28:$F79,$E$28:$E$79,C151,$F$28:$F79,"<0") -> 0 | G151: =E151+F151 -> 0 | H151: =D151+G151 -> 1,220,533 | I151: ='Actual inputs'!$E$58 -> 200,000 | J151: =H151-I151 -> 1,020,533
C152: 2026-10-27 | D152: =H151 -> 1220533.301 | E152: =SUMIFS($F$28:$F79,$E$28:$E$79,C152,$F$28:$F79,">0") -> 0 | F152: =SUMIFS($F$28:$F79,$E$28:$E$79,C152,$F$28:$F79,"<0") -> 0 | G152: =E152+F152 -> 0 | H152: =D152+G152 -> 1,220,533 | I152: ='Actual inputs'!$E$58 -> 200,000 | J152: =H152-I152 -> 1,020,533
C153: 2026-10-28 | D153: =H152 -> 1220533.301 | E153: =SUMIFS($F$28:$F79,$E$28:$E$79,C153,$F$28:$F79,">0") -> 221,000 | F153: =SUMIFS($F$28:$F79,$E$28:$E$79,C153,$F$28:$F79,"<0") -> (55,120) | G153: =E153+F153 -> 165,880 | H153: =D153+G153 -> 1,386,413 | I153: ='Actual inputs'!$E$58 -> 200,000 | J153: =H153-I153 -> 1,186,413
C154: 2026-10-29 | D154: =H153 -> 1386412.99 | E154: =SUMIFS($F$28:$F79,$E$28:$E$79,C154,$F$28:$F79,">0") -> 0 | F154: =SUMIFS($F$28:$F79,$E$28:$E$79,C154,$F$28:$F79,"<0") -> 0 | G154: =E154+F154 -> 0 | H154: =D154+G154 -> 1,386,413 | I154: ='Actual inputs'!$E$58 -> 200,000 | J154: =H154-I154 -> 1,186,413
C155: 2026-10-30 | D155: =H154 -> 1386412.99 | E155: =SUMIFS($F$28:$F79,$E$28:$E$79,C155,$F$28:$F79,">0") -> 0 | F155: =SUMIFS($F$28:$F79,$E$28:$E$79,C155,$F$28:$F79,"<0") -> 0 | G155: =E155+F155 -> 0 | H155: =D155+G155 -> 1,386,413 | I155: ='Actual inputs'!$E$58 -> 200,000 | J155: =H155-I155 -> 1,186,413
C156: 2026-10-31 | D156: =H155 -> 1386412.99 | E156: =SUMIFS($F$28:$F79,$E$28:$E$79,C156,$F$28:$F79,">0") -> 0 | F156: =SUMIFS($F$28:$F79,$E$28:$E$79,C156,$F$28:$F79,"<0") -> 0 | G156: =E156+F156 -> 0 | H156: =D156+G156 -> 1,386,413 | I156: ='Actual inputs'!$E$58 -> 200,000 | J156: =H156-I156 -> 1,186,413
C157: 2026-11-01 | D157: =H156 -> 1386412.99 | E157: =SUMIFS($F$28:$F79,$E$28:$E$79,C157,$F$28:$F79,">0") -> 0 | F157: =SUMIFS($F$28:$F79,$E$28:$E$79,C157,$F$28:$F79,"<0") -> 0 | G157: =E157+F157 -> 0 | H157: =D157+G157 -> 1,386,413 | I157: ='Actual inputs'!$E$58 -> 200,000 | J157: =H157-I157 -> 1,186,413
C158: 2026-11-02 | D158: =H157 -> 1386412.99 | E158: =SUMIFS($F$28:$F79,$E$28:$E$79,C158,$F$28:$F79,">0") -> 0 | F158: =SUMIFS($F$28:$F79,$E$28:$E$79,C158,$F$28:$F79,"<0") -> 0 | G158: =E158+F158 -> 0 | H158: =D158+G158 -> 1,386,413 | I158: ='Actual inputs'!$E$58 -> 200,000 | J158: =H158-I158 -> 1,186,413
C159: 2026-11-03 | D159: =H158 -> 1386412.99 | E159: =SUMIFS($F$28:$F79,$E$28:$E$79,C159,$F$28:$F79,">0") -> 0 | F159: =SUMIFS($F$28:$F79,$E$28:$E$79,C159,$F$28:$F79,"<0") -> 0 | G159: =E159+F159 -> 0 | H159: =D159+G159 -> 1,386,413 | I159: ='Actual inputs'!$E$58 -> 200,000 | J159: =H159-I159 -> 1,186,413
C160: 2026-11-04 | D160: =H159 -> 1386412.99 | E160: =SUMIFS($F$28:$F79,$E$28:$E$79,C160,$F$28:$F79,">0") -> 0 | F160: =SUMIFS($F$28:$F79,$E$28:$E$79,C160,$F$28:$F79,"<0") -> 0 | G160: =E160+F160 -> 0 | H160: =D160+G160 -> 1,386,413 | I160: ='Actual inputs'!$E$58 -> 200,000 | J160: =H160-I160 -> 1,186,413
C161: 2026-11-05 | D161: =H160 -> 1386412.99 | E161: =SUMIFS($F$28:$F79,$E$28:$E$79,C161,$F$28:$F79,">0") -> 0 | F161: =SUMIFS($F$28:$F79,$E$28:$E$79,C161,$F$28:$F79,"<0") -> 0 | G161: =E161+F161 -> 0 | H161: =D161+G161 -> 1,386,413 | I161: ='Actual inputs'!$E$58 -> 200,000 | J161: =H161-I161 -> 1,186,413
C162: 2026-11-06 | D162: =H161 -> 1386412.99 | E162: =SUMIFS($F$28:$F79,$E$28:$E$79,C162,$F$28:$F79,">0") -> 0 | F162: =SUMIFS($F$28:$F79,$E$28:$E$79,C162,$F$28:$F79,"<0") -> 0 | G162: =E162+F162 -> 0 | H162: =D162+G162 -> 1,386,413 | I162: ='Actual inputs'!$E$58 -> 200,000 | J162: =H162-I162 -> 1,186,413
C163: 2026-11-07 | D163: =H162 -> 1386412.99 | E163: =SUMIFS($F$28:$F79,$E$28:$E$79,C163,$F$28:$F79,">0") -> 0 | F163: =SUMIFS($F$28:$F79,$E$28:$E$79,C163,$F$28:$F79,"<0") -> 0 | G163: =E163+F163 -> 0 | H163: =D163+G163 -> 1,386,413 | I163: ='Actual inputs'!$E$58 -> 200,000 | J163: =H163-I163 -> 1,186,413
C164: 2026-11-08 | D164: =H163 -> 1386412.99 | E164: =SUMIFS($F$28:$F79,$E$28:$E$79,C164,$F$28:$F79,">0") -> 0 | F164: =SUMIFS($F$28:$F79,$E$28:$E$79,C164,$F$28:$F79,"<0") -> (13,000) | G164: =E164+F164 -> (13,000) | H164: =D164+G164 -> 1,373,413 | I164: ='Actual inputs'!$E$58 -> 200,000 | J164: =H164-I164 -> 1,173,413
C165: 2026-11-09 | D165: =H164 -> 1373412.99 | E165: =SUMIFS($F$28:$F79,$E$28:$E$79,C165,$F$28:$F79,">0") -> 0 | F165: =SUMIFS($F$28:$F79,$E$28:$E$79,C165,$F$28:$F79,"<0") -> 0 | G165: =E165+F165 -> 0 | H165: =D165+G165 -> 1,373,413 | I165: ='Actual inputs'!$E$58 -> 200,000 | J165: =H165-I165 -> 1,173,413
C166: 2026-11-10 | D166: =H165 -> 1373412.99 | E166: =SUMIFS($F$28:$F79,$E$28:$E$79,C166,$F$28:$F79,">0") -> 0 | F166: =SUMIFS($F$28:$F79,$E$28:$E$79,C166,$F$28:$F79,"<0") -> 0 | G166: =E166+F166 -> 0 | H166: =D166+G166 -> 1,373,413 | I166: ='Actual inputs'!$E$58 -> 200,000 | J166: =H166-I166 -> 1,173,413
C167: 2026-11-11 | D167: =H166 -> 1373412.99 | E167: =SUMIFS($F$28:$F79,$E$28:$E$79,C167,$F$28:$F79,">0") -> 0 | F167: =SUMIFS($F$28:$F79,$E$28:$E$79,C167,$F$28:$F79,"<0") -> 0 | G167: =E167+F167 -> 0 | H167: =D167+G167 -> 1,373,413 | I167: ='Actual inputs'!$E$58 -> 200,000 | J167: =H167-I167 -> 1,173,413
C168: 2026-11-12 | D168: =H167 -> 1373412.99 | E168: =SUMIFS($F$28:$F79,$E$28:$E$79,C168,$F$28:$F79,">0") -> 0 | F168: =SUMIFS($F$28:$F79,$E$28:$E$79,C168,$F$28:$F79,"<0") -> 0 | G168: =E168+F168 -> 0 | H168: =D168+G168 -> 1,373,413 | I168: ='Actual inputs'!$E$58 -> 200,000 | J168: =H168-I168 -> 1,173,413
C169: 2026-11-13 | D169: =H168 -> 1373412.99 | E169: =SUMIFS($F$28:$F79,$E$28:$E$79,C169,$F$28:$F79,">0") -> 0 | F169: =SUMIFS($F$28:$F79,$E$28:$E$79,C169,$F$28:$F79,"<0") -> 0 | G169: =E169+F169 -> 0 | H169: =D169+G169 -> 1,373,413 | I169: ='Actual inputs'!$E$58 -> 200,000 | J169: =H169-I169 -> 1,173,413
C170: 2026-11-14 | D170: =H169 -> 1373412.99 | E170: =SUMIFS($F$28:$F79,$E$28:$E$79,C170,$F$28:$F79,">0") -> 0 | F170: =SUMIFS($F$28:$F79,$E$28:$E$79,C170,$F$28:$F79,"<0") -> 0 | G170: =E170+F170 -> 0 | H170: =D170+G170 -> 1,373,413 | I170: ='Actual inputs'!$E$58 -> 200,000 | J170: =H170-I170 -> 1,173,413
C171: 2026-11-15 | D171: =H170 -> 1373412.99 | E171: =SUMIFS($F$28:$F79,$E$28:$E$79,C171,$F$28:$F79,">0") -> 173,700 | F171: =SUMIFS($F$28:$F79,$E$28:$E$79,C171,$F$28:$F79,"<0") -> (38,989) | G171: =E171+F171 -> 134,711 | H171: =D171+G171 -> 1,508,124 | I171: ='Actual inputs'!$E$58 -> 200,000 | J171: =H171-I171 -> 1,308,124
C172: 2026-11-16 | D172: =H171 -> 1508124.409 | E172: =SUMIFS($F$28:$F79,$E$28:$E$79,C172,$F$28:$F79,">0") -> 0 | F172: =SUMIFS($F$28:$F79,$E$28:$E$79,C172,$F$28:$F79,"<0") -> 0 | G172: =E172+F172 -> 0 | H172: =D172+G172 -> 1,508,124 | I172: ='Actual inputs'!$E$58 -> 200,000 | J172: =H172-I172 -> 1,308,124
C173: 2026-11-17 | D173: =H172 -> 1508124.409 | E173: =SUMIFS($F$28:$F79,$E$28:$E$79,C173,$F$28:$F79,">0") -> 0 | F173: =SUMIFS($F$28:$F79,$E$28:$E$79,C173,$F$28:$F79,"<0") -> 0 | G173: =E173+F173 -> 0 | H173: =D173+G173 -> 1,508,124 | I173: ='Actual inputs'!$E$58 -> 200,000 | J173: =H173-I173 -> 1,308,124
C174: 2026-11-18 | D174: =H173 -> 1508124.409 | E174: =SUMIFS($F$28:$F79,$E$28:$E$79,C174,$F$28:$F79,">0") -> 0 | F174: =SUMIFS($F$28:$F79,$E$28:$E$79,C174,$F$28:$F79,"<0") -> 0 | G174: =E174+F174 -> 0 | H174: =D174+G174 -> 1,508,124 | I174: ='Actual inputs'!$E$58 -> 200,000 | J174: =H174-I174 -> 1,308,124
C175: 2026-11-19 | D175: =H174 -> 1508124.409 | E175: =SUMIFS($F$28:$F79,$E$28:$E$79,C175,$F$28:$F79,">0") -> 0 | F175: =SUMIFS($F$28:$F79,$E$28:$E$79,C175,$F$28:$F79,"<0") -> 0 | G175: =E175+F175 -> 0 | H175: =D175+G175 -> 1,508,124 | I175: ='Actual inputs'!$E$58 -> 200,000 | J175: =H175-I175 -> 1,308,124
C176: 2026-11-20 | D176: =H175 -> 1508124.409 | E176: =SUMIFS($F$28:$F79,$E$28:$E$79,C176,$F$28:$F79,">0") -> 0 | F176: =SUMIFS($F$28:$F79,$E$28:$E$79,C176,$F$28:$F79,"<0") -> 0 | G176: =E176+F176 -> 0 | H176: =D176+G176 -> 1,508,124 | I176: ='Actual inputs'!$E$58 -> 200,000 | J176: =H176-I176 -> 1,308,124
C177: 2026-11-21 | D177: =H176 -> 1508124.409 | E177: =SUMIFS($F$28:$F79,$E$28:$E$79,C177,$F$28:$F79,">0") -> 0 | F177: =SUMIFS($F$28:$F79,$E$28:$E$79,C177,$F$28:$F79,"<0") -> 0 | G177: =E177+F177 -> 0 | H177: =D177+G177 -> 1,508,124 | I177: ='Actual inputs'!$E$58 -> 200,000 | J177: =H177-I177 -> 1,308,124
C178: 2026-11-22 | D178: =H177 -> 1508124.409 | E178: =SUMIFS($F$28:$F79,$E$28:$E$79,C178,$F$28:$F79,">0") -> 0 | F178: =SUMIFS($F$28:$F79,$E$28:$E$79,C178,$F$28:$F79,"<0") -> 0 | G178: =E178+F178 -> 0 | H178: =D178+G178 -> 1,508,124 | I178: ='Actual inputs'!$E$58 -> 200,000 | J178: =H178-I178 -> 1,308,124
C179: 2026-11-23 | D179: =H178 -> 1508124.409 | E179: =SUMIFS($F$28:$F79,$E$28:$E$79,C179,$F$28:$F79,">0") -> 0 | F179: =SUMIFS($F$28:$F79,$E$28:$E$79,C179,$F$28:$F79,"<0") -> 0 | G179: =E179+F179 -> 0 | H179: =D179+G179 -> 1,508,124 | I179: ='Actual inputs'!$E$58 -> 200,000 | J179: =H179-I179 -> 1,308,124
C180: 2026-11-24 | D180: =H179 -> 1508124.409 | E180: =SUMIFS($F$28:$F79,$E$28:$E$79,C180,$F$28:$F79,">0") -> 0 | F180: =SUMIFS($F$28:$F79,$E$28:$E$79,C180,$F$28:$F79,"<0") -> 0 | G180: =E180+F180 -> 0 | H180: =D180+G180 -> 1,508,124 | I180: ='Actual inputs'!$E$58 -> 200,000 | J180: =H180-I180 -> 1,308,124
C181: 2026-11-25 | D181: =H180 -> 1508124.409 | E181: =SUMIFS($F$28:$F79,$E$28:$E$79,C181,$F$28:$F79,">0") -> 0 | F181: =SUMIFS($F$28:$F79,$E$28:$E$79,C181,$F$28:$F79,"<0") -> (244,650) | G181: =E181+F181 -> (244,650) | H181: =D181+G181 -> 1,263,474 | I181: ='Actual inputs'!$E$58 -> 200,000 | J181: =H181-I181 -> 1,063,474
C182: 2026-11-26 | D182: =H181 -> 1263474.409 | E182: =SUMIFS($F$28:$F79,$E$28:$E$79,C182,$F$28:$F79,">0") -> 0 | F182: =SUMIFS($F$28:$F79,$E$28:$E$79,C182,$F$28:$F79,"<0") -> 0 | G182: =E182+F182 -> 0 | H182: =D182+G182 -> 1,263,474 | I182: ='Actual inputs'!$E$58 -> 200,000 | J182: =H182-I182 -> 1,063,474
C183: 2026-11-27 | D183: =H182 -> 1263474.409 | E183: =SUMIFS($F$28:$F79,$E$28:$E$79,C183,$F$28:$F79,">0") -> 0 | F183: =SUMIFS($F$28:$F79,$E$28:$E$79,C183,$F$28:$F79,"<0") -> 0 | G183: =E183+F183 -> 0 | H183: =D183+G183 -> 1,263,474 | I183: ='Actual inputs'!$E$58 -> 200,000 | J183: =H183-I183 -> 1,063,474
C184: 2026-11-28 | D184: =H183 -> 1263474.409 | E184: =SUMIFS($F$28:$F79,$E$28:$E$79,C184,$F$28:$F79,">0") -> 212,301 | F184: =SUMIFS($F$28:$F79,$E$28:$E$79,C184,$F$28:$F79,"<0") -> (53,682) | G184: =E184+F184 -> 158,618 | H184: =D184+G184 -> 1,422,093 | I184: ='Actual inputs'!$E$58 -> 200,000 | J184: =H184-I184 -> 1,222,093
C185: 2026-11-29 | D185: =H184 -> 1422092.532 | E185: =SUMIFS($F$28:$F79,$E$28:$E$79,C185,$F$28:$F79,">0") -> 0 | F185: =SUMIFS($F$28:$F79,$E$28:$E$79,C185,$F$28:$F79,"<0") -> 0 | G185: =E185+F185 -> 0 | H185: =D185+G185 -> 1,422,093 | I185: ='Actual inputs'!$E$58 -> 200,000 | J185: =H185-I185 -> 1,222,093

Sheet Revenue
C2: Revenue
C4: Selected case | E4: ='Assumptions'!$G$4 -> Base | H4: EUR · entirely fictional
E6: Actual | F6: Actual | G6: Actual | H6: Actual | I6: Actual | J6: Actual | K6: Actual | L6: Actual | M6: Forecast | N6: Forecast | O6: Forecast | P6: Forecast
E7: 2026-01-01 | F7: 2026-02-01 | G7: 2026-03-01 | H7: 2026-04-01 | I7: 2026-05-01 | J7: 2026-06-01 | K7: 2026-07-01 | L7: 2026-08-01 | M7: 2026-09-01 | N7: 2026-10-01 | O7: 2026-11-01 | P7: 2026-12-01
C8: Opening accounts | E8: ='Actual inputs'!$E$52 -> 390.0 | F8: ='Revenue'!E11 -> 405.0 | G8: ='Revenue'!F11 -> 421.0 | H8: ='Revenue'!G11 -> 437.0 | I8: ='Revenue'!H11 -> 455.0 | J8: ='Revenue'!I11 -> 474.0 | K8: ='Revenue'!J11 -> 493.0 | L8: ='Revenue'!K11 -> 513.0 | M8: ='Revenue'!L11 -> 534.0 | N8: ='Revenue'!M11 -> 556.0 | O8: ='Revenue'!N11 -> 579.0 | P8: ='Revenue'!O11 -> 603.0
C9: New accounts | E9: ='Assumptions'!E56 -> 22.0 | F9: ='Assumptions'!F56 -> 23.0 | G9: ='Assumptions'!G56 -> 24.0 | H9: ='Assumptions'!H56 -> 26.0 | I9: ='Assumptions'!I56 -> 27.0 | J9: ='Assumptions'!J56 -> 28.0 | K9: ='Assumptions'!K56 -> 29.0 | L9: ='Assumptions'!L56 -> 30.0 | M9: ='Assumptions'!M56 -> 32.0 | N9: ='Assumptions'!N56 -> 33.0 | O9: ='Assumptions'!O56 -> 34.0 | P9: ='Assumptions'!P56 -> 35.0
C10: Lost accounts | E10: =ROUND('Revenue'!E8*'Assumptions'!E71,0) -> 7.0 | F10: =ROUND('Revenue'!F8*'Assumptions'!F71,0) -> 7.0 | G10: =ROUND('Revenue'!G8*'Assumptions'!G71,0) -> 8.0 | H10: =ROUND('Revenue'!H8*'Assumptions'!H71,0) -> 8.0 | I10: =ROUND('Revenue'!I8*'Assumptions'!I71,0) -> 8.0 | J10: =ROUND('Revenue'!J8*'Assumptions'!J71,0) -> 9.0 | K10: =ROUND('Revenue'!K8*'Assumptions'!K71,0) -> 9.0 | L10: =ROUND('Revenue'!L8*'Assumptions'!L71,0) -> 9.0 | M10: =ROUND('Revenue'!M8*'Assumptions'!M71,0) -> 10.0 | N10: =ROUND('Revenue'!N8*'Assumptions'!N71,0) -> 10.0 | O10: =ROUND('Revenue'!O8*'Assumptions'!O71,0) -> 10.0 | P10: =ROUND('Revenue'!P8*'Assumptions'!P71,0) -> 11.0
C11: Closing accounts | E11: ='Revenue'!E8+'Revenue'!E9-'Revenue'!E10 -> 405.0 | F11: ='Revenue'!F8+'Revenue'!F9-'Revenue'!F10 -> 421.0 | G11: ='Revenue'!G8+'Revenue'!G9-'Revenue'!G10 -> 437.0 | H11: ='Revenue'!H8+'Revenue'!H9-'Revenue'!H10 -> 455.0 | I11: ='Revenue'!I8+'Revenue'!I9-'Revenue'!I10 -> 474.0 | J11: ='Revenue'!J8+'Revenue'!J9-'Revenue'!J10 -> 493.0 | K11: ='Revenue'!K8+'Revenue'!K9-'Revenue'!K10 -> 513.0 | L11: ='Revenue'!L8+'Revenue'!L9-'Revenue'!L10 -> 534.0 | M11: ='Revenue'!M8+'Revenue'!M9-'Revenue'!M10 -> 556.0 | N11: ='Revenue'!N8+'Revenue'!N9-'Revenue'!N10 -> 579.0 | O11: ='Revenue'!O8+'Revenue'!O9-'Revenue'!O10 -> 603.0 | P11: ='Revenue'!P8+'Revenue'!P9-'Revenue'!P10 -> 627.0
C12: Opening MRR | E12: ='Actual inputs'!$E$51 -> 188,000 | F12: ='Revenue'!E17 -> 199,444 | G12: ='Revenue'!F17 -> 211,104 | H12: ='Revenue'!G17 -> 223,575 | I12: ='Revenue'!H17 -> 237,033 | J12: ='Revenue'!I17 -> 250,863 | K12: ='Revenue'!J17 -> 264,541 | L12: ='Revenue'!K17 -> 277,999 | M12: ='Revenue'!L17 -> 291,167 | N12: ='Revenue'!M17 -> 307,513 | O12: ='Revenue'!N17 -> 324,755 | P12: ='Revenue'!O17 -> 343,252
C13: New MRR | E13: ='Assumptions'!E56*'Assumptions'!E59 -> 12,760 | F13: ='Assumptions'!F56*'Assumptions'!F59 -> 13,455 | G13: ='Assumptions'!G56*'Assumptions'!G59 -> 14,160 | H13: ='Assumptions'!H56*'Assumptions'!H59 -> 15,470 | I13: ='Assumptions'!I56*'Assumptions'!I59 -> 16,200 | J13: ='Assumptions'!J56*'Assumptions'!J59 -> 16,940 | K13: ='Assumptions'!K56*'Assumptions'!K59 -> 17,690 | L13: ='Assumptions'!L56*'Assumptions'!L59 -> 18,450 | M13: ='Assumptions'!M56*'Assumptions'!M59 -> 19,840 | N13: ='Assumptions'!N56*'Assumptions'!N59 -> 20,625 | O13: ='Assumptions'!O56*'Assumptions'!O59 -> 21,420 | P13: ='Assumptions'!P56*'Assumptions'!P59 -> 22,225
C14: Expansion MRR | E14: ='Revenue'!E12*'Assumptions'!E62 -> 2,256 | F14: ='Revenue'!F12*'Assumptions'!F62 -> 2,393 | G14: ='Revenue'!G12*'Assumptions'!G62 -> 2,533 | H14: ='Revenue'!H12*'Assumptions'!H62 -> 2,683 | I14: ='Revenue'!I12*'Assumptions'!I62 -> 2,844 | J14: ='Revenue'!J12*'Assumptions'!J62 -> 3,010 | K14: ='Revenue'!K12*'Assumptions'!K62 -> 3,174 | L14: ='Revenue'!L12*'Assumptions'!L62 -> 3,336 | M14: ='Revenue'!M12*'Assumptions'!M62 -> 3,494 | N14: ='Revenue'!N12*'Assumptions'!N62 -> 3,690 | O14: ='Revenue'!O12*'Assumptions'!O62 -> 3,897 | P14: ='Revenue'!P12*'Assumptions'!P62 -> 4,119
C15: Churned MRR | E15: =-'Revenue'!E12*'Assumptions'!E65 -> (3,008) | F15: =-'Revenue'!F12*'Assumptions'!F65 -> (3,590) | G15: =-'Revenue'!G12*'Assumptions'!G65 -> (3,589) | H15: =-'Revenue'!H12*'Assumptions'!H65 -> (4,024) | I15: =-'Revenue'!I12*'Assumptions'!I65 -> (4,504) | J15: =-'Revenue'!J12*'Assumptions'!J65 -> (5,519) | K15: =-'Revenue'!K12*'Assumptions'!K65 -> (6,614) | L15: =-'Revenue'!L12*'Assumptions'!L65 -> (7,784) | M15: =-'Revenue'!M12*'Assumptions'!M65 -> (6,115) | N15: =-'Revenue'!N12*'Assumptions'!N65 -> (6,150) | O15: =-'Revenue'!O12*'Assumptions'!O65 -> (5,846) | P15: =-'Revenue'!P12*'Assumptions'!P65 -> (5,835)
C16: Contracted MRR | E16: =-'Revenue'!E12*'Assumptions'!E68 -> (564) | F16: =-'Revenue'!F12*'Assumptions'!F68 -> (598) | G16: =-'Revenue'!G12*'Assumptions'!G68 -> (633) | H16: =-'Revenue'!H12*'Assumptions'!H68 -> (671) | I16: =-'Revenue'!I12*'Assumptions'!I68 -> (711) | J16: =-'Revenue'!J12*'Assumptions'!J68 -> (753) | K16: =-'Revenue'!K12*'Assumptions'!K68 -> (794) | L16: =-'Revenue'!L12*'Assumptions'!L68 -> (834) | M16: =-'Revenue'!M12*'Assumptions'!M68 -> (874) | N16: =-'Revenue'!N12*'Assumptions'!N68 -> (923) | O16: =-'Revenue'!O12*'Assumptions'!O68 -> (974) | P16: =-'Revenue'!P12*'Assumptions'!P68 -> (1,030)
C17: Closing MRR | E17: ='Revenue'!E12+'Revenue'!E13+'Revenue'!E14+'Revenue'!E15+'Revenue'!E16 -> 199,444 | F17: ='Revenue'!F12+'Revenue'!F13+'Revenue'!F14+'Revenue'!F15+'Revenue'!F16 -> 211,104 | G17: ='Revenue'!G12+'Revenue'!G13+'Revenue'!G14+'Revenue'!G15+'Revenue'!G16 -> 223,575 | H17: ='Revenue'!H12+'Revenue'!H13+'Revenue'!H14+'Revenue'!H15+'Revenue'!H16 -> 237,033 | I17: ='Revenue'!I12+'Revenue'!I13+'Revenue'!I14+'Revenue'!I15+'Revenue'!I16 -> 250,863 | J17: ='Revenue'!J12+'Revenue'!J13+'Revenue'!J14+'Revenue'!J15+'Revenue'!J16 -> 264,541 | K17: ='Revenue'!K12+'Revenue'!K13+'Revenue'!K14+'Revenue'!K15+'Revenue'!K16 -> 277,999 | L17: ='Revenue'!L12+'Revenue'!L13+'Revenue'!L14+'Revenue'!L15+'Revenue'!L16 -> 291,167 | M17: ='Revenue'!M12+'Revenue'!M13+'Revenue'!M14+'Revenue'!M15+'Revenue'!M16 -> 307,513 | N17: ='Revenue'!N12+'Revenue'!N13+'Revenue'!N14+'Revenue'!N15+'Revenue'!N16 -> 324,755 | O17: ='Revenue'!O12+'Revenue'!O13+'Revenue'!O14+'Revenue'!O15+'Revenue'!O16 -> 343,252 | P17: ='Revenue'!P12+'Revenue'!P13+'Revenue'!P14+'Revenue'!P15+'Revenue'!P16 -> 362,731
C18: Closing ARR | E18: ='Revenue'!E17*12 -> 2,393,328 | F18: ='Revenue'!F17*12 -> 2,533,248 | G18: ='Revenue'!G17*12 -> 2,682,902 | H18: ='Revenue'!H17*12 -> 2,844,396 | I18: ='Revenue'!I17*12 -> 3,010,352 | J18: ='Revenue'!J17*12 -> 3,174,497 | K18: ='Revenue'!K17*12 -> 3,335,985 | L18: ='Revenue'!L17*12 -> 3,494,002 | M18: ='Revenue'!M17*12 -> 3,690,154 | N18: ='Revenue'!N17*12 -> 3,897,062 | O18: ='Revenue'!O17*12 -> 4,119,028 | P18: ='Revenue'!P17*12 -> 4,352,776
C19: Recognised subscription revenue | E19: =('Revenue'!E12+'Revenue'!E17)/2 -> 193,722 | F19: =('Revenue'!F12+'Revenue'!F17)/2 -> 205,274 | G19: =('Revenue'!G12+'Revenue'!G17)/2 -> 217,340 | H19: =('Revenue'!H12+'Revenue'!H17)/2 -> 230,304 | I19: =('Revenue'!I12+'Revenue'!I17)/2 -> 243,948 | J19: =('Revenue'!J12+'Revenue'!J17)/2 -> 257,702 | K19: =('Revenue'!K12+'Revenue'!K17)/2 -> 271,270 | L19: =('Revenue'!L12+'Revenue'!L17)/2 -> 284,583 | M19: =('Revenue'!M12+'Revenue'!M17)/2 -> 299,340 | N19: =('Revenue'!N12+'Revenue'!N17)/2 -> 316,134 | O19: =('Revenue'!O12+'Revenue'!O17)/2 -> 334,004 | P19: =('Revenue'!P12+'Revenue'!P17)/2 -> 352,992
C20: Recognised annual-plan revenue | E20: ='Revenue'!E19*'Assumptions'!E74 -> 120,108 | F20: ='Revenue'!F19*'Assumptions'!F74 -> 127,270 | G20: ='Revenue'!G19*'Assumptions'!G74 -> 134,751 | H20: ='Revenue'!H19*'Assumptions'!H74 -> 142,789 | I20: ='Revenue'!I19*'Assumptions'!I74 -> 151,248 | J20: ='Revenue'!J19*'Assumptions'!J74 -> 159,775 | K20: ='Revenue'!K19*'Assumptions'!K74 -> 168,187 | L20: ='Revenue'!L19*'Assumptions'!L74 -> 176,441 | M20: ='Revenue'!M19*'Assumptions'!M74 -> 185,591 | N20: ='Revenue'!N19*'Assumptions'!N74 -> 196,003 | O20: ='Revenue'!O19*'Assumptions'!O74 -> 207,082 | P20: ='Revenue'!P19*'Assumptions'!P74 -> 218,855
C21: Annual-plan billings | E21: ='Revenue'!E20*'Assumptions'!E77 -> 144,129 | F21: ='Revenue'!F20*'Assumptions'!F77 -> 108,179 | G21: ='Revenue'!G20*'Assumptions'!G77 -> 128,013 | H21: ='Revenue'!H20*'Assumptions'!H77 -> 149,928 | I21: ='Revenue'!I20*'Assumptions'!I77 -> 128,561 | J21: ='Revenue'!J20*'Assumptions'!J77 -> 143,798 | K21: ='Revenue'!K20*'Assumptions'!K77 -> 168,187 | L21: ='Revenue'!L20*'Assumptions'!L77 -> 194,085 | M21: ='Revenue'!M20*'Assumptions'!M77 -> 231,988 | N21: ='Revenue'!N20*'Assumptions'!N77 -> 225,404 | O21: ='Revenue'!O20*'Assumptions'!O77 -> 248,499 | P21: ='Revenue'!P20*'Assumptions'!P77 -> 306,397
C22: Monthly-plan billings | E22: ='Revenue'!E19-'Revenue'!E20 -> 73,614 | F22: ='Revenue'!F19-'Revenue'!F20 -> 78,004 | G22: ='Revenue'!G19-'Revenue'!G20 -> 82,589 | H22: ='Revenue'!H19-'Revenue'!H20 -> 87,516 | I22: ='Revenue'!I19-'Revenue'!I20 -> 92,700 | J22: ='Revenue'!J19-'Revenue'!J20 -> 97,927 | K22: ='Revenue'!K19-'Revenue'!K20 -> 103,083 | L22: ='Revenue'!L19-'Revenue'!L20 -> 108,141 | M22: ='Revenue'!M19-'Revenue'!M20 -> 113,749 | N22: ='Revenue'!N19-'Revenue'!N20 -> 120,131 | O22: ='Revenue'!O19-'Revenue'!O20 -> 126,921 | P22: ='Revenue'!P19-'Revenue'!P20 -> 134,137
C23: Onboarding revenue | E23: ='Assumptions'!E80*'Assumptions'!E83 -> 33,600 | F23: ='Assumptions'!F80*'Assumptions'!F83 -> 36,000 | G23: ='Assumptions'!G80*'Assumptions'!G83 -> 36,000 | H23: ='Assumptions'!H80*'Assumptions'!H83 -> 38,400 | I23: ='Assumptions'!I80*'Assumptions'!I83 -> 38,400 | J23: ='Assumptions'!J80*'Assumptions'!J83 -> 40,800 | K23: ='Assumptions'!K80*'Assumptions'!K83 -> 43,200 | L23: ='Assumptions'!L80*'Assumptions'!L83 -> 43,200 | M23: ='Assumptions'!M80*'Assumptions'!M83 -> 45,600 | N23: ='Assumptions'!N80*'Assumptions'!N83 -> 45,600 | O23: ='Assumptions'!O80*'Assumptions'!O83 -> 48,000 | P23: ='Assumptions'!P80*'Assumptions'!P83 -> 50,400
C24: Total recognised revenue | E24: ='Revenue'!E19+'Revenue'!E23 -> 227,322 | F24: ='Revenue'!F19+'Revenue'!F23 -> 241,274 | G24: ='Revenue'!G19+'Revenue'!G23 -> 253,340 | H24: ='Revenue'!H19+'Revenue'!H23 -> 268,704 | I24: ='Revenue'!I19+'Revenue'!I23 -> 282,348 | J24: ='Revenue'!J19+'Revenue'!J23 -> 298,502 | K24: ='Revenue'!K19+'Revenue'!K23 -> 314,470 | L24: ='Revenue'!L19+'Revenue'!L23 -> 327,783 | M24: ='Revenue'!M19+'Revenue'!M23 -> 344,940 | N24: ='Revenue'!N19+'Revenue'!N23 -> 361,734 | O24: ='Revenue'!O19+'Revenue'!O23 -> 382,004 | P24: ='Revenue'!P19+'Revenue'!P23 -> 403,392
C25: Total invoiced billings | E25: ='Revenue'!E21+'Revenue'!E22+'Revenue'!E23 -> 251,344 | F25: ='Revenue'!F21+'Revenue'!F22+'Revenue'!F23 -> 222,184 | G25: ='Revenue'!G21+'Revenue'!G22+'Revenue'!G23 -> 246,602 | H25: ='Revenue'!H21+'Revenue'!H22+'Revenue'!H23 -> 275,844 | I25: ='Revenue'!I21+'Revenue'!I22+'Revenue'!I23 -> 259,661 | J25: ='Revenue'!J21+'Revenue'!J22+'Revenue'!J23 -> 282,525 | K25: ='Revenue'!K21+'Revenue'!K22+'Revenue'!K23 -> 314,470 | L25: ='Revenue'!L21+'Revenue'!L22+'Revenue'!L23 -> 345,427 | M25: ='Revenue'!M21+'Revenue'!M22+'Revenue'!M23 -> 391,337 | N25: ='Revenue'!N21+'Revenue'!N22+'Revenue'!N23 -> 391,134 | O25: ='Revenue'!O21+'Revenue'!O22+'Revenue'!O23 -> 423,420 | P25: ='Revenue'!P21+'Revenue'!P22+'Revenue'!P23 -> 490,934
C26: Opening deferred revenue | E26: ='Actual inputs'!$E$43 -> 390,000 | F26: ='Revenue'!E27 -> 414,022 | G26: ='Revenue'!F27 -> 394,931 | H26: ='Revenue'!G27 -> 388,194 | I26: ='Revenue'!H27 -> 395,333 | J26: ='Revenue'!I27 -> 372,646 | K26: ='Revenue'!J27 -> 356,668 | L26: ='Revenue'!K27 -> 356,668 | M26: ='Revenue'!L27 -> 374,312 | N26: ='Revenue'!M27 -> 420,710 | O26: ='Revenue'!N27 -> 450,111 | P26: ='Revenue'!O27 -> 491,527
C27: Closing deferred revenue | E27: ='Revenue'!E26+'Revenue'!E21-'Revenue'!E20 -> 414,022 | F27: ='Revenue'!F26+'Revenue'!F21-'Revenue'!F20 -> 394,931 | G27: ='Revenue'!G26+'Revenue'!G21-'Revenue'!G20 -> 388,194 | H27: ='Revenue'!H26+'Revenue'!H21-'Revenue'!H20 -> 395,333 | I27: ='Revenue'!I26+'Revenue'!I21-'Revenue'!I20 -> 372,646 | J27: ='Revenue'!J26+'Revenue'!J21-'Revenue'!J20 -> 356,668 | K27: ='Revenue'!K26+'Revenue'!K21-'Revenue'!K20 -> 356,668 | L27: ='Revenue'!L26+'Revenue'!L21-'Revenue'!L20 -> 374,312 | M27: ='Revenue'!M26+'Revenue'!M21-'Revenue'!M20 -> 420,710 | N27: ='Revenue'!N26+'Revenue'!N21-'Revenue'!N20 -> 450,111 | O27: ='Revenue'!O26+'Revenue'!O21-'Revenue'!O20 -> 491,527 | P27: ='Revenue'!P26+'Revenue'!P21-'Revenue'!P20 -> 579,069
C28: Monthly NRR | E28: =('Revenue'!E12+'Revenue'!E14+'Revenue'!E15+'Revenue'!E16)/'Revenue'!E12 -> 99.3% | F28: =('Revenue'!F12+'Revenue'!F14+'Revenue'!F15+'Revenue'!F16)/'Revenue'!F12 -> 99.1% | G28: =('Revenue'!G12+'Revenue'!G14+'Revenue'!G15+'Revenue'!G16)/'Revenue'!G12 -> 99.2% | H28: =('Revenue'!H12+'Revenue'!H14+'Revenue'!H15+'Revenue'!H16)/'Revenue'!H12 -> 99.1% | I28: =('Revenue'!I12+'Revenue'!I14+'Revenue'!I15+'Revenue'!I16)/'Revenue'!I12 -> 99.0% | J28: =('Revenue'!J12+'Revenue'!J14+'Revenue'!J15+'Revenue'!J16)/'Revenue'!J12 -> 98.7% | K28: =('Revenue'!K12+'Revenue'!K14+'Revenue'!K15+'Revenue'!K16)/'Revenue'!K12 -> 98.4% | L28: =('Revenue'!L12+'Revenue'!L14+'Revenue'!L15+'Revenue'!L16)/'Revenue'!L12 -> 98.1% | M28: =('Revenue'!M12+'Revenue'!M14+'Revenue'!M15+'Revenue'!M16)/'Revenue'!M12 -> 98.8% | N28: =('Revenue'!N12+'Revenue'!N14+'Revenue'!N15+'Revenue'!N16)/'Revenue'!N12 -> 98.9% | O28: =('Revenue'!O12+'Revenue'!O14+'Revenue'!O15+'Revenue'!O16)/'Revenue'!O12 -> 99.1% | P28: =('Revenue'!P12+'Revenue'!P14+'Revenue'!P15+'Revenue'!P16)/'Revenue'!P12 -> 99.2%
C29: Monthly GRR | E29: =('Revenue'!E12+'Revenue'!E15+'Revenue'!E16)/'Revenue'!E12 -> 98.1% | F29: =('Revenue'!F12+'Revenue'!F15+'Revenue'!F16)/'Revenue'!F12 -> 97.9% | G29: =('Revenue'!G12+'Revenue'!G15+'Revenue'!G16)/'Revenue'!G12 -> 98.0% | H29: =('Revenue'!H12+'Revenue'!H15+'Revenue'!H16)/'Revenue'!H12 -> 97.9% | I29: =('Revenue'!I12+'Revenue'!I15+'Revenue'!I16)/'Revenue'!I12 -> 97.8% | J29: =('Revenue'!J12+'Revenue'!J15+'Revenue'!J16)/'Revenue'!J12 -> 97.5% | K29: =('Revenue'!K12+'Revenue'!K15+'Revenue'!K16)/'Revenue'!K12 -> 97.2% | L29: =('Revenue'!L12+'Revenue'!L15+'Revenue'!L16)/'Revenue'!L12 -> 96.9% | M29: =('Revenue'!M12+'Revenue'!M15+'Revenue'!M16)/'Revenue'!M12 -> 97.6% | N29: =('Revenue'!N12+'Revenue'!N15+'Revenue'!N16)/'Revenue'!N12 -> 97.7% | O29: =('Revenue'!O12+'Revenue'!O15+'Revenue'!O16)/'Revenue'!O12 -> 97.9% | P29: =('Revenue'!P12+'Revenue'!P15+'Revenue'!P16)/'Revenue'!P12 -> 98.0%
C30: Closing MRR per account | E30: ='Revenue'!E17/'Revenue'!E11 -> 492 | F30: ='Revenue'!F17/'Revenue'!F11 -> 501 | G30: ='Revenue'!G17/'Revenue'!G11 -> 512 | H30: ='Revenue'!H17/'Revenue'!H11 -> 521 | I30: ='Revenue'!I17/'Revenue'!I11 -> 529 | J30: ='Revenue'!J17/'Revenue'!J11 -> 537 | K30: ='Revenue'!K17/'Revenue'!K11 -> 542 | L30: ='Revenue'!L17/'Revenue'!L11 -> 545 | M30: ='Revenue'!M17/'Revenue'!M11 -> 553 | N30: ='Revenue'!N17/'Revenue'!N11 -> 561 | O30: ='Revenue'!O17/'Revenue'!O11 -> 569 | P30: ='Revenue'!P17/'Revenue'!P11 -> 579
C31: Sales payroll + acquisition spend | E31: ='Payroll'!E16+'Assumptions'!E32 -> 55,000 | F31: ='Payroll'!F16+'Assumptions'!F32 -> 57,750 | G31: ='Payroll'!G16+'Assumptions'!G32 -> 60,500 | H31: ='Payroll'!H16+'Assumptions'!H32 -> 63,250 | I31: ='Payroll'!I16+'Assumptions'!I32 -> 66,000 | J31: ='Payroll'!J16+'Assumptions'!J32 -> 68,750 | K31: ='Payroll'!K16+'Assumptions'!K32 -> 71,500 | L31: ='Payroll'!L16+'Assumptions'!L32 -> 74,250 | M31: ='Payroll'!M16+'Assumptions'!M32 -> 77,000 | N31: ='Payroll'!N16+'Assumptions'!N32 -> 79,750 | O31: ='Payroll'!O16+'Assumptions'!O32 -> 82,500 | P31: ='Payroll'!P16+'Assumptions'!P32 -> 85,250
C32: Blended CAC / new account | E32: ='Revenue'!E31/'Revenue'!E9 -> 2,500 | F32: ='Revenue'!F31/'Revenue'!F9 -> 2,511 | G32: ='Revenue'!G31/'Revenue'!G9 -> 2,521 | H32: ='Revenue'!H31/'Revenue'!H9 -> 2,433 | I32: ='Revenue'!I31/'Revenue'!I9 -> 2,444 | J32: ='Revenue'!J31/'Revenue'!J9 -> 2,455 | K32: ='Revenue'!K31/'Revenue'!K9 -> 2,466 | L32: ='Revenue'!L31/'Revenue'!L9 -> 2,475 | M32: ='Revenue'!M31/'Revenue'!M9 -> 2,406 | N32: ='Revenue'!N31/'Revenue'!N9 -> 2,417 | O32: ='Revenue'!O31/'Revenue'!O9 -> 2,426 | P32: ='Revenue'!P31/'Revenue'!P9 -> 2,436
C33: CAC payback (months) | E33: ='Revenue'!E32/('Assumptions'!E59*('Revenue'!E19+'P&L'!E13+'P&L'!E14+'P&L'!E12)/'Revenue'!E19) -> 6.3 | F33: ='Revenue'!F32/('Assumptions'!F59*('Revenue'!F19+'P&L'!F13+'P&L'!F14+'P&L'!F12)/'Revenue'!F19) -> 6.2 | G33: ='Revenue'!G32/('Assumptions'!G59*('Revenue'!G19+'P&L'!G13+'P&L'!G14+'P&L'!G12)/'Revenue'!G19) -> 6.1 | H33: ='Revenue'!H32/('Assumptions'!H59*('Revenue'!H19+'P&L'!H13+'P&L'!H14+'P&L'!H12)/'Revenue'!H19) -> 5.8 | I33: ='Revenue'!I32/('Assumptions'!I59*('Revenue'!I19+'P&L'!I13+'P&L'!I14+'P&L'!I12)/'Revenue'!I19) -> 5.7 | J33: ='Revenue'!J32/('Assumptions'!J59*('Revenue'!J19+'P&L'!J13+'P&L'!J14+'P&L'!J12)/'Revenue'!J19) -> 5.7 | K33: ='Revenue'!K32/('Assumptions'!K59*('Revenue'!K19+'P&L'!K13+'P&L'!K14+'P&L'!K12)/'Revenue'!K19) -> 5.6 | L33: ='Revenue'!L32/('Assumptions'!L59*('Revenue'!L19+'P&L'!L13+'P&L'!L14+'P&L'!L12)/'Revenue'!L19) -> 5.5 | M33: ='Revenue'!M32/('Assumptions'!M59*('Revenue'!M19+'P&L'!M13+'P&L'!M14+'P&L'!M12)/'Revenue'!M19) -> 5.3 | N33: ='Revenue'!N32/('Assumptions'!N59*('Revenue'!N19+'P&L'!N13+'P&L'!N14+'P&L'!N12)/'Revenue'!N19) -> 5.3 | O33: ='Revenue'!O32/('Assumptions'!O59*('Revenue'!O19+'P&L'!O13+'P&L'!O14+'P&L'!O12)/'Revenue'!O19) -> 5.2 | P33: ='Revenue'!P32/('Assumptions'!P59*('Revenue'!P19+'P&L'!P13+'P&L'!P14+'P&L'!P12)/'Revenue'!P19) -> 5.1

Sheet Cohorts
C2: Cohorts
C4: Selected case | E4: ='Assumptions'!$G$4 -> Base | H4: EUR · entirely fictional
E6: Actual | F6: Actual | G6: Actual | H6: Actual | I6: Actual | J6: Actual | K6: Actual | L6: Actual | M6: Forecast | N6: Forecast | O6: Forecast | P6: Forecast
E7: 2026-01-01 | F7: 2026-02-01 | G7: 2026-03-01 | H7: 2026-04-01 | I7: 2026-05-01 | J7: 2026-06-01 | K7: 2026-07-01 | L7: 2026-08-01 | M7: 2026-09-01 | N7: 2026-10-01 | O7: 2026-11-01 | P7: 2026-12-01
C8: Accounts active before 2026 | E8: ='Actual inputs'!$E$51*(1+'Assumptions'!E62-'Assumptions'!E65-'Assumptions'!E68) -> 186,684 | F8: =E8*(1+'Assumptions'!F62-'Assumptions'!F65-'Assumptions'!F68) -> 185,004 | G8: =F8*(1+'Assumptions'!G62-'Assumptions'!G65-'Assumptions'!G68) -> 183,524 | H8: =G8*(1+'Assumptions'!H62-'Assumptions'!H65-'Assumptions'!H68) -> 181,872 | I8: =H8*(1+'Assumptions'!I62-'Assumptions'!I65-'Assumptions'!I68) -> 180,053 | J8: =I8*(1+'Assumptions'!J62-'Assumptions'!J65-'Assumptions'!J68) -> 177,713 | K8: =J8*(1+'Assumptions'!K62-'Assumptions'!K65-'Assumptions'!K68) -> 174,869 | L8: =K8*(1+'Assumptions'!L62-'Assumptions'!L65-'Assumptions'!L68) -> 171,547 | M8: =L8*(1+'Assumptions'!M62-'Assumptions'!M65-'Assumptions'!M68) -> 169,488 | N8: =M8*(1+'Assumptions'!N62-'Assumptions'!N65-'Assumptions'!N68) -> 167,624 | O8: =N8*(1+'Assumptions'!O62-'Assumptions'!O65-'Assumptions'!O68) -> 166,115 | P8: =O8*(1+'Assumptions'!P62-'Assumptions'!P65-'Assumptions'!P68) -> 164,786
C9: Jan-26 cohort | E9: ='Revenue'!E13 -> 12,760 | F9: =E9*(1+'Assumptions'!F62-'Assumptions'!F65-'Assumptions'!F68) -> 12,645 | G9: =F9*(1+'Assumptions'!G62-'Assumptions'!G65-'Assumptions'!G68) -> 12,544 | H9: =G9*(1+'Assumptions'!H62-'Assumptions'!H65-'Assumptions'!H68) -> 12,431 | I9: =H9*(1+'Assumptions'!I62-'Assumptions'!I65-'Assumptions'!I68) -> 12,307 | J9: =I9*(1+'Assumptions'!J62-'Assumptions'!J65-'Assumptions'!J68) -> 12,147 | K9: =J9*(1+'Assumptions'!K62-'Assumptions'!K65-'Assumptions'!K68) -> 11,952 | L9: =K9*(1+'Assumptions'!L62-'Assumptions'!L65-'Assumptions'!L68) -> 11,725 | M9: =L9*(1+'Assumptions'!M62-'Assumptions'!M65-'Assumptions'!M68) -> 11,585 | N9: =M9*(1+'Assumptions'!N62-'Assumptions'!N65-'Assumptions'!N68) -> 11,457 | O9: =N9*(1+'Assumptions'!O62-'Assumptions'!O65-'Assumptions'!O68) -> 11,354 | P9: =O9*(1+'Assumptions'!P62-'Assumptions'!P65-'Assumptions'!P68) -> 11,263
C10: Feb-26 cohort | E10: =0 -> 0 | F10: ='Revenue'!F13 -> 13,455 | G10: =F10*(1+'Assumptions'!G62-'Assumptions'!G65-'Assumptions'!G68) -> 13,347 | H10: =G10*(1+'Assumptions'!H62-'Assumptions'!H65-'Assumptions'!H68) -> 13,227 | I10: =H10*(1+'Assumptions'!I62-'Assumptions'!I65-'Assumptions'!I68) -> 13,095 | J10: =I10*(1+'Assumptions'!J62-'Assumptions'!J65-'Assumptions'!J68) -> 12,925 | K10: =J10*(1+'Assumptions'!K62-'Assumptions'!K65-'Assumptions'!K68) -> 12,718 | L10: =K10*(1+'Assumptions'!L62-'Assumptions'!L65-'Assumptions'!L68) -> 12,476 | M10: =L10*(1+'Assumptions'!M62-'Assumptions'!M65-'Assumptions'!M68) -> 12,327 | N10: =M10*(1+'Assumptions'!N62-'Assumptions'!N65-'Assumptions'!N68) -> 12,191 | O10: =N10*(1+'Assumptions'!O62-'Assumptions'!O65-'Assumptions'!O68) -> 12,081 | P10: =O10*(1+'Assumptions'!P62-'Assumptions'!P65-'Assumptions'!P68) -> 11,985
C11: Mar-26 cohort | E11: =0 -> 0 | F11: =0 -> 0 | G11: ='Revenue'!G13 -> 14,160 | H11: =G11*(1+'Assumptions'!H62-'Assumptions'!H65-'Assumptions'!H68) -> 14,033 | I11: =H11*(1+'Assumptions'!I62-'Assumptions'!I65-'Assumptions'!I68) -> 13,892 | J11: =I11*(1+'Assumptions'!J62-'Assumptions'!J65-'Assumptions'!J68) -> 13,712 | K11: =J11*(1+'Assumptions'!K62-'Assumptions'!K65-'Assumptions'!K68) -> 13,492 | L11: =K11*(1+'Assumptions'!L62-'Assumptions'!L65-'Assumptions'!L68) -> 13,236 | M11: =L11*(1+'Assumptions'!M62-'Assumptions'!M65-'Assumptions'!M68) -> 13,077 | N11: =M11*(1+'Assumptions'!N62-'Assumptions'!N65-'Assumptions'!N68) -> 12,933 | O11: =N11*(1+'Assumptions'!O62-'Assumptions'!O65-'Assumptions'!O68) -> 12,817 | P11: =O11*(1+'Assumptions'!P62-'Assumptions'!P65-'Assumptions'!P68) -> 12,714
C12: Apr-26 cohort | E12: =0 -> 0 | F12: =0 -> 0 | G12: =0 -> 0 | H12: ='Revenue'!H13 -> 15,470 | I12: =H12*(1+'Assumptions'!I62-'Assumptions'!I65-'Assumptions'!I68) -> 15,315 | J12: =I12*(1+'Assumptions'!J62-'Assumptions'!J65-'Assumptions'!J68) -> 15,116 | K12: =J12*(1+'Assumptions'!K62-'Assumptions'!K65-'Assumptions'!K68) -> 14,874 | L12: =K12*(1+'Assumptions'!L62-'Assumptions'!L65-'Assumptions'!L68) -> 14,592 | M12: =L12*(1+'Assumptions'!M62-'Assumptions'!M65-'Assumptions'!M68) -> 14,417 | N12: =M12*(1+'Assumptions'!N62-'Assumptions'!N65-'Assumptions'!N68) -> 14,258 | O12: =N12*(1+'Assumptions'!O62-'Assumptions'!O65-'Assumptions'!O68) -> 14,130 | P12: =O12*(1+'Assumptions'!P62-'Assumptions'!P65-'Assumptions'!P68) -> 14,017
C13: May-26 cohort | E13: =0 -> 0 | F13: =0 -> 0 | G13: =0 -> 0 | H13: =0 -> 0 | I13: ='Revenue'!I13 -> 16,200 | J13: =I13*(1+'Assumptions'!J62-'Assumptions'!J65-'Assumptions'!J68) -> 15,989 | K13: =J13*(1+'Assumptions'!K62-'Assumptions'!K65-'Assumptions'!K68) -> 15,734 | L13: =K13*(1+'Assumptions'!L62-'Assumptions'!L65-'Assumptions'!L68) -> 15,435 | M13: =L13*(1+'Assumptions'!M62-'Assumptions'!M65-'Assumptions'!M68) -> 15,249 | N13: =M13*(1+'Assumptions'!N62-'Assumptions'!N65-'Assumptions'!N68) -> 15,082 | O13: =N13*(1+'Assumptions'!O62-'Assumptions'!O65-'Assumptions'!O68) -> 14,946 | P13: =O13*(1+'Assumptions'!P62-'Assumptions'!P65-'Assumptions'!P68) -> 14,826
C14: Jun-26 cohort | E14: =0 -> 0 | F14: =0 -> 0 | G14: =0 -> 0 | H14: =0 -> 0 | I14: =0 -> 0 | J14: ='Revenue'!J13 -> 16,940 | K14: =J14*(1+'Assumptions'!K62-'Assumptions'!K65-'Assumptions'!K68) -> 16,669 | L14: =K14*(1+'Assumptions'!L62-'Assumptions'!L65-'Assumptions'!L68) -> 16,352 | M14: =L14*(1+'Assumptions'!M62-'Assumptions'!M65-'Assumptions'!M68) -> 16,156 | N14: =M14*(1+'Assumptions'!N62-'Assumptions'!N65-'Assumptions'!N68) -> 15,978 | O14: =N14*(1+'Assumptions'!O62-'Assumptions'!O65-'Assumptions'!O68) -> 15,835 | P14: =O14*(1+'Assumptions'!P62-'Assumptions'!P65-'Assumptions'!P68) -> 15,708
C15: Jul-26 cohort | E15: =0 -> 0 | F15: =0 -> 0 | G15: =0 -> 0 | H15: =0 -> 0 | I15: =0 -> 0 | J15: =0 -> 0 | K15: ='Revenue'!K13 -> 17,690 | L15: =K15*(1+'Assumptions'!L62-'Assumptions'!L65-'Assumptions'!L68) -> 17,354 | M15: =L15*(1+'Assumptions'!M62-'Assumptions'!M65-'Assumptions'!M68) -> 17,146 | N15: =M15*(1+'Assumptions'!N62-'Assumptions'!N65-'Assumptions'!N68) -> 16,957 | O15: =N15*(1+'Assumptions'!O62-'Assumptions'!O65-'Assumptions'!O68) -> 16,804 | P15: =O15*(1+'Assumptions'!P62-'Assumptions'!P65-'Assumptions'!P68) -> 16,670
C16: Aug-26 cohort | E16: =0 -> 0 | F16: =0 -> 0 | G16: =0 -> 0 | H16: =0 -> 0 | I16: =0 -> 0 | J16: =0 -> 0 | K16: =0 -> 0 | L16: ='Revenue'!L13 -> 18,450 | M16: =L16*(1+'Assumptions'!M62-'Assumptions'!M65-'Assumptions'!M68) -> 18,229 | N16: =M16*(1+'Assumptions'!N62-'Assumptions'!N65-'Assumptions'!N68) -> 18,028 | O16: =N16*(1+'Assumptions'!O62-'Assumptions'!O65-'Assumptions'!O68) -> 17,866 | P16: =O16*(1+'Assumptions'!P62-'Assumptions'!P65-'Assumptions'!P68) -> 17,723
C17: Sept-26 cohort | E17: =0 -> 0 | F17: =0 -> 0 | G17: =0 -> 0 | H17: =0 -> 0 | I17: =0 -> 0 | J17: =0 -> 0 | K17: =0 -> 0 | L17: =0 -> 0 | M17: ='Revenue'!M13 -> 19,840 | N17: =M17*(1+'Assumptions'!N62-'Assumptions'!N65-'Assumptions'!N68) -> 19,622 | O17: =N17*(1+'Assumptions'!O62-'Assumptions'!O65-'Assumptions'!O68) -> 19,445 | P17: =O17*(1+'Assumptions'!P62-'Assumptions'!P65-'Assumptions'!P68) -> 19,290
C18: Oct-26 cohort | E18: =0 -> 0 | F18: =0 -> 0 | G18: =0 -> 0 | H18: =0 -> 0 | I18: =0 -> 0 | J18: =0 -> 0 | K18: =0 -> 0 | L18: =0 -> 0 | M18: =0 -> 0 | N18: ='Revenue'!N13 -> 20,625 | O18: =N18*(1+'Assumptions'!O62-'Assumptions'!O65-'Assumptions'!O68) -> 20,439 | P18: =O18*(1+'Assumptions'!P62-'Assumptions'!P65-'Assumptions'!P68) -> 20,276
C19: Nov-26 cohort | E19: =0 -> 0 | F19: =0 -> 0 | G19: =0 -> 0 | H19: =0 -> 0 | I19: =0 -> 0 | J19: =0 -> 0 | K19: =0 -> 0 | L19: =0 -> 0 | M19: =0 -> 0 | N19: =0 -> 0 | O19: ='Revenue'!O13 -> 21,420 | P19: =O19*(1+'Assumptions'!P62-'Assumptions'!P65-'Assumptions'!P68) -> 21,249
C20: Dec-26 cohort | E20: =0 -> 0 | F20: =0 -> 0 | G20: =0 -> 0 | H20: =0 -> 0 | I20: =0 -> 0 | J20: =0 -> 0 | K20: =0 -> 0 | L20: =0 -> 0 | M20: =0 -> 0 | N20: =0 -> 0 | O20: =0 -> 0 | P20: ='Revenue'!P13 -> 22,225
C22: Total closing cohort MRR | E22: =SUM(E8:E20) -> 199,444 | F22: =SUM(F8:F20) -> 211,104 | G22: =SUM(G8:G20) -> 223,575 | H22: =SUM(H8:H20) -> 237,033 | I22: =SUM(I8:I20) -> 250,863 | J22: =SUM(J8:J20) -> 264,541 | K22: =SUM(K8:K20) -> 277,999 | L22: =SUM(L8:L20) -> 291,167 | M22: =SUM(M8:M20) -> 307,513 | N22: =SUM(N8:N20) -> 324,755 | O22: =SUM(O8:O20) -> 343,252 | P22: =SUM(P8:P20) -> 362,731
C25: Each acquisition vintage rolls forward under the selected monthly expansion, churn and contraction assumptions.
C27: Monthly NRR is not annual NRR. Subscription revenue uses average opening/closing MRR; onboardings are earned on completion.

Sheet Payroll
C2: Payroll
C4: Selected case | E4: ='Assumptions'!$G$4 -> Base | H4: EUR · entirely fictional
E6: Actual | F6: Actual | G6: Actual | H6: Actual | I6: Actual | J6: Actual | K6: Actual | L6: Actual | M6: Forecast | N6: Forecast | O6: Forecast | P6: Forecast
E7: 2026-01-01 | F7: 2026-02-01 | G7: 2026-03-01 | H7: 2026-04-01 | I7: 2026-05-01 | J7: 2026-06-01 | K7: 2026-07-01 | L7: 2026-08-01 | M7: 2026-09-01 | N7: 2026-10-01 | O7: 2026-11-01 | P7: 2026-12-01
C8: Support FTE | E8: ='Assumptions'!E8 -> 7.00 | F8: ='Assumptions'!F8 -> 7.25 | G8: ='Assumptions'!G8 -> 7.50 | H8: ='Assumptions'!H8 -> 7.75 | I8: ='Assumptions'!I8 -> 8.00 | J8: ='Assumptions'!J8 -> 8.25 | K8: ='Assumptions'!K8 -> 8.50 | L8: ='Assumptions'!L8 -> 8.75 | M8: ='Assumptions'!M8 -> 9.00 | N8: ='Assumptions'!N8 -> 9.25 | O8: ='Assumptions'!O8 -> 9.50 | P8: ='Assumptions'!P8 -> 9.75
C9: Monthly loaded support pay | E9: ='Assumptions'!E11 -> 5,300 | F9: ='Assumptions'!F11 -> 5,300 | G9: ='Assumptions'!G11 -> 5,300 | H9: ='Assumptions'!H11 -> 5,300 | I9: ='Assumptions'!I11 -> 5,300 | J9: ='Assumptions'!J11 -> 5,300 | K9: ='Assumptions'!K11 -> 5,300 | L9: ='Assumptions'!L11 -> 5,300 | M9: ='Assumptions'!M11 -> 5,300 | N9: ='Assumptions'!N11 -> 5,300 | O9: ='Assumptions'!O11 -> 5,300 | P9: ='Assumptions'!P11 -> 5,300
C10: Support payroll | E10: ='Payroll'!E8*'Payroll'!E9 -> 37,100 | F10: ='Payroll'!F8*'Payroll'!F9 -> 38,425 | G10: ='Payroll'!G8*'Payroll'!G9 -> 39,750 | H10: ='Payroll'!H8*'Payroll'!H9 -> 41,075 | I10: ='Payroll'!I8*'Payroll'!I9 -> 42,400 | J10: ='Payroll'!J8*'Payroll'!J9 -> 43,725 | K10: ='Payroll'!K8*'Payroll'!K9 -> 45,050 | L10: ='Payroll'!L8*'Payroll'!L9 -> 46,375 | M10: ='Payroll'!M8*'Payroll'!M9 -> 47,700 | N10: ='Payroll'!N8*'Payroll'!N9 -> 49,025 | O10: ='Payroll'!O8*'Payroll'!O9 -> 50,350 | P10: ='Payroll'!P8*'Payroll'!P9 -> 51,675
C11: Development FTE | E11: ='Assumptions'!E14 -> 13.00 | F11: ='Assumptions'!F14 -> 13.50 | G11: ='Assumptions'!G14 -> 14.00 | H11: ='Assumptions'!H14 -> 14.50 | I11: ='Assumptions'!I14 -> 15.00 | J11: ='Assumptions'!J14 -> 15.50 | K11: ='Assumptions'!K14 -> 16.00 | L11: ='Assumptions'!L14 -> 16.50 | M11: ='Assumptions'!M14 -> 17.00 | N11: ='Assumptions'!N14 -> 17.50 | O11: ='Assumptions'!O14 -> 18.00 | P11: ='Assumptions'!P14 -> 18.50
C12: Monthly loaded development pay | E12: ='Assumptions'!E17 -> 6,900 | F12: ='Assumptions'!F17 -> 6,900 | G12: ='Assumptions'!G17 -> 6,900 | H12: ='Assumptions'!H17 -> 6,900 | I12: ='Assumptions'!I17 -> 6,900 | J12: ='Assumptions'!J17 -> 6,900 | K12: ='Assumptions'!K17 -> 6,900 | L12: ='Assumptions'!L17 -> 6,900 | M12: ='Assumptions'!M17 -> 6,900 | N12: ='Assumptions'!N17 -> 6,900 | O12: ='Assumptions'!O17 -> 6,900 | P12: ='Assumptions'!P17 -> 6,900
C13: Development payroll | E13: ='Payroll'!E11*'Payroll'!E12 -> 89,700 | F13: ='Payroll'!F11*'Payroll'!F12 -> 93,150 | G13: ='Payroll'!G11*'Payroll'!G12 -> 96,600 | H13: ='Payroll'!H11*'Payroll'!H12 -> 100,050 | I13: ='Payroll'!I11*'Payroll'!I12 -> 103,500 | J13: ='Payroll'!J11*'Payroll'!J12 -> 106,950 | K13: ='Payroll'!K11*'Payroll'!K12 -> 110,400 | L13: ='Payroll'!L11*'Payroll'!L12 -> 113,850 | M13: ='Payroll'!M11*'Payroll'!M12 -> 117,300 | N13: ='Payroll'!N11*'Payroll'!N12 -> 120,750 | O13: ='Payroll'!O11*'Payroll'!O12 -> 124,200 | P13: ='Payroll'!P11*'Payroll'!P12 -> 127,650
C14: Sales FTE | E14: ='Assumptions'!E20 -> 5.00 | F14: ='Assumptions'!F20 -> 5.25 | G14: ='Assumptions'!G20 -> 5.50 | H14: ='Assumptions'!H20 -> 5.75 | I14: ='Assumptions'!I20 -> 6.00 | J14: ='Assumptions'!J20 -> 6.25 | K14: ='Assumptions'!K20 -> 6.50 | L14: ='Assumptions'!L20 -> 6.75 | M14: ='Assumptions'!M20 -> 7.00 | N14: ='Assumptions'!N20 -> 7.25 | O14: ='Assumptions'!O20 -> 7.50 | P14: ='Assumptions'!P20 -> 7.75
C15: Monthly loaded sales pay | E15: ='Assumptions'!E23 -> 6,200 | F15: ='Assumptions'!F23 -> 6,200 | G15: ='Assumptions'!G23 -> 6,200 | H15: ='Assumptions'!H23 -> 6,200 | I15: ='Assumptions'!I23 -> 6,200 | J15: ='Assumptions'!J23 -> 6,200 | K15: ='Assumptions'!K23 -> 6,200 | L15: ='Assumptions'!L23 -> 6,200 | M15: ='Assumptions'!M23 -> 6,200 | N15: ='Assumptions'!N23 -> 6,200 | O15: ='Assumptions'!O23 -> 6,200 | P15: ='Assumptions'!P23 -> 6,200
C16: Sales payroll | E16: ='Payroll'!E14*'Payroll'!E15 -> 31,000 | F16: ='Payroll'!F14*'Payroll'!F15 -> 32,550 | G16: ='Payroll'!G14*'Payroll'!G15 -> 34,100 | H16: ='Payroll'!H14*'Payroll'!H15 -> 35,650 | I16: ='Payroll'!I14*'Payroll'!I15 -> 37,200 | J16: ='Payroll'!J14*'Payroll'!J15 -> 38,750 | K16: ='Payroll'!K14*'Payroll'!K15 -> 40,300 | L16: ='Payroll'!L14*'Payroll'!L15 -> 41,850 | M16: ='Payroll'!M14*'Payroll'!M15 -> 43,400 | N16: ='Payroll'!N14*'Payroll'!N15 -> 44,950 | O16: ='Payroll'!O14*'Payroll'!O15 -> 46,500 | P16: ='Payroll'!P14*'Payroll'!P15 -> 48,050
C17: Administration FTE | E17: ='Assumptions'!E26 -> 4.00 | F17: ='Assumptions'!F26 -> 4.00 | G17: ='Assumptions'!G26 -> 4.00 | H17: ='Assumptions'!H26 -> 4.00 | I17: ='Assumptions'!I26 -> 4.00 | J17: ='Assumptions'!J26 -> 4.00 | K17: ='Assumptions'!K26 -> 4.00 | L17: ='Assumptions'!L26 -> 4.00 | M17: ='Assumptions'!M26 -> 4.00 | N17: ='Assumptions'!N26 -> 4.00 | O17: ='Assumptions'!O26 -> 4.00 | P17: ='Assumptions'!P26 -> 4.00
C18: Monthly loaded administration pay | E18: ='Assumptions'!E29 -> 5,900 | F18: ='Assumptions'!F29 -> 5,900 | G18: ='Assumptions'!G29 -> 5,900 | H18: ='Assumptions'!H29 -> 5,900 | I18: ='Assumptions'!I29 -> 5,900 | J18: ='Assumptions'!J29 -> 5,900 | K18: ='Assumptions'!K29 -> 5,900 | L18: ='Assumptions'!L29 -> 5,900 | M18: ='Assumptions'!M29 -> 5,900 | N18: ='Assumptions'!N29 -> 5,900 | O18: ='Assumptions'!O29 -> 5,900 | P18: ='Assumptions'!P29 -> 5,900
C19: Administration payroll | E19: ='Payroll'!E17*'Payroll'!E18 -> 23,600 | F19: ='Payroll'!F17*'Payroll'!F18 -> 23,600 | G19: ='Payroll'!G17*'Payroll'!G18 -> 23,600 | H19: ='Payroll'!H17*'Payroll'!H18 -> 23,600 | I19: ='Payroll'!I17*'Payroll'!I18 -> 23,600 | J19: ='Payroll'!J17*'Payroll'!J18 -> 23,600 | K19: ='Payroll'!K17*'Payroll'!K18 -> 23,600 | L19: ='Payroll'!L17*'Payroll'!L18 -> 23,600 | M19: ='Payroll'!M17*'Payroll'!M18 -> 23,600 | N19: ='Payroll'!N17*'Payroll'!N18 -> 23,600 | O19: ='Payroll'!O17*'Payroll'!O18 -> 23,600 | P19: ='Payroll'!P17*'Payroll'!P18 -> 23,600
C20: Total FTE | E20: ='Payroll'!E8+'Payroll'!E11+'Payroll'!E14+'Payroll'!E17 -> 29.00 | F20: ='Payroll'!F8+'Payroll'!F11+'Payroll'!F14+'Payroll'!F17 -> 30.00 | G20: ='Payroll'!G8+'Payroll'!G11+'Payroll'!G14+'Payroll'!G17 -> 31.00 | H20: ='Payroll'!H8+'Payroll'!H11+'Payroll'!H14+'Payroll'!H17 -> 32.00 | I20: ='Payroll'!I8+'Payroll'!I11+'Payroll'!I14+'Payroll'!I17 -> 33.00 | J20: ='Payroll'!J8+'Payroll'!J11+'Payroll'!J14+'Payroll'!J17 -> 34.00 | K20: ='Payroll'!K8+'Payroll'!K11+'Payroll'!K14+'Payroll'!K17 -> 35.00 | L20: ='Payroll'!L8+'Payroll'!L11+'Payroll'!L14+'Payroll'!L17 -> 36.00 | M20: ='Payroll'!M8+'Payroll'!M11+'Payroll'!M14+'Payroll'!M17 -> 37.00 | N20: ='Payroll'!N8+'Payroll'!N11+'Payroll'!N14+'Payroll'!N17 -> 38.00 | O20: ='Payroll'!O8+'Payroll'!O11+'Payroll'!O14+'Payroll'!O17 -> 39.00 | P20: ='Payroll'!P8+'Payroll'!P11+'Payroll'!P14+'Payroll'!P17 -> 40.00
C21: Total payroll | E21: ='Payroll'!E10+'Payroll'!E13+'Payroll'!E16+'Payroll'!E19 -> 181,400 | F21: ='Payroll'!F10+'Payroll'!F13+'Payroll'!F16+'Payroll'!F19 -> 187,725 | G21: ='Payroll'!G10+'Payroll'!G13+'Payroll'!G16+'Payroll'!G19 -> 194,050 | H21: ='Payroll'!H10+'Payroll'!H13+'Payroll'!H16+'Payroll'!H19 -> 200,375 | I21: ='Payroll'!I10+'Payroll'!I13+'Payroll'!I16+'Payroll'!I19 -> 206,700 | J21: ='Payroll'!J10+'Payroll'!J13+'Payroll'!J16+'Payroll'!J19 -> 213,025 | K21: ='Payroll'!K10+'Payroll'!K13+'Payroll'!K16+'Payroll'!K19 -> 219,350 | L21: ='Payroll'!L10+'Payroll'!L13+'Payroll'!L16+'Payroll'!L19 -> 225,675 | M21: ='Payroll'!M10+'Payroll'!M13+'Payroll'!M16+'Payroll'!M19 -> 232,000 | N21: ='Payroll'!N10+'Payroll'!N13+'Payroll'!N16+'Payroll'!N19 -> 238,325 | O21: ='Payroll'!O10+'Payroll'!O13+'Payroll'!O16+'Payroll'!O19 -> 244,650 | P21: ='Payroll'!P10+'Payroll'!P13+'Payroll'!P16+'Payroll'!P19 -> 250,975

Sheet Working capital
C2: Working capital
C4: Selected case | E4: ='Assumptions'!$G$4 -> Base | H4: EUR · entirely fictional
E6: Actual | F6: Actual | G6: Actual | H6: Actual | I6: Actual | J6: Actual | K6: Actual | L6: Actual | M6: Forecast | N6: Forecast | O6: Forecast | P6: Forecast
E7: 2026-01-01 | F7: 2026-02-01 | G7: 2026-03-01 | H7: 2026-04-01 | I7: 2026-05-01 | J7: 2026-06-01 | K7: 2026-07-01 | L7: 2026-08-01 | M7: 2026-09-01 | N7: 2026-10-01 | O7: 2026-11-01 | P7: 2026-12-01
C8: Opening receivables | E8: ='Actual inputs'!$E$41 -> 135,000 | F8: ='Working capital'!E11 -> 145,625 | G8: ='Working capital'!F11 -> 156,250 | H8: ='Working capital'!G11 -> 166,875 | I8: ='Working capital'!H11 -> 177,500 | J8: ='Working capital'!I11 -> 188,125 | K8: ='Working capital'!J11 -> 198,750 | L8: ='Working capital'!K11 -> 209,375 | M8: ='Working capital'!L11 -> 220,000 | N8: ='Working capital'!M11 -> 326,115 | O8: ='Working capital'!N11 -> 315,431 | P8: ='Working capital'!O11 -> 352,850
C9: Invoiced billings | E9: ='Revenue'!E25 -> 251,344 | F9: ='Revenue'!F25 -> 222,184 | G9: ='Revenue'!G25 -> 246,602 | H9: ='Revenue'!H25 -> 275,844 | I9: ='Revenue'!I25 -> 259,661 | J9: ='Revenue'!J25 -> 282,525 | K9: ='Revenue'!K25 -> 314,470 | L9: ='Revenue'!L25 -> 345,427 | M9: ='Revenue'!M25 -> 391,337 | N9: ='Revenue'!N25 -> 391,134 | O9: ='Revenue'!O25 -> 423,420 | P9: ='Revenue'!P25 -> 490,934
C10: Customer receipts | E10: ='Working capital'!E8+'Working capital'!E9-'Working capital'!E11 -> 240,719 | F10: ='Working capital'!F8+'Working capital'!F9-'Working capital'!F11 -> 211,559 | G10: ='Working capital'!G8+'Working capital'!G9-'Working capital'!G11 -> 235,977 | H10: ='Working capital'!H8+'Working capital'!H9-'Working capital'!H11 -> 265,219 | I10: ='Working capital'!I8+'Working capital'!I9-'Working capital'!I11 -> 249,036 | J10: ='Working capital'!J8+'Working capital'!J9-'Working capital'!J11 -> 271,900 | K10: ='Working capital'!K8+'Working capital'!K9-'Working capital'!K11 -> 303,845 | L10: ='Working capital'!L8+'Working capital'!L9-'Working capital'!L11 -> 334,802 | M10: ='Working capital'!M8+'Working capital'!M9-'Working capital'!M11 -> 285,223 | N10: ='Working capital'!N8+'Working capital'!N9-'Working capital'!N11 -> 401,818 | O10: ='Working capital'!O8+'Working capital'!O9-'Working capital'!O11 -> 386,001 | P10: ='Working capital'!P8+'Working capital'!P9-'Working capital'!P11 -> 447,870
C11: Closing receivables | E11: ='Actual inputs'!$E$41+('Actual inputs'!$E$59-'Actual inputs'!$E$41)*1/8 -> 145,625 | F11: ='Actual inputs'!$E$41+('Actual inputs'!$E$59-'Actual inputs'!$E$41)*2/8 -> 156,250 | G11: ='Actual inputs'!$E$41+('Actual inputs'!$E$59-'Actual inputs'!$E$41)*3/8 -> 166,875 | H11: ='Actual inputs'!$E$41+('Actual inputs'!$E$59-'Actual inputs'!$E$41)*4/8 -> 177,500 | I11: ='Actual inputs'!$E$41+('Actual inputs'!$E$59-'Actual inputs'!$E$41)*5/8 -> 188,125 | J11: ='Actual inputs'!$E$41+('Actual inputs'!$E$59-'Actual inputs'!$E$41)*6/8 -> 198,750 | K11: ='Actual inputs'!$E$41+('Actual inputs'!$E$59-'Actual inputs'!$E$41)*7/8 -> 209,375 | L11: ='Actual inputs'!$E$41+('Actual inputs'!$E$59-'Actual inputs'!$E$41)*8/8 -> 220,000 | M11: =MAX(SUMIFS($F$26:$F$33,$I$26:$I$33,">"&46295),MIN('Working capital'!M9*'Assumptions'!M47/30,'Working capital'!M8+'Working capital'!M9-SUMIFS($F$26:$F$33,$I$26:$I$33,">="&46266,$I$26:$I$33,"<="&46295))) -> 326,115 | N11: =MAX(SUMIFS($F$26:$F$33,$I$26:$I$33,">"&46326),MIN('Working capital'!N9*'Assumptions'!N47/31,'Working capital'!N8+'Working capital'!N9-SUMIFS($F$26:$F$33,$I$26:$I$33,">="&46296,$I$26:$I$33,"<="&46326))) -> 315,431 | O11: =MAX(SUMIFS($F$26:$F$33,$I$26:$I$33,">"&46356),MIN('Working capital'!O9*'Assumptions'!O47/30,'Working capital'!O8+'Working capital'!O9-SUMIFS($F$26:$F$33,$I$26:$I$33,">="&46327,$I$26:$I$33,"<="&46356))) -> 352,850 | P11: =MAX(SUMIFS($F$26:$F$33,$I$26:$I$33,">"&46387),MIN('Working capital'!P9*'Assumptions'!P47/31,'Working capital'!P8+'Working capital'!P9-SUMIFS($F$26:$F$33,$I$26:$I$33,">="&46357,$I$26:$I$33,"<="&46387))) -> 395,914
C12: Implied AR / billings × month days | E12: ='Working capital'!E11/'Working capital'!E9*31 -> 18.0 | F12: ='Working capital'!F11/'Working capital'!F9*28 -> 19.7 | G12: ='Working capital'!G11/'Working capital'!G9*31 -> 21.0 | H12: ='Working capital'!H11/'Working capital'!H9*30 -> 19.3 | I12: ='Working capital'!I11/'Working capital'!I9*31 -> 22.5 | J12: ='Working capital'!J11/'Working capital'!J9*30 -> 21.1 | K12: ='Working capital'!K11/'Working capital'!K9*31 -> 20.6 | L12: ='Working capital'!L11/'Working capital'!L9*31 -> 19.7 | M12: ='Working capital'!M11/'Working capital'!M9*30 -> 25.0 | N12: ='Working capital'!N11/'Working capital'!N9*31 -> 25.0 | O12: ='Working capital'!O11/'Working capital'!O9*30 -> 25.0 | P12: ='Working capital'!P11/'Working capital'!P9*31 -> 25.0
C13: Opening payables | E13: ='Actual inputs'!$E$42 -> 35,000 | F13: ='Working capital'!E16 -> 38,625 | G13: ='Working capital'!F16 -> 42,250 | H13: ='Working capital'!G16 -> 45,875 | I13: ='Working capital'!H16 -> 49,500 | J13: ='Working capital'!I16 -> 53,125 | K13: ='Working capital'!J16 -> 56,750 | L13: ='Working capital'!K16 -> 60,375 | M13: ='Working capital'!L16 -> 64,000 | N13: ='Working capital'!M16 -> 94,661 | O13: ='Working capital'!N16 -> 94,587 | P13: ='Working capital'!O16 -> 99,975
C14: Vendor expenses | E14: =-'P&L'!E13-'P&L'!E14-'P&L'!E20-'P&L'!E22-'P&L'!E23 -> 66,704 | F14: =-'P&L'!F13-'P&L'!F14-'P&L'!F20-'P&L'!F22-'P&L'!F23 -> 69,001 | G14: =-'P&L'!G13-'P&L'!G14-'P&L'!G20-'P&L'!G22-'P&L'!G23 -> 71,347 | H14: =-'P&L'!H13-'P&L'!H14-'P&L'!H20-'P&L'!H22-'P&L'!H23 -> 73,779 | I14: =-'P&L'!I13-'P&L'!I14-'P&L'!I20-'P&L'!I22-'P&L'!I23 -> 76,275 | J14: =-'P&L'!J13-'P&L'!J14-'P&L'!J20-'P&L'!J22-'P&L'!J23 -> 78,782 | K14: =-'P&L'!K13-'P&L'!K14-'P&L'!K20-'P&L'!K22-'P&L'!K23 -> 81,271 | L14: =-'P&L'!L13-'P&L'!L14-'P&L'!L20-'P&L'!L22-'P&L'!L23 -> 83,735 | M14: =-'P&L'!M13-'P&L'!M14-'P&L'!M20-'P&L'!M22-'P&L'!M23 -> 86,337 | N14: =-'P&L'!N13-'P&L'!N14-'P&L'!N20-'P&L'!N22-'P&L'!N23 -> 89,133 | O14: =-'P&L'!O13-'P&L'!O14-'P&L'!O20-'P&L'!O22-'P&L'!O23 -> 92,030 | P14: =-'P&L'!P13-'P&L'!P14-'P&L'!P20-'P&L'!P22-'P&L'!P23 -> 95,034
C15: Vendor payments | E15: ='Working capital'!E13+'Working capital'!E14-'Working capital'!E16 -> 63,079 | F15: ='Working capital'!F13+'Working capital'!F14-'Working capital'!F16 -> 65,376 | G15: ='Working capital'!G13+'Working capital'!G14-'Working capital'!G16 -> 67,722 | H15: ='Working capital'!H13+'Working capital'!H14-'Working capital'!H16 -> 70,154 | I15: ='Working capital'!I13+'Working capital'!I14-'Working capital'!I16 -> 72,650 | J15: ='Working capital'!J13+'Working capital'!J14-'Working capital'!J16 -> 75,157 | K15: ='Working capital'!K13+'Working capital'!K14-'Working capital'!K16 -> 77,646 | L15: ='Working capital'!L13+'Working capital'!L14-'Working capital'!L16 -> 80,110 | M15: ='Working capital'!M13+'Working capital'!M14-'Working capital'!M16 -> 55,676 | N15: ='Working capital'!N13+'Working capital'!N14-'Working capital'!N16 -> 89,207 | O15: ='Working capital'!O13+'Working capital'!O14-'Working capital'!O16 -> 86,642 | P15: ='Working capital'!P13+'Working capital'!P14-'Working capital'!P16 -> 95,092
C16: Closing payables | E16: ='Actual inputs'!$E$42+('Actual inputs'!$E$60-'Actual inputs'!$E$42)*1/8 -> 38,625 | F16: ='Actual inputs'!$E$42+('Actual inputs'!$E$60-'Actual inputs'!$E$42)*2/8 -> 42,250 | G16: ='Actual inputs'!$E$42+('Actual inputs'!$E$60-'Actual inputs'!$E$42)*3/8 -> 45,875 | H16: ='Actual inputs'!$E$42+('Actual inputs'!$E$60-'Actual inputs'!$E$42)*4/8 -> 49,500 | I16: ='Actual inputs'!$E$42+('Actual inputs'!$E$60-'Actual inputs'!$E$42)*5/8 -> 53,125 | J16: ='Actual inputs'!$E$42+('Actual inputs'!$E$60-'Actual inputs'!$E$42)*6/8 -> 56,750 | K16: ='Actual inputs'!$E$42+('Actual inputs'!$E$60-'Actual inputs'!$E$42)*7/8 -> 60,375 | L16: ='Actual inputs'!$E$42+('Actual inputs'!$E$60-'Actual inputs'!$E$42)*8/8 -> 64,000 | M16: ='Working capital'!M14*'Assumptions'!M50/30+SUM($G$40:$G$47)-SUMIFS($M$40:$M$47,$L$40:$L$47,">0",$L$40:$L$47,"<="&46295) -> 94,661 | N16: ='Working capital'!N14*'Assumptions'!N50/31+SUM($G$40:$G$47)-SUMIFS($M$40:$M$47,$L$40:$L$47,">0",$L$40:$L$47,"<="&46326) -> 94,587 | O16: ='Working capital'!O14*'Assumptions'!O50/30+SUM($G$40:$G$47)-SUMIFS($M$40:$M$47,$L$40:$L$47,">0",$L$40:$L$47,"<="&46356) -> 99,975 | P16: ='Working capital'!P14*'Assumptions'!P50/31+SUM($G$40:$G$47)-SUMIFS($M$40:$M$47,$L$40:$L$47,">0",$L$40:$L$47,"<="&46387) -> 99,917
C17: Prepayments | E17: ='Actual inputs'!$E$44 -> 30,000 | F17: ='Actual inputs'!$E$44 -> 30,000 | G17: ='Actual inputs'!$E$44 -> 30,000 | H17: ='Actual inputs'!$E$44 -> 30,000 | I17: ='Actual inputs'!$E$44 -> 30,000 | J17: ='Actual inputs'!$E$44 -> 30,000 | K17: ='Actual inputs'!$E$44 -> 30,000 | L17: ='Actual inputs'!$E$44 -> 30,000 | M17: ='Actual inputs'!$E$44 -> 30,000 | N17: ='Actual inputs'!$E$44 -> 30,000 | O17: ='Actual inputs'!$E$44 -> 30,000 | P17: ='Actual inputs'!$E$44 -> 30,000
C18: Payroll accruals | E18: ='Actual inputs'!$E$45 -> 32,000 | F18: ='Actual inputs'!$E$45 -> 32,000 | G18: ='Actual inputs'!$E$45 -> 32,000 | H18: ='Actual inputs'!$E$45 -> 32,000 | I18: ='Actual inputs'!$E$45 -> 32,000 | J18: ='Actual inputs'!$E$45 -> 32,000 | K18: ='Actual inputs'!$E$45 -> 32,000 | L18: ='Actual inputs'!$E$45 -> 32,000 | M18: ='Actual inputs'!$E$45 -> 32,000 | N18: ='Actual inputs'!$E$45 -> 32,000 | O18: ='Actual inputs'!$E$45 -> 32,000 | P18: ='Actual inputs'!$E$45 -> 32,000
C23: Receivables at 31 August
C25: Record | D25: Invoice date | E25: Due date | F25: Outstanding | G25: Expected receipt | H25: Delay days | I25: Scheduled receipt | J25: Overdue days
C26: AR-001 | D26: 2026-06-05 | E26: 2026-07-05 | F26: 19,800 | G26: 2026-09-04 | H26: ='Assumptions'!M53 -> 0 | I26: =G26+H26 -> 2026-09-04 | J26: =MAX(0,46265-E26) -> 57
C27: AR-002 | D27: 2026-06-07 | E27: 2026-07-07 | F27: 26,400 | G27: 2026-09-11 | H27: ='Assumptions'!M53 -> 0 | I27: =G27+H27 -> 2026-09-11 | J27: =MAX(0,46265-E27) -> 55
C28: AR-003 | D28: 2026-06-09 | E28: 2026-07-09 | F28: 28,600 | G28: 2026-09-18 | H28: ='Assumptions'!M53 -> 0 | I28: =G28+H28 -> 2026-09-18 | J28: =MAX(0,46265-E28) -> 53
C29: AR-004 | D29: 2026-07-11 | E29: 2026-08-11 | F29: 30,800 | G29: 2026-09-04 | H29: ='Assumptions'!M53 -> 0 | I29: =G29+H29 -> 2026-09-04 | J29: =MAX(0,46265-E29) -> 20
C30: AR-005 | D30: 2026-07-13 | E30: 2026-08-13 | F30: 26,400 | G30: 2026-09-11 | H30: ='Assumptions'!M53 -> 0 | I30: =G30+H30 -> 2026-09-11 | J30: =MAX(0,46265-E30) -> 18
C31: AR-006 | D31: 2026-08-15 | E31: 2026-09-15 | F31: 30,800 | G31: 2026-09-18 | H31: ='Assumptions'!M53 -> 0 | I31: =G31+H31 -> 2026-09-18 | J31: =MAX(0,46265-E31) -> 0
C32: AR-007 | D32: 2026-08-17 | E32: 2026-09-17 | F32: 28,600 | G32: 2026-09-25 | H32: ='Assumptions'!M53 -> 0 | I32: =G32+H32 -> 2026-09-25 | J32: =MAX(0,46265-E32) -> 0
C33: AR-008 | D33: 2026-08-19 | E33: 2026-09-19 | F33: 28,600 | G33: 2026-09-25 | H33: ='Assumptions'!M53 -> 0 | I33: =G33+H33 -> 2026-09-25 | J33: =MAX(0,46265-E33) -> 0
C37: Payables and authorisation
C39: Record | D39: Due date | E39: Invoice total | F39: Paid | G39: Outstanding | H39: Approval | I39: Review | J39: Hold | K39: Planned date | L39: Scheduled date | M39: Eligible | N39: Next action
C40: AP-001 | D40: 2026-08-05 | E40: 5,760 | F40: 0 | G40: =E40-F40 -> 5,760 | H40: Pending | I40: Complete | J40: Yes | K40: 2026-09-04 | L40: =IF(AND(H40="Approved",I40="Complete",J40="No"),K40,0) -> 00:00:00 | M40: =IF(L40>0,G40,0) -> 0 | N40: =IF(H40<>"Approved","Approval required",IF(I40<>"Complete","Review required",IF(J40<>"No","Release hold","Ready"))) -> Approval required
C41: AP-002 | D41: 2026-08-07 | E41: 9,600 | F41: 1,920 | G41: =E41-F41 -> 7,680 | H41: Approved | I41: Complete | J41: No | K41: 2026-09-11 | L41: =IF(AND(H41="Approved",I41="Complete",J41="No"),K41,0) -> 2026-09-11 | M41: =IF(L41>0,G41,0) -> 7,680 | N41: =IF(H41<>"Approved","Approval required",IF(I41<>"Complete","Review required",IF(J41<>"No","Release hold","Ready"))) -> Ready
C42: AP-003 | D42: 2026-08-09 | E42: 8,320 | F42: 0 | G42: =E42-F42 -> 8,320 | H42: Approved | I42: Pending | J42: No | K42: 2026-09-18 | L42: =IF(AND(H42="Approved",I42="Complete",J42="No"),K42,0) -> 00:00:00 | M42: =IF(L42>0,G42,0) -> 0 | N42: =IF(H42<>"Approved","Approval required",IF(I42<>"Complete","Review required",IF(J42<>"No","Release hold","Ready"))) -> Review required
C43: AP-004 | D43: 2026-08-11 | E43: 8,960 | F43: 0 | G43: =E43-F43 -> 8,960 | H43: Approved | I43: Complete | J43: No | K43: 2026-09-04 | L43: =IF(AND(H43="Approved",I43="Complete",J43="No"),K43,0) -> 2026-09-04 | M43: =IF(L43>0,G43,0) -> 8,960 | N43: =IF(H43<>"Approved","Approval required",IF(I43<>"Complete","Review required",IF(J43<>"No","Release hold","Ready"))) -> Ready
C44: AP-005 | D44: 2026-09-13 | E44: 8,832 | F44: 1,152 | G44: =E44-F44 -> 7,680 | H44: Approved | I44: Complete | J44: No | K44: 2026-09-11 | L44: =IF(AND(H44="Approved",I44="Complete",J44="No"),K44,0) -> 2026-09-11 | M44: =IF(L44>0,G44,0) -> 7,680 | N44: =IF(H44<>"Approved","Approval required",IF(I44<>"Complete","Review required",IF(J44<>"No","Release hold","Ready"))) -> Ready
C45: AP-006 | D45: 2026-09-15 | E45: 8,960 | F45: 0 | G45: =E45-F45 -> 8,960 | H45: Approved | I45: Complete | J45: No | K45: 2026-09-18 | L45: =IF(AND(H45="Approved",I45="Complete",J45="No"),K45,0) -> 2026-09-18 | M45: =IF(L45>0,G45,0) -> 8,960 | N45: =IF(H45<>"Approved","Approval required",IF(I45<>"Complete","Review required",IF(J45<>"No","Release hold","Ready"))) -> Ready
C46: AP-007 | D46: 2026-09-17 | E46: 8,320 | F46: 0 | G46: =E46-F46 -> 8,320 | H46: Approved | I46: Complete | J46: No | K46: 2026-09-25 | L46: =IF(AND(H46="Approved",I46="Complete",J46="No"),K46,0) -> 2026-09-25 | M46: =IF(L46>0,G46,0) -> 8,320 | N46: =IF(H46<>"Approved","Approval required",IF(I46<>"Complete","Review required",IF(J46<>"No","Release hold","Ready"))) -> Ready
C47: AP-008 | D47: 2026-09-19 | E47: 8,320 | F47: 0 | G47: =E47-F47 -> 8,320 | H47: Approved | I47: Complete | J47: No | K47: 2026-09-25 | L47: =IF(AND(H47="Approved",I47="Complete",J47="No"),K47,0) -> 2026-09-25 | M47: =IF(L47>0,G47,0) -> 8,320 | N47: =IF(H47<>"Approved","Approval required",IF(I47<>"Complete","Review required",IF(J47<>"No","Release hold","Ready"))) -> Ready

Sheet Assets debt
C2: Assets debt
C4: Selected case | E4: ='Assumptions'!$G$4 -> Base | H4: EUR · entirely fictional
E6: Actual | F6: Actual | G6: Actual | H6: Actual | I6: Actual | J6: Actual | K6: Actual | L6: Actual | M6: Forecast | N6: Forecast | O6: Forecast | P6: Forecast
E7: 2026-01-01 | F7: 2026-02-01 | G7: 2026-03-01 | H7: 2026-04-01 | I7: 2026-05-01 | J7: 2026-06-01 | K7: 2026-07-01 | L7: 2026-08-01 | M7: 2026-09-01 | N7: 2026-10-01 | O7: 2026-11-01 | P7: 2026-12-01
C8: Opening asset cost | E8: ='Actual inputs'!$E$46 -> 180,000 | F8: ='Assets debt'!E10 -> 188,000 | G8: ='Assets debt'!F10 -> 196,500 | H8: ='Assets debt'!G10 -> 205,500 | I8: ='Assets debt'!H10 -> 215,000 | J8: ='Assets debt'!I10 -> 225,000 | K8: ='Assets debt'!J10 -> 235,500 | L8: ='Assets debt'!K10 -> 246,500 | M8: ='Assets debt'!L10 -> 258,000 | N8: ='Assets debt'!M10 -> 270,000 | O8: ='Assets debt'!N10 -> 282,500 | P8: ='Assets debt'!O10 -> 295,500
C9: Capital expenditure | E9: ='Assumptions'!E41 -> 8,000 | F9: ='Assumptions'!F41 -> 8,500 | G9: ='Assumptions'!G41 -> 9,000 | H9: ='Assumptions'!H41 -> 9,500 | I9: ='Assumptions'!I41 -> 10,000 | J9: ='Assumptions'!J41 -> 10,500 | K9: ='Assumptions'!K41 -> 11,000 | L9: ='Assumptions'!L41 -> 11,500 | M9: ='Assumptions'!M41 -> 12,000 | N9: ='Assumptions'!N41 -> 12,500 | O9: ='Assumptions'!O41 -> 13,000 | P9: ='Assumptions'!P41 -> 13,500
C10: Closing asset cost | E10: ='Assets debt'!E8+'Assets debt'!E9 -> 188,000 | F10: ='Assets debt'!F8+'Assets debt'!F9 -> 196,500 | G10: ='Assets debt'!G8+'Assets debt'!G9 -> 205,500 | H10: ='Assets debt'!H8+'Assets debt'!H9 -> 215,000 | I10: ='Assets debt'!I8+'Assets debt'!I9 -> 225,000 | J10: ='Assets debt'!J8+'Assets debt'!J9 -> 235,500 | K10: ='Assets debt'!K8+'Assets debt'!K9 -> 246,500 | L10: ='Assets debt'!L8+'Assets debt'!L9 -> 258,000 | M10: ='Assets debt'!M8+'Assets debt'!M9 -> 270,000 | N10: ='Assets debt'!N8+'Assets debt'!N9 -> 282,500 | O10: ='Assets debt'!O8+'Assets debt'!O9 -> 295,500 | P10: ='Assets debt'!P8+'Assets debt'!P9 -> 309,000
C11: Opening accumulated depreciation | E11: ='Actual inputs'!$E$47 -> 48,000 | F11: ='Assets debt'!E13 -> 51,222 | G11: ='Assets debt'!F13 -> 54,681 | H11: ='Assets debt'!G13 -> 58,389 | I11: ='Assets debt'!H13 -> 62,361 | J11: ='Assets debt'!I13 -> 66,611 | K11: ='Assets debt'!J13 -> 71,153 | L11: ='Assets debt'!K13 -> 76,000 | M11: ='Assets debt'!L13 -> 81,167 | N11: ='Assets debt'!M13 -> 86,667 | O11: ='Assets debt'!N13 -> 92,514 | P11: ='Assets debt'!O13 -> 98,722
C12: Depreciation charge | E12: ='Actual inputs'!$E$53+('Assets debt'!E10-'Actual inputs'!$E$46)/'Actual inputs'!$E$54 -> 3,222 | F12: ='Actual inputs'!$E$53+('Assets debt'!F10-'Actual inputs'!$E$46)/'Actual inputs'!$E$54 -> 3,458 | G12: ='Actual inputs'!$E$53+('Assets debt'!G10-'Actual inputs'!$E$46)/'Actual inputs'!$E$54 -> 3,708 | H12: ='Actual inputs'!$E$53+('Assets debt'!H10-'Actual inputs'!$E$46)/'Actual inputs'!$E$54 -> 3,972 | I12: ='Actual inputs'!$E$53+('Assets debt'!I10-'Actual inputs'!$E$46)/'Actual inputs'!$E$54 -> 4,250 | J12: ='Actual inputs'!$E$53+('Assets debt'!J10-'Actual inputs'!$E$46)/'Actual inputs'!$E$54 -> 4,542 | K12: ='Actual inputs'!$E$53+('Assets debt'!K10-'Actual inputs'!$E$46)/'Actual inputs'!$E$54 -> 4,847 | L12: ='Actual inputs'!$E$53+('Assets debt'!L10-'Actual inputs'!$E$46)/'Actual inputs'!$E$54 -> 5,167 | M12: ='Actual inputs'!$E$53+('Assets debt'!M10-'Actual inputs'!$E$46)/'Actual inputs'!$E$54 -> 5,500 | N12: ='Actual inputs'!$E$53+('Assets debt'!N10-'Actual inputs'!$E$46)/'Actual inputs'!$E$54 -> 5,847 | O12: ='Actual inputs'!$E$53+('Assets debt'!O10-'Actual inputs'!$E$46)/'Actual inputs'!$E$54 -> 6,208 | P12: ='Actual inputs'!$E$53+('Assets debt'!P10-'Actual inputs'!$E$46)/'Actual inputs'!$E$54 -> 6,583
C13: Closing accumulated depreciation | E13: ='Assets debt'!E11+'Assets debt'!E12 -> 51,222 | F13: ='Assets debt'!F11+'Assets debt'!F12 -> 54,681 | G13: ='Assets debt'!G11+'Assets debt'!G12 -> 58,389 | H13: ='Assets debt'!H11+'Assets debt'!H12 -> 62,361 | I13: ='Assets debt'!I11+'Assets debt'!I12 -> 66,611 | J13: ='Assets debt'!J11+'Assets debt'!J12 -> 71,153 | K13: ='Assets debt'!K11+'Assets debt'!K12 -> 76,000 | L13: ='Assets debt'!L11+'Assets debt'!L12 -> 81,167 | M13: ='Assets debt'!M11+'Assets debt'!M12 -> 86,667 | N13: ='Assets debt'!N11+'Assets debt'!N12 -> 92,514 | O13: ='Assets debt'!O11+'Assets debt'!O12 -> 98,722 | P13: ='Assets debt'!P11+'Assets debt'!P12 -> 105,306
C14: Net fixed assets | E14: ='Assets debt'!E10-'Assets debt'!E13 -> 136,778 | F14: ='Assets debt'!F10-'Assets debt'!F13 -> 141,819 | G14: ='Assets debt'!G10-'Assets debt'!G13 -> 147,111 | H14: ='Assets debt'!H10-'Assets debt'!H13 -> 152,639 | I14: ='Assets debt'!I10-'Assets debt'!I13 -> 158,389 | J14: ='Assets debt'!J10-'Assets debt'!J13 -> 164,347 | K14: ='Assets debt'!K10-'Assets debt'!K13 -> 170,500 | L14: ='Assets debt'!L10-'Assets debt'!L13 -> 176,833 | M14: ='Assets debt'!M10-'Assets debt'!M13 -> 183,333 | N14: ='Assets debt'!N10-'Assets debt'!N13 -> 189,986 | O14: ='Assets debt'!O10-'Assets debt'!O13 -> 196,778 | P14: ='Assets debt'!P10-'Assets debt'!P13 -> 203,694
C15: Opening debt | E15: ='Actual inputs'!$E$48 -> 240,000 | F15: ='Assets debt'!E17 -> 235,000 | G15: ='Assets debt'!F17 -> 230,000 | H15: ='Assets debt'!G17 -> 225,000 | I15: ='Assets debt'!H17 -> 220,000 | J15: ='Assets debt'!I17 -> 215,000 | K15: ='Assets debt'!J17 -> 210,000 | L15: ='Assets debt'!K17 -> 205,000 | M15: ='Assets debt'!L17 -> 200,000 | N15: ='Assets debt'!M17 -> 195,000 | O15: ='Assets debt'!N17 -> 190,000 | P15: ='Assets debt'!O17 -> 185,000
C16: Principal repayment | E16: =MIN('Actual inputs'!$E$55,'Assets debt'!E15) -> 5,000 | F16: =MIN('Actual inputs'!$E$55,'Assets debt'!F15) -> 5,000 | G16: =MIN('Actual inputs'!$E$55,'Assets debt'!G15) -> 5,000 | H16: =MIN('Actual inputs'!$E$55,'Assets debt'!H15) -> 5,000 | I16: =MIN('Actual inputs'!$E$55,'Assets debt'!I15) -> 5,000 | J16: =MIN('Actual inputs'!$E$55,'Assets debt'!J15) -> 5,000 | K16: =MIN('Actual inputs'!$E$55,'Assets debt'!K15) -> 5,000 | L16: =MIN('Actual inputs'!$E$55,'Assets debt'!L15) -> 5,000 | M16: =MIN('Actual inputs'!$E$55,'Assets debt'!M15) -> 5,000 | N16: =MIN('Actual inputs'!$E$55,'Assets debt'!N15) -> 5,000 | O16: =MIN('Actual inputs'!$E$55,'Assets debt'!O15) -> 5,000 | P16: =MIN('Actual inputs'!$E$55,'Assets debt'!P15) -> 5,000
C17: Closing debt | E17: ='Assets debt'!E15-'Assets debt'!E16 -> 235,000 | F17: ='Assets debt'!F15-'Assets debt'!F16 -> 230,000 | G17: ='Assets debt'!G15-'Assets debt'!G16 -> 225,000 | H17: ='Assets debt'!H15-'Assets debt'!H16 -> 220,000 | I17: ='Assets debt'!I15-'Assets debt'!I16 -> 215,000 | J17: ='Assets debt'!J15-'Assets debt'!J16 -> 210,000 | K17: ='Assets debt'!K15-'Assets debt'!K16 -> 205,000 | L17: ='Assets debt'!L15-'Assets debt'!L16 -> 200,000 | M17: ='Assets debt'!M15-'Assets debt'!M16 -> 195,000 | N17: ='Assets debt'!N15-'Assets debt'!N16 -> 190,000 | O17: ='Assets debt'!O15-'Assets debt'!O16 -> 185,000 | P17: ='Assets debt'!P15-'Assets debt'!P16 -> 180,000
C18: Interest | E18: ='Assets debt'!E15*'Actual inputs'!$E$56/12 -> 1,300 | F18: ='Assets debt'!F15*'Actual inputs'!$E$56/12 -> 1,273 | G18: ='Assets debt'!G15*'Actual inputs'!$E$56/12 -> 1,246 | H18: ='Assets debt'!H15*'Actual inputs'!$E$56/12 -> 1,219 | I18: ='Assets debt'!I15*'Actual inputs'!$E$56/12 -> 1,192 | J18: ='Assets debt'!J15*'Actual inputs'!$E$56/12 -> 1,165 | K18: ='Assets debt'!K15*'Actual inputs'!$E$56/12 -> 1,138 | L18: ='Assets debt'!L15*'Actual inputs'!$E$56/12 -> 1,110 | M18: ='Assets debt'!M15*'Actual inputs'!$E$56/12 -> 1,083 | N18: ='Assets debt'!N15*'Actual inputs'!$E$56/12 -> 1,056 | O18: ='Assets debt'!O15*'Actual inputs'!$E$56/12 -> 1,029 | P18: ='Assets debt'!P15*'Actual inputs'!$E$56/12 -> 1,002
C19: Opening net tax balance | E19: ='Actual inputs'!$E$49 -> 18,000 | F19: ='Assets debt'!E22 -> 18,000 | G19: ='Assets debt'!F22 -> 18,000 | H19: ='Assets debt'!G22 -> 6,000 | I19: ='Assets debt'!H22 -> 6,000 | J19: ='Assets debt'!I22 -> 6,000 | K19: ='Assets debt'!J22 -> (3,802) | L19: ='Assets debt'!K22 -> (2,229) | M19: ='Assets debt'!L22 -> 190 | N19: ='Assets debt'!M22 -> (7,806) | O19: ='Assets debt'!N22 -> (2,332) | P19: ='Assets debt'!O22 -> 5,285
C20: Current tax charge | E20: =-'P&L'!E31 -> 0 | F20: =-'P&L'!F31 -> 0 | G20: =-'P&L'!G31 -> 0 | H20: =-'P&L'!H31 -> 0 | I20: =-'P&L'!I31 -> 0 | J20: =-'P&L'!J31 -> 198 | K20: =-'P&L'!K31 -> 1,573 | L20: =-'P&L'!L31 -> 2,419 | M20: =-'P&L'!M31 -> 4,004 | N20: =-'P&L'!N31 -> 5,475 | O20: =-'P&L'!O31 -> 7,617 | P20: =-'P&L'!P31 -> 9,959
C21: Current tax paid | E21: ='Assumptions'!E44 -> 0 | F21: ='Assumptions'!F44 -> 0 | G21: ='Assumptions'!G44 -> 12,000 | H21: ='Assumptions'!H44 -> 0 | I21: ='Assumptions'!I44 -> 0 | J21: ='Assumptions'!J44 -> 10,000 | K21: ='Assumptions'!K44 -> 0 | L21: ='Assumptions'!L44 -> 0 | M21: ='Assumptions'!M44 -> 12,000 | N21: ='Assumptions'!N44 -> 0 | O21: ='Assumptions'!O44 -> 0 | P21: ='Assumptions'!P44 -> 12,000
C22: Net tax liability / (prepayment) | E22: ='Assets debt'!E19+'Assets debt'!E20-'Assets debt'!E21 -> 18,000 | F22: ='Assets debt'!F19+'Assets debt'!F20-'Assets debt'!F21 -> 18,000 | G22: ='Assets debt'!G19+'Assets debt'!G20-'Assets debt'!G21 -> 6,000 | H22: ='Assets debt'!H19+'Assets debt'!H20-'Assets debt'!H21 -> 6,000 | I22: ='Assets debt'!I19+'Assets debt'!I20-'Assets debt'!I21 -> 6,000 | J22: ='Assets debt'!J19+'Assets debt'!J20-'Assets debt'!J21 -> (3,802) | K22: ='Assets debt'!K19+'Assets debt'!K20-'Assets debt'!K21 -> (2,229) | L22: ='Assets debt'!L19+'Assets debt'!L20-'Assets debt'!L21 -> 190 | M22: ='Assets debt'!M19+'Assets debt'!M20-'Assets debt'!M21 -> (7,806) | N22: ='Assets debt'!N19+'Assets debt'!N20-'Assets debt'!N21 -> (2,332) | O22: ='Assets debt'!O19+'Assets debt'!O20-'Assets debt'!O21 -> 5,285 | P22: ='Assets debt'!P19+'Assets debt'!P20-'Assets debt'!P21 -> 3,245

Sheet Budget
C2: Budget
C4: Selected case | E4: ='Assumptions'!$G$4 -> Base | H4: EUR · entirely fictional
E6: Original budget | F6: Original budget | G6: Original budget | H6: Original budget | I6: Original budget | J6: Original budget | K6: Original budget | L6: Original budget | M6: Original budget | N6: Original budget | O6: Original budget | P6: Original budget
E7: 2026-01-01 | F7: 2026-02-01 | G7: 2026-03-01 | H7: 2026-04-01 | I7: 2026-05-01 | J7: 2026-06-01 | K7: 2026-07-01 | L7: 2026-08-01 | M7: 2026-09-01 | N7: 2026-10-01 | O7: 2026-11-01 | P7: 2026-12-01
C8: Subscription revenue | E8: 205,000 | F8: 219,500 | G8: 234,000 | H8: 248,500 | I8: 263,000 | J8: 277,500 | K8: 292,000 | L8: 306,500 | M8: 321,000 | N8: 335,500 | O8: 350,000 | P8: 364,500
C9: Usage / onboarding revenue | E9: 36,000 | F9: 37,600 | G9: 39,200 | H9: 40,800 | I9: 42,400 | J9: 44,000 | K9: 45,600 | L9: 47,200 | M9: 48,800 | N9: 50,400 | O9: 52,000 | P9: 53,600
C10: Enterprise platform revenue | E10: 0 | F10: 0 | G10: 0 | H10: 0 | I10: 0 | J10: 0 | K10: 0 | L10: 0 | M10: 0 | N10: 0 | O10: 0 | P10: 0
C11: Total revenue | E11: =E8+E9+E10 -> 241,000 | F11: =F8+F9+F10 -> 257,100 | G11: =G8+G9+G10 -> 273,200 | H11: =H8+H9+H10 -> 289,300 | I11: =I8+I9+I10 -> 305,400 | J11: =J8+J9+J10 -> 321,500 | K11: =K8+K9+K10 -> 337,600 | L11: =L8+L9+L10 -> 353,700 | M11: =M8+M9+M10 -> 369,800 | N11: =N8+N9+N10 -> 385,900 | O11: =O8+O9+O10 -> 402,000 | P11: =P8+P9+P10 -> 418,100
C12: Support payroll | E12: (39,000) | F12: (40,300) | G12: (41,600) | H12: (42,900) | I12: (44,200) | J12: (45,500) | K12: (46,800) | L12: (48,100) | M12: (49,400) | N12: (50,700) | O12: (52,000) | P12: (53,300)
C13: Hosting / model costs | E13: (22,000) | F13: (23,300) | G13: (24,600) | H13: (25,900) | I13: (27,200) | J13: (28,500) | K13: (29,800) | L13: (31,100) | M13: (32,400) | N13: (33,700) | O13: (35,000) | P13: (36,300)
C14: Cloud commitments and platform costs | E14: (4,800) | F14: (4,800) | G14: (4,800) | H14: (4,800) | I14: (4,800) | J14: (4,800) | K14: (4,800) | L14: (4,800) | M14: (4,800) | N14: (4,800) | O14: (4,800) | P14: (4,800)
C15: Total cost of revenue | E15: =E12+E13+E14 -> (65,800) | F15: =F12+F13+F14 -> (68,400) | G15: =G12+G13+G14 -> (71,000) | H15: =H12+H13+H14 -> (73,600) | I15: =I12+I13+I14 -> (76,200) | J15: =J12+J13+J14 -> (78,800) | K15: =K12+K13+K14 -> (81,400) | L15: =L12+L13+L14 -> (84,000) | M15: =M12+M13+M14 -> (86,600) | N15: =N12+N13+N14 -> (89,200) | O15: =O12+O13+O14 -> (91,800) | P15: =P12+P13+P14 -> (94,400)
C16: Gross profit | E16: =E11+E15 -> 175,200 | F16: =F11+F15 -> 188,700 | G16: =G11+G15 -> 202,200 | H16: =H11+H15 -> 215,700 | I16: =I11+I15 -> 229,200 | J16: =J11+J15 -> 242,700 | K16: =K11+K15 -> 256,200 | L16: =L11+L15 -> 269,700 | M16: =M11+M15 -> 283,200 | N16: =N11+N15 -> 296,700 | O16: =O11+O15 -> 310,200 | P16: =P11+P15 -> 323,700
C17: Gross margin | E17: =E16/E11 -> 72.7% | F17: =F16/F11 -> 73.4% | G17: =G16/G11 -> 74.0% | H17: =H16/H11 -> 74.6% | I17: =I16/I11 -> 75.0% | J17: =J16/J11 -> 75.5% | K17: =K16/K11 -> 75.9% | L17: =L16/L11 -> 76.3% | M17: =M16/M11 -> 76.6% | N17: =N16/N11 -> 76.9% | O17: =O16/O11 -> 77.2% | P17: =P16/P11 -> 77.4%
C18: Product development payroll | E18: (90,000) | F18: (92,600) | G18: (95,200) | H18: (97,800) | I18: (100,400) | J18: (103,000) | K18: (105,600) | L18: (108,200) | M18: (110,800) | N18: (113,400) | O18: (116,000) | P18: (118,600)
C19: Sales payroll | E19: (31,000) | F19: (32,400) | G19: (33,800) | H19: (35,200) | I19: (36,600) | J19: (38,000) | K19: (39,400) | L19: (40,800) | M19: (42,200) | N19: (43,600) | O19: (45,000) | P19: (46,400)
C20: Acquisition and brand spend | E20: (24,000) | F20: (25,000) | G20: (26,000) | H20: (27,000) | I20: (28,000) | J20: (29,000) | K20: (30,000) | L20: (31,000) | M20: (32,000) | N20: (33,000) | O20: (34,000) | P20: (35,000)
C21: Administration payroll | E21: (23,600) | F21: (23,600) | G21: (23,600) | H21: (23,600) | I21: (23,600) | J21: (23,600) | K21: (23,600) | L21: (23,600) | M21: (23,600) | N21: (23,600) | O21: (23,600) | P21: (23,600)
C22: Office and administration | E22: (13,000) | F22: (13,000) | G22: (13,000) | H22: (13,000) | I22: (13,000) | J22: (13,000) | K22: (13,000) | L22: (13,000) | M22: (13,000) | N22: (13,000) | O22: (13,000) | P22: (13,000)
C23: Professional fees | E23: (6,500) | F23: (6,500) | G23: (6,500) | H23: (6,500) | I23: (6,500) | J23: (6,500) | K23: (6,500) | L23: (6,500) | M23: (6,500) | N23: (6,500) | O23: (6,500) | P23: (6,500)
C24: Operating expenses | E24: =E18+E19+E20+E21+E22+E23 -> (188,100) | F24: =F18+F19+F20+F21+F22+F23 -> (193,100) | G24: =G18+G19+G20+G21+G22+G23 -> (198,100) | H24: =H18+H19+H20+H21+H22+H23 -> (203,100) | I24: =I18+I19+I20+I21+I22+I23 -> (208,100) | J24: =J18+J19+J20+J21+J22+J23 -> (213,100) | K24: =K18+K19+K20+K21+K22+K23 -> (218,100) | L24: =L18+L19+L20+L21+L22+L23 -> (223,100) | M24: =M18+M19+M20+M21+M22+M23 -> (228,100) | N24: =N18+N19+N20+N21+N22+N23 -> (233,100) | O24: =O18+O19+O20+O21+O22+O23 -> (238,100) | P24: =P18+P19+P20+P21+P22+P23 -> (243,100)
C25: EBITDA | E25: =E16+E24 -> (12,900) | F25: =F16+F24 -> (4,400) | G25: =G16+G24 -> 4,100 | H25: =H16+H24 -> 12,600 | I25: =I16+I24 -> 21,100 | J25: =J16+J24 -> 29,600 | K25: =K16+K24 -> 38,100 | L25: =L16+L24 -> 46,600 | M25: =M16+M24 -> 55,100 | N25: =N16+N24 -> 63,600 | O25: =O16+O24 -> 72,100 | P25: =P16+P24 -> 80,600
C26: EBITDA margin | E26: =E25/E11 -> (5.4%) | F26: =F25/F11 -> (1.7%) | G26: =G25/G11 -> 1.5% | H26: =H25/H11 -> 4.4% | I26: =I25/I11 -> 6.9% | J26: =J25/J11 -> 9.2% | K26: =K25/K11 -> 11.3% | L26: =L25/L11 -> 13.2% | M26: =M25/M11 -> 14.9% | N26: =N25/N11 -> 16.5% | O26: =O25/O11 -> 17.9% | P26: =P25/P11 -> 19.3%
C27: Depreciation | E27: (3,222) | F27: (3,462) | G27: (3,702) | H27: (3,942) | I27: (4,182) | J27: (4,422) | K27: (4,662) | L27: (4,902) | M27: (5,142) | N27: (5,382) | O27: (5,622) | P27: (5,862)
C28: Operating profit | E28: =E25+E27 -> (16,122) | F28: =F25+F27 -> (7,862) | G28: =G25+G27 -> 398 | H28: =H25+H27 -> 8,658 | I28: =I25+I27 -> 16,918 | J28: =J25+J27 -> 25,178 | K28: =K25+K27 -> 33,438 | L28: =L25+L27 -> 41,698 | M28: =M25+M27 -> 49,958 | N28: =N25+N27 -> 58,218 | O28: =O25+O27 -> 66,478 | P28: =P25+P27 -> 74,738
C29: Interest | E29: (1,300) | F29: (1,273) | G29: (1,246) | H29: (1,219) | I29: (1,192) | J29: (1,165) | K29: (1,138) | L29: (1,110) | M29: (1,083) | N29: (1,056) | O29: (1,029) | P29: (1,002)
C30: Profit before tax | E30: =E28+E29 -> (17,422) | F30: =F28+F29 -> (9,135) | G30: =G28+G29 -> (848) | H30: =H28+H29 -> 7,439 | I30: =I28+I29 -> 15,726 | J30: =J28+J29 -> 24,013 | K30: =K28+K29 -> 32,301 | L30: =L28+L29 -> 40,588 | M30: =M28+M29 -> 48,875 | N30: =N28+N29 -> 57,162 | O30: =O28+O29 -> 65,449 | P30: =P28+P29 -> 73,736
C31: Illustrative current tax | E31: =-MAX(0,E30)*0.2 -> 0 | F31: =-MAX(0,F30)*0.2 -> 0 | G31: =-MAX(0,G30)*0.2 -> 0 | H31: =-MAX(0,H30)*0.2 -> (1,488) | I31: =-MAX(0,I30)*0.2 -> (3,145) | J31: =-MAX(0,J30)*0.2 -> (4,803) | K31: =-MAX(0,K30)*0.2 -> (6,460) | L31: =-MAX(0,L30)*0.2 -> (8,118) | M31: =-MAX(0,M30)*0.2 -> (9,775) | N31: =-MAX(0,N30)*0.2 -> (11,432) | O31: =-MAX(0,O30)*0.2 -> (13,090) | P31: =-MAX(0,P30)*0.2 -> (14,747)
C32: Net profit | E32: =E30+E31 -> (17,422) | F32: =F30+F31 -> (9,135) | G32: =G30+G31 -> (848) | H32: =H30+H31 -> 5,951 | I32: =I30+I31 -> 12,581 | J32: =J30+J31 -> 19,211 | K32: =K30+K31 -> 25,840 | L32: =L30+L31 -> 32,470 | M32: =M30+M31 -> 39,100 | N32: =N30+N31 -> 45,729 | O32: =O30+O31 -> 52,359 | P32: =P30+P31 -> 58,989
C35: Fictional original annual plan. Forecast case changes do not revise the budget.

Sheet Actual inputs
C2: Actual inputs
C4: Selected case | E4: ='Assumptions'!$G$4 -> Base | H4: EUR · entirely fictional
E6: Actual | F6: Actual | G6: Actual | H6: Actual | I6: Actual | J6: Actual | K6: Actual | L6: Actual | M6: Forecast | N6: Forecast | O6: Forecast | P6: Forecast
E7: 2026-01-01 | F7: 2026-02-01 | G7: 2026-03-01 | H7: 2026-04-01 | I7: 2026-05-01 | J7: 2026-06-01 | K7: 2026-07-01 | L7: 2026-08-01 | M7: 2026-09-01 | N7: 2026-10-01 | O7: 2026-11-01 | P7: 2026-12-01
C8: Support FTE | E8: 7.00 | F8: 7.25 | G8: 7.50 | H8: 7.75 | I8: 8.00 | J8: 8.25 | K8: 8.50 | L8: 8.75
C9: Loaded support pay per month | E9: 5,300 | F9: 5,300 | G9: 5,300 | H9: 5,300 | I9: 5,300 | J9: 5,300 | K9: 5,300 | L9: 5,300
C10: Product development FTE | E10: 13.00 | F10: 13.50 | G10: 14.00 | H10: 14.50 | I10: 15.00 | J10: 15.50 | K10: 16.00 | L10: 16.50
C11: Loaded development pay per month | E11: 6,900 | F11: 6,900 | G11: 6,900 | H11: 6,900 | I11: 6,900 | J11: 6,900 | K11: 6,900 | L11: 6,900
C12: Sales FTE | E12: 5.00 | F12: 5.25 | G12: 5.50 | H12: 5.75 | I12: 6.00 | J12: 6.25 | K12: 6.50 | L12: 6.75
C13: Loaded sales pay per month | E13: 6,200 | F13: 6,200 | G13: 6,200 | H13: 6,200 | I13: 6,200 | J13: 6,200 | K13: 6,200 | L13: 6,200
C14: Administration FTE | E14: 4.00 | F14: 4.00 | G14: 4.00 | H14: 4.00 | I14: 4.00 | J14: 4.00 | K14: 4.00 | L14: 4.00
C15: Loaded administration pay per month | E15: 5,900 | F15: 5,900 | G15: 5,900 | H15: 5,900 | I15: 5,900 | J15: 5,900 | K15: 5,900 | L15: 5,900
C16: Acquisition and brand spend | E16: 24,000 | F16: 25,200 | G16: 26,400 | H16: 27,600 | I16: 28,800 | J16: 30,000 | K16: 31,200 | L16: 32,400
C17: Office and administration | E17: 13,000 | F17: 13,000 | G17: 13,000 | H17: 13,000 | I17: 13,000 | J17: 13,000 | K17: 13,000 | L17: 13,000
C18: Professional fees | E18: 6,500 | F18: 6,500 | G18: 6,500 | H18: 6,500 | I18: 6,500 | J18: 6,500 | K18: 6,500 | L18: 6,500
C19: Capital expenditure | E19: 8,000 | F19: 8,500 | G19: 9,000 | H19: 9,500 | I19: 10,000 | J19: 10,500 | K19: 11,000 | L19: 11,500
C20: Illustrative current tax paid | E20: 0 | F20: 0 | G20: 12,000 | H20: 0 | I20: 0 | J20: 10,000 | K20: 0 | L20: 0
C21: Target receivable days | E21: 25.0 | F21: 25.0 | G21: 25.0 | H21: 25.0 | I21: 25.0 | J21: 25.0 | K21: 25.0 | L21: 25.0
C22: New vendor payable days | E22: 28.0 | F22: 28.0 | G22: 28.0 | H22: 28.0 | I22: 28.0 | J22: 28.0 | K22: 28.0 | L22: 28.0
C23: Opening receivable delay (days) | E23: 0.0 | F23: 0.0 | G23: 0.0 | H23: 0.0 | I23: 0.0 | J23: 0.0 | K23: 0.0 | L23: 0.0
C24: New accounts | E24: 22.0 | F24: 23.0 | G24: 24.0 | H24: 26.0 | I24: 27.0 | J24: 28.0 | K24: 29.0 | L24: 30.0
C25: New account monthly price | E25: 580 | F25: 585 | G25: 590 | H25: 595 | I25: 600 | J25: 605 | K25: 610 | L25: 615
C26: Monthly expansion on opening MRR | E26: 1.2% | F26: 1.2% | G26: 1.2% | H26: 1.2% | I26: 1.2% | J26: 1.2% | K26: 1.2% | L26: 1.2%
C27: Monthly churn on opening MRR | E27: 1.6% | F27: 1.8% | G27: 1.7% | H27: 1.8% | I27: 1.9% | J27: 2.2% | K27: 2.5% | L27: 2.8%
C28: Monthly contraction on opening MRR | E28: 0.3% | F28: 0.3% | G28: 0.3% | H28: 0.3% | I28: 0.3% | J28: 0.3% | K28: 0.3% | L28: 0.3%
C29: Monthly account churn | E29: 1.8% | F29: 1.8% | G29: 1.8% | H29: 1.8% | I29: 1.8% | J29: 1.8% | K29: 1.8% | L29: 1.8%
C30: Annual-plan revenue share | E30: 62.0% | F30: 62.0% | G30: 62.0% | H30: 62.0% | I30: 62.0% | J30: 62.0% | K30: 62.0% | L30: 62.0%
C31: Annual-plan billing season factor | E31: 1.20 | F31: 0.85 | G31: 0.95 | H31: 1.05 | I31: 0.85 | J31: 0.90 | K31: 1.00 | L31: 1.10
C32: Completed onboardings | E32: 14.0 | F32: 15.0 | G32: 15.0 | H32: 16.0 | I32: 16.0 | J32: 17.0 | K32: 18.0 | L32: 18.0
C33: Onboarding fee | E33: 2,400 | F33: 2,400 | G33: 2,400 | H33: 2,400 | I33: 2,400 | J33: 2,400 | K33: 2,400 | L33: 2,400
C34: Hosting cost / recurring revenue | E34: 9.5% | F34: 9.5% | G34: 9.5% | H34: 9.5% | I34: 9.5% | J34: 9.5% | K34: 9.5% | L34: 9.5%
C38: Opening balances and shared assumptions
C40: cash | E40: 1,600,000
C41: ar | E41: 135,000
C42: ap | E42: 35,000
C43: deferred | E43: 390,000
C44: prepaid | E44: 30,000
C45: accruals | E45: 32,000
C46: cost | E46: 180,000
C47: accum | E47: 48,000
C48: debt | E48: 240,000
C49: tax | E49: 18,000
C50: capital | E50: 500,000
C51: mrr | E51: 188,000
C52: accounts | E52: 390
C53: dep | E53: 3,000
C54: life | E54: 36
C55: principal | E55: 5,000
C56: interest | E56: 0
C57: tax Rate | E57: 0
C58: reserve | E58: 200,000
C59: ar Aug | E59: 220,000
C60: ap Aug | E60: 64,000
C61: retained | E61: 682,000

Sheet Forecast review
C2: Forecast review
C4: Selected case | E4: ='Assumptions'!$G$4 -> Base | H4: EUR · entirely fictional
E6: Actual | F6: Actual | G6: Actual | H6: Actual | I6: Actual | J6: Actual | K6: Actual | L6: Actual | M6: Forecast | N6: Forecast | O6: Forecast | P6: Forecast
E7: 2026-01-01 | F7: 2026-02-01 | G7: 2026-03-01 | H7: 2026-04-01 | I7: 2026-05-01 | J7: 2026-06-01 | K7: 2026-07-01 | L7: 2026-08-01 | M7: 2026-09-01 | N7: 2026-10-01 | O7: 2026-11-01 | P7: 2026-12-01
C8: Balance sheet equation | E8: ='Balance sheet'!E16-'Balance sheet'!E27 -> 0.00 | F8: ='Balance sheet'!F16-'Balance sheet'!F27 -> 0.00 | G8: ='Balance sheet'!G16-'Balance sheet'!G27 -> 0.00 | H8: ='Balance sheet'!H16-'Balance sheet'!H27 -> 0.00 | I8: ='Balance sheet'!I16-'Balance sheet'!I27 -> 0.00 | J8: ='Balance sheet'!J16-'Balance sheet'!J27 -> 0.00 | K8: ='Balance sheet'!K16-'Balance sheet'!K27 -> 0.00 | L8: ='Balance sheet'!L16-'Balance sheet'!L27 -> 0.00 | M8: ='Balance sheet'!M16-'Balance sheet'!M27 -> 0.00 | N8: ='Balance sheet'!N16-'Balance sheet'!N27 -> 0.00 | O8: ='Balance sheet'!O16-'Balance sheet'!O27 -> 0.00 | P8: ='Balance sheet'!P16-'Balance sheet'!P27 -> (0.00)
C9: Cash flow ties to balance sheet | E9: ='Cash flow'!E23-'Balance sheet'!E8 -> 0.00 | F9: ='Cash flow'!F23-'Balance sheet'!F8 -> 0.00 | G9: ='Cash flow'!G23-'Balance sheet'!G8 -> 0.00 | H9: ='Cash flow'!H23-'Balance sheet'!H8 -> 0.00 | I9: ='Cash flow'!I23-'Balance sheet'!I8 -> 0.00 | J9: ='Cash flow'!J23-'Balance sheet'!J8 -> 0.00 | K9: ='Cash flow'!K23-'Balance sheet'!K8 -> 0.00 | L9: ='Cash flow'!L23-'Balance sheet'!L8 -> 0.00 | M9: ='Cash flow'!M23-'Balance sheet'!M8 -> 0.00 | N9: ='Cash flow'!N23-'Balance sheet'!N8 -> 0.00 | O9: ='Cash flow'!O23-'Balance sheet'!O8 -> 0.00 | P9: ='Cash flow'!P23-'Balance sheet'!P8 -> 0.00
C10: Direct to indirect cash | E10: ='Working capital'!E10-'Working capital'!E15-'Payroll'!E21-'Assets debt'!E21-'Assets debt'!E18-'Assets debt'!E9-'Assets debt'!E16-'Cash flow'!E21 -> (0.00) | F10: ='Working capital'!F10-'Working capital'!F15-'Payroll'!F21-'Assets debt'!F21-'Assets debt'!F18-'Assets debt'!F9-'Assets debt'!F16-'Cash flow'!F21 -> 0.00 | G10: ='Working capital'!G10-'Working capital'!G15-'Payroll'!G21-'Assets debt'!G21-'Assets debt'!G18-'Assets debt'!G9-'Assets debt'!G16-'Cash flow'!G21 -> 0.00 | H10: ='Working capital'!H10-'Working capital'!H15-'Payroll'!H21-'Assets debt'!H21-'Assets debt'!H18-'Assets debt'!H9-'Assets debt'!H16-'Cash flow'!H21 -> 0.00 | I10: ='Working capital'!I10-'Working capital'!I15-'Payroll'!I21-'Assets debt'!I21-'Assets debt'!I18-'Assets debt'!I9-'Assets debt'!I16-'Cash flow'!I21 -> 0.00 | J10: ='Working capital'!J10-'Working capital'!J15-'Payroll'!J21-'Assets debt'!J21-'Assets debt'!J18-'Assets debt'!J9-'Assets debt'!J16-'Cash flow'!J21 -> (0.00) | K10: ='Working capital'!K10-'Working capital'!K15-'Payroll'!K21-'Assets debt'!K21-'Assets debt'!K18-'Assets debt'!K9-'Assets debt'!K16-'Cash flow'!K21 -> 0.00 | L10: ='Working capital'!L10-'Working capital'!L15-'Payroll'!L21-'Assets debt'!L21-'Assets debt'!L18-'Assets debt'!L9-'Assets debt'!L16-'Cash flow'!L21 -> 0.00 | M10: ='Working capital'!M10-'Working capital'!M15-'Payroll'!M21-'Assets debt'!M21-'Assets debt'!M18-'Assets debt'!M9-'Assets debt'!M16-'Cash flow'!M21 -> (0.00) | N10: ='Working capital'!N10-'Working capital'!N15-'Payroll'!N21-'Assets debt'!N21-'Assets debt'!N18-'Assets debt'!N9-'Assets debt'!N16-'Cash flow'!N21 -> 0.00 | O10: ='Working capital'!O10-'Working capital'!O15-'Payroll'!O21-'Assets debt'!O21-'Assets debt'!O18-'Assets debt'!O9-'Assets debt'!O16-'Cash flow'!O21 -> 0.00 | P10: ='Working capital'!P10-'Working capital'!P15-'Payroll'!P21-'Assets debt'!P21-'Assets debt'!P18-'Assets debt'!P9-'Assets debt'!P16-'Cash flow'!P21 -> 0.00
C11: Revenue / cohort reconciliation | E11: ='Cohorts'!E22-'Revenue'!E17 -> 0.00 | F11: ='Cohorts'!F22-'Revenue'!F17 -> 0.00 | G11: ='Cohorts'!G22-'Revenue'!G17 -> 0.00 | H11: ='Cohorts'!H22-'Revenue'!H17 -> 0.00 | I11: ='Cohorts'!I22-'Revenue'!I17 -> (0.00) | J11: ='Cohorts'!J22-'Revenue'!J17 -> 0.00 | K11: ='Cohorts'!K22-'Revenue'!K17 -> (0.00) | L11: ='Cohorts'!L22-'Revenue'!L17 -> (0.00) | M11: ='Cohorts'!M22-'Revenue'!M17 -> (0.00) | N11: ='Cohorts'!N22-'Revenue'!N17 -> (0.00) | O11: ='Cohorts'!O22-'Revenue'!O17 -> (0.00) | P11: ='Cohorts'!P22-'Revenue'!P17 -> 0.00
C12: Deferred revenue roll-forward | E12: ='Revenue'!E26+'Revenue'!E25-'Revenue'!E24-'Revenue'!E27 -> (0.00) | F12: ='Revenue'!F26+'Revenue'!F25-'Revenue'!F24-'Revenue'!F27 -> 0.00 | G12: ='Revenue'!G26+'Revenue'!G25-'Revenue'!G24-'Revenue'!G27 -> 0.00 | H12: ='Revenue'!H26+'Revenue'!H25-'Revenue'!H24-'Revenue'!H27 -> 0.00 | I12: ='Revenue'!I26+'Revenue'!I25-'Revenue'!I24-'Revenue'!I27 -> 0.00 | J12: ='Revenue'!J26+'Revenue'!J25-'Revenue'!J24-'Revenue'!J27 -> (0.00) | K12: ='Revenue'!K26+'Revenue'!K25-'Revenue'!K24-'Revenue'!K27 -> 0.00 | L12: ='Revenue'!L26+'Revenue'!L25-'Revenue'!L24-'Revenue'!L27 -> 0.00 | M12: ='Revenue'!M26+'Revenue'!M25-'Revenue'!M24-'Revenue'!M27 -> 0.00 | N12: ='Revenue'!N26+'Revenue'!N25-'Revenue'!N24-'Revenue'!N27 -> 0.00 | O12: ='Revenue'!O26+'Revenue'!O25-'Revenue'!O24-'Revenue'!O27 -> 0.00 | P12: ='Revenue'!P26+'Revenue'!P25-'Revenue'!P24-'Revenue'!P27 -> 0.00
C13: Receivables roll-forward | E13: ='Working capital'!E8+'Working capital'!E9-'Working capital'!E10-'Working capital'!E11 -> 0.00 | F13: ='Working capital'!F8+'Working capital'!F9-'Working capital'!F10-'Working capital'!F11 -> 0.00 | G13: ='Working capital'!G8+'Working capital'!G9-'Working capital'!G10-'Working capital'!G11 -> 0.00 | H13: ='Working capital'!H8+'Working capital'!H9-'Working capital'!H10-'Working capital'!H11 -> 0.00 | I13: ='Working capital'!I8+'Working capital'!I9-'Working capital'!I10-'Working capital'!I11 -> 0.00 | J13: ='Working capital'!J8+'Working capital'!J9-'Working capital'!J10-'Working capital'!J11 -> 0.00 | K13: ='Working capital'!K8+'Working capital'!K9-'Working capital'!K10-'Working capital'!K11 -> 0.00 | L13: ='Working capital'!L8+'Working capital'!L9-'Working capital'!L10-'Working capital'!L11 -> 0.00 | M13: ='Working capital'!M8+'Working capital'!M9-'Working capital'!M10-'Working capital'!M11 -> 0.00 | N13: ='Working capital'!N8+'Working capital'!N9-'Working capital'!N10-'Working capital'!N11 -> 0.00 | O13: ='Working capital'!O8+'Working capital'!O9-'Working capital'!O10-'Working capital'!O11 -> 0.00 | P13: ='Working capital'!P8+'Working capital'!P9-'Working capital'!P10-'Working capital'!P11 -> 0.00
C14: Payables roll-forward | E14: ='Working capital'!E13+'Working capital'!E14-'Working capital'!E15-'Working capital'!E16 -> 0.00 | F14: ='Working capital'!F13+'Working capital'!F14-'Working capital'!F15-'Working capital'!F16 -> 0.00 | G14: ='Working capital'!G13+'Working capital'!G14-'Working capital'!G15-'Working capital'!G16 -> 0.00 | H14: ='Working capital'!H13+'Working capital'!H14-'Working capital'!H15-'Working capital'!H16 -> 0.00 | I14: ='Working capital'!I13+'Working capital'!I14-'Working capital'!I15-'Working capital'!I16 -> 0.00 | J14: ='Working capital'!J13+'Working capital'!J14-'Working capital'!J15-'Working capital'!J16 -> 0.00 | K14: ='Working capital'!K13+'Working capital'!K14-'Working capital'!K15-'Working capital'!K16 -> 0.00 | L14: ='Working capital'!L13+'Working capital'!L14-'Working capital'!L15-'Working capital'!L16 -> 0.00 | M14: ='Working capital'!M13+'Working capital'!M14-'Working capital'!M15-'Working capital'!M16 -> 0.00 | N14: ='Working capital'!N13+'Working capital'!N14-'Working capital'!N15-'Working capital'!N16 -> 0.00 | O14: ='Working capital'!O13+'Working capital'!O14-'Working capital'!O15-'Working capital'!O16 -> 0.00 | P14: ='Working capital'!P13+'Working capital'!P14-'Working capital'!P15-'Working capital'!P16 -> 0.00
C15: Monthly event cash to statements | E15: =0 -> 0.00 | F15: =0 -> 0.00 | G15: =0 -> 0.00 | H15: =0 -> 0.00 | I15: =0 -> 0.00 | J15: =0 -> 0.00 | K15: =0 -> 0.00 | L15: =0 -> 0.00 | M15: =SUMIFS('13 week cash'!$F$28:$F79,'13 week cash'!$E$28:$E$79,">="&46266,'13 week cash'!$E$28:$E$79,"<="&46295)-'Cash flow'!M21 -> (0.00) | N15: =SUMIFS('13 week cash'!$F$28:$F79,'13 week cash'!$E$28:$E$79,">="&46296,'13 week cash'!$E$28:$E$79,"<="&46326)-'Cash flow'!N21 -> 0.00 | O15: =SUMIFS('13 week cash'!$F$28:$F79,'13 week cash'!$E$28:$E$79,">="&46327,'13 week cash'!$E$28:$E$79,"<="&46356)-'Cash flow'!O21 -> 0.00 | P15: =SUMIFS('13 week cash'!$F$28:$F79,'13 week cash'!$E$28:$E$79,">="&46357,'13 week cash'!$E$28:$E$79,"<="&46387)-'Cash flow'!P21 -> 0.00
C19: Opening AR records tie to August balance | E19: =SUM('Working capital'!F26:F33)-'Balance sheet'!L9 -> 0.00
C20: Opening AP records tie to August balance | E20: =SUM('Working capital'!G40:G47)-'Balance sheet'!L17 -> 0.00
C21: Daily closing cash to week 13 | E21: ='13 week cash'!H185-'13 week cash'!Q17 -> 0.00
C22: November 30 bridge | E22: ='Balance sheet'!O8-'13 week cash'!Q17-SUMIFS('13 week cash'!$F$28:$F79,'13 week cash'!$E$28:$E$79,46356) -> 0.00
C25: Zero differences pass at €0.01 tolerance. Historical dated-event checks are not applicable.

Sheet Guide
C2: Guide
C4: Selected case | E4: ='Assumptions'!$G$4 -> Base | H4: EUR · entirely fictional
C8: Every company, record and figure is independently fictional. No client numbers, names or copies are included.
C10: Change Assumptions E4: 1 Base, 2 Downside. One operating forecast build feeds the statements, schedules and cash. Historical drivers and original budget stay unchanged.
C12: EUR units. Expenses and cash outflows are negative. Accumulated depreciation is positive and subtracted from asset cost.
C14: The model excludes VAT/sales tax, foreign exchange and statutory filing calculations. Illustrative current tax is 20% of positive monthly profit, without loss relief. Debit tax balances are shown as prepayments.
C16: Loaded payroll includes employer costs. Development expenditure is expensed. Capital additions depreciate over 36 months with a full first-month charge. Opening assets depreciate at €3,000 monthly.
C18: Debt amortises €5,000 monthly, capped at remaining principal. Interest is 6.5% annually on opening monthly debt. No automatic borrowing or overdraft is assumed.
C20: Negative cash is an unfunded requirement. The 13-week forecast includes daily cash through 29 November; weekly closing totals can hide earlier cash shortages.
C22: Opening AR/AP use individual cash dates. Residual new receipts and vendor payments are assumed 45% on day 15 and 55% on day 28. These dates are planning assumptions, not bank evidence.
C24: Approval, review completion and hold release are separate AP payment prerequisites. Held balances remain liabilities. Due dates determine ageing, not permission to pay.
C26: Forecast receivables use a target DSO, limited by available billings and scheduled opening receipts. Unpaid opening invoices set a floor. Implied DSO can differ from the target.
C28: MRR is a month-end run rate. Recognised subscription revenue uses average opening/closing MRR as a within-month timing approximation. Onboarding revenue is earned on completion.
C30: Annual-plan billings use the annual-plan revenue share and seasonal factor. Deferred revenue rolls forward as opening deferred plus annual billings less annual-plan recognition. This is a portfolio planning assumption, not a contract-level recognition engine.
C32: Cohorts apply period expansion, churn and contraction to opening recurring revenue. Monthly NRR/GRR are not annual retention. Blended CAC includes sales payroll and acquisition/brand spend; payback uses loaded subscription gross margin.
C34: JSON captures are evaluated outputs for website use and require regeneration after workbook edits. Native Excel application recalculation was not available.
